Organisation Name,Organisation Code,Unique Ref No ,Effective Date,Directorate,Supplier Name ,Payment Date,Net amount,Purpose of Spend,"Procurement Classification
(Higher Level)","Procurement Classification 
(Lower Level)",CAPITAL / REVENUE
Walsall Council,http://opendatacommunities.org/id/metropolitan-district-council/walsall ,WC159-1,29.02.2024,CHILDRENS,100GREEN - GREEN ENERGY (UK) PLC,22/02/2024,"12,012.20",6222-Electricity,PREMISES,ENERGY,REVENUE
Walsall Council,http://opendatacommunities.org/id/metropolitan-district-council/walsall ,WC159-2,29.02.2024,CHILDRENS,100GREEN - GREEN ENERGY (UK) PLC,22/02/2024,261.44,6222-Electricity,PREMISES,ENERGY,REVENUE
Walsall Council,http://opendatacommunities.org/id/metropolitan-district-council/walsall ,WC159-3,29.02.2024,CHILDRENS,100GREEN - GREEN ENERGY (UK) PLC,22/02/2024,294.00,6222-Electricity,PREMISES,ENERGY,REVENUE
Walsall Council,http://opendatacommunities.org/id/metropolitan-district-council/walsall ,WC159-4,29.02.2024,CHILDRENS,100GREEN - GREEN ENERGY (UK) PLC,22/02/2024,317.08,6222-Electricity,PREMISES,ENERGY,REVENUE
Walsall Council,http://opendatacommunities.org/id/metropolitan-district-council/walsall ,WC159-5,29.02.2024,CHILDRENS,100GREEN - GREEN ENERGY (UK) PLC,22/02/2024,363.32,6222-Electricity,PREMISES,ENERGY,REVENUE
Walsall Council,http://opendatacommunities.org/id/metropolitan-district-council/walsall ,WC159-6,29.02.2024,CHILDRENS,100GREEN - GREEN ENERGY (UK) PLC,22/02/2024,355.13,6222-Electricity,PREMISES,ENERGY,REVENUE
Walsall Council,http://opendatacommunities.org/id/metropolitan-district-council/walsall ,WC159-7,29.02.2024,RESOURCES AND TRANSFORMATION,11KBW,08/02/2024,"28,293.75",6610-School Only Payments - Catering,THIRD PARTY PAYMENTS,INDEPENDENT UNIT WITHIN COUNCIL,REVENUE
Walsall Council,http://opendatacommunities.org/id/metropolitan-district-council/walsall ,WC159-8,29.02.2024,RESOURCES AND TRANSFORMATION,11KBW,22/02/2024,"5,200.00",6610-School Only Payments - Catering,THIRD PARTY PAYMENTS,INDEPENDENT UNIT WITHIN COUNCIL,REVENUE
Walsall Council,http://opendatacommunities.org/id/metropolitan-district-council/walsall ,WC159-9,29.02.2024,RESOURCES AND TRANSFORMATION,11KBW,06/02/2024,"4,005.00",6610-School Only Payments - Catering,THIRD PARTY PAYMENTS,INDEPENDENT UNIT WITHIN COUNCIL,REVENUE
Walsall Council,http://opendatacommunities.org/id/metropolitan-district-council/walsall ,WC159-10,29.02.2024,RESOURCES AND TRANSFORMATION,11KBW,19/02/2024,"20,480.00",6610-School Only Payments - Catering,THIRD PARTY PAYMENTS,INDEPENDENT UNIT WITHIN COUNCIL,REVENUE
Walsall Council,http://opendatacommunities.org/id/metropolitan-district-council/walsall ,WC159-11,29.02.2024,CHILDRENS,247 CARS (WILLENHALL) LIMITED,15/02/2024,"1,666.87",1220-Professional Fees & Services,SUPPLIES & SERVICES,SERVICES,REVENUE
Walsall Council,http://opendatacommunities.org/id/metropolitan-district-council/walsall ,WC159-12,29.02.2024,CHILDRENS,247 CARS (WILLENHALL) LIMITED,15/02/2024,260.00,1220-Professional Fees & Services,SUPPLIES & SERVICES,SERVICES,REVENUE
Walsall Council,http://opendatacommunities.org/id/metropolitan-district-council/walsall ,WC159-13,29.02.2024,CHILDRENS,247 CARS (WILLENHALL) LIMITED,26/02/2024,"2,315.15",6241-Hire of Vehicle with Driver,TRANSPORT,DIRECT TRANSPORT COSTS,REVENUE
Walsall Council,http://opendatacommunities.org/id/metropolitan-district-council/walsall ,WC159-14,29.02.2024,CHILDRENS,247 CARS (WILLENHALL) LIMITED,26/02/2024,"2,158.40",6241-Hire of Vehicle with Driver,TRANSPORT,DIRECT TRANSPORT COSTS,REVENUE
Walsall Council,http://opendatacommunities.org/id/metropolitan-district-council/walsall ,WC159-15,29.02.2024,CHILDRENS,247 CARS (WILLENHALL) LIMITED,26/02/2024,"2,158.40",6241-Hire of Vehicle with Driver,TRANSPORT,DIRECT TRANSPORT COSTS,REVENUE
Walsall Council,http://opendatacommunities.org/id/metropolitan-district-council/walsall ,WC159-16,29.02.2024,CHILDRENS,247 CARS (WILLENHALL) LIMITED,26/02/2024,"2,158.40",6241-Hire of Vehicle with Driver,TRANSPORT,DIRECT TRANSPORT COSTS,REVENUE
Walsall Council,http://opendatacommunities.org/id/metropolitan-district-council/walsall ,WC159-17,29.02.2024,CHILDRENS,247 CARS (WILLENHALL) LIMITED,26/02/2024,"1,491.60",6241-Hire of Vehicle with Driver,TRANSPORT,DIRECT TRANSPORT COSTS,REVENUE
Walsall Council,http://opendatacommunities.org/id/metropolitan-district-council/walsall ,WC159-18,29.02.2024,CHILDRENS,247 CARS (WILLENHALL) LIMITED,26/02/2024,961.20,6241-Hire of Vehicle with Driver,TRANSPORT,DIRECT TRANSPORT COSTS,REVENUE
Walsall Council,http://opendatacommunities.org/id/metropolitan-district-council/walsall ,WC159-19,29.02.2024,CHILDRENS,247 CARS (WILLENHALL) LIMITED,26/02/2024,"4,080.00",6241-Hire of Vehicle with Driver,TRANSPORT,DIRECT TRANSPORT COSTS,REVENUE
Walsall Council,http://opendatacommunities.org/id/metropolitan-district-council/walsall ,WC159-20,29.02.2024,CHILDRENS,247 CARS (WILLENHALL) LIMITED,26/02/2024,"1,757.50",6241-Hire of Vehicle with Driver,TRANSPORT,DIRECT TRANSPORT COSTS,REVENUE
Walsall Council,http://opendatacommunities.org/id/metropolitan-district-council/walsall ,WC159-21,29.02.2024,CHILDRENS,247 CARS (WILLENHALL) LIMITED,26/02/2024,"1,757.50",6241-Hire of Vehicle with Driver,TRANSPORT,DIRECT TRANSPORT COSTS,REVENUE
Walsall Council,http://opendatacommunities.org/id/metropolitan-district-council/walsall ,WC159-22,29.02.2024,CHILDRENS,247 CARS (WILLENHALL) LIMITED,26/02/2024,"2,158.40",6241-Hire of Vehicle with Driver,TRANSPORT,DIRECT TRANSPORT COSTS,REVENUE
Walsall Council,http://opendatacommunities.org/id/metropolitan-district-council/walsall ,WC159-23,29.02.2024,CHILDRENS,247 CARS (WILLENHALL) LIMITED,26/02/2024,"2,140.00",6241-Hire of Vehicle with Driver,TRANSPORT,DIRECT TRANSPORT COSTS,REVENUE
Walsall Council,http://opendatacommunities.org/id/metropolitan-district-council/walsall ,WC159-24,29.02.2024,CHILDRENS,247 CARS (WILLENHALL) LIMITED,26/02/2024,"2,060.00",6241-Hire of Vehicle with Driver,TRANSPORT,DIRECT TRANSPORT COSTS,REVENUE
Walsall Council,http://opendatacommunities.org/id/metropolitan-district-council/walsall ,WC159-25,29.02.2024,CHILDRENS,247 CARS (WILLENHALL) LIMITED,26/02/2024,"2,554.00",6241-Hire of Vehicle with Driver,TRANSPORT,DIRECT TRANSPORT COSTS,REVENUE
Walsall Council,http://opendatacommunities.org/id/metropolitan-district-council/walsall ,WC159-26,29.02.2024,CHILDRENS,247 CARS (WILLENHALL) LIMITED,26/02/2024,"1,757.50",6241-Hire of Vehicle with Driver,TRANSPORT,DIRECT TRANSPORT COSTS,REVENUE
Walsall Council,http://opendatacommunities.org/id/metropolitan-district-council/walsall ,WC159-27,29.02.2024,CHILDRENS,247 CARS (WILLENHALL) LIMITED,26/02/2024,"2,158.40",6241-Hire of Vehicle with Driver,TRANSPORT,DIRECT TRANSPORT COSTS,REVENUE
Walsall Council,http://opendatacommunities.org/id/metropolitan-district-council/walsall ,WC159-28,29.02.2024,CHILDRENS,247 CARS (WILLENHALL) LIMITED,26/02/2024,"2,114.60",6241-Hire of Vehicle with Driver,TRANSPORT,DIRECT TRANSPORT COSTS,REVENUE
Walsall Council,http://opendatacommunities.org/id/metropolitan-district-council/walsall ,WC159-29,29.02.2024,CHILDRENS,247 CARS (WILLENHALL) LIMITED,26/02/2024,"1,797.40",6241-Hire of Vehicle with Driver,TRANSPORT,DIRECT TRANSPORT COSTS,REVENUE
Walsall Council,http://opendatacommunities.org/id/metropolitan-district-council/walsall ,WC159-30,29.02.2024,CHILDRENS,247 CARS (WILLENHALL) LIMITED,26/02/2024,"2,191.60",6241-Hire of Vehicle with Driver,TRANSPORT,DIRECT TRANSPORT COSTS,REVENUE
Walsall Council,http://opendatacommunities.org/id/metropolitan-district-council/walsall ,WC159-31,29.02.2024,CHILDRENS,247 CARS (WILLENHALL) LIMITED,26/02/2024,"2,532.60",6241-Hire of Vehicle with Driver,TRANSPORT,DIRECT TRANSPORT COSTS,REVENUE
Walsall Council,http://opendatacommunities.org/id/metropolitan-district-council/walsall ,WC159-32,29.02.2024,CHILDRENS,247 CARS (WILLENHALL) LIMITED,26/02/2024,"1,780.00",6241-Hire of Vehicle with Driver,TRANSPORT,DIRECT TRANSPORT COSTS,REVENUE
Walsall Council,http://opendatacommunities.org/id/metropolitan-district-council/walsall ,WC159-33,29.02.2024,CHILDRENS,247 CARS (WILLENHALL) LIMITED,26/02/2024,"2,877.17",6241-Hire of Vehicle with Driver,TRANSPORT,DIRECT TRANSPORT COSTS,REVENUE
Walsall Council,http://opendatacommunities.org/id/metropolitan-district-council/walsall ,WC159-34,29.02.2024,CHILDRENS,247 CARS (WILLENHALL) LIMITED,26/02/2024,"2,158.40",6241-Hire of Vehicle with Driver,TRANSPORT,DIRECT TRANSPORT COSTS,REVENUE
Walsall Council,http://opendatacommunities.org/id/metropolitan-district-council/walsall ,WC159-35,29.02.2024,CHILDRENS,247 CARS (WILLENHALL) LIMITED,26/02/2024,"2,400.00",6241-Hire of Vehicle with Driver,TRANSPORT,DIRECT TRANSPORT COSTS,REVENUE
Walsall Council,http://opendatacommunities.org/id/metropolitan-district-council/walsall ,WC159-36,29.02.2024,CHILDRENS,247 CARS (WILLENHALL) LIMITED,26/02/2024,"2,400.60",6241-Hire of Vehicle with Driver,TRANSPORT,DIRECT TRANSPORT COSTS,REVENUE
Walsall Council,http://opendatacommunities.org/id/metropolitan-district-council/walsall ,WC159-37,29.02.2024,CHILDRENS,247 CARS (WILLENHALL) LIMITED,26/02/2024,"3,316.60",6241-Hire of Vehicle with Driver,TRANSPORT,DIRECT TRANSPORT COSTS,REVENUE
Walsall Council,http://opendatacommunities.org/id/metropolitan-district-council/walsall ,WC159-38,29.02.2024,CHILDRENS,247 CARS (WILLENHALL) LIMITED,26/02/2024,"3,621.40",6241-Hire of Vehicle with Driver,TRANSPORT,DIRECT TRANSPORT COSTS,REVENUE
Walsall Council,http://opendatacommunities.org/id/metropolitan-district-council/walsall ,WC159-39,29.02.2024,CHILDRENS,247 CARS (WILLENHALL) LIMITED,26/02/2024,"2,373.10",6241-Hire of Vehicle with Driver,TRANSPORT,DIRECT TRANSPORT COSTS,REVENUE
Walsall Council,http://opendatacommunities.org/id/metropolitan-district-council/walsall ,WC159-40,29.02.2024,CHILDRENS,247 CARS (WILLENHALL) LIMITED,26/02/2024,"1,914.44",6241-Hire of Vehicle with Driver,TRANSPORT,DIRECT TRANSPORT COSTS,REVENUE
Walsall Council,http://opendatacommunities.org/id/metropolitan-district-council/walsall ,WC159-41,29.02.2024,CHILDRENS,247 CARS (WILLENHALL) LIMITED,26/02/2024,"1,330.00",6241-Hire of Vehicle with Driver,TRANSPORT,DIRECT TRANSPORT COSTS,REVENUE
Walsall Council,http://opendatacommunities.org/id/metropolitan-district-council/walsall ,WC159-42,29.02.2024,CHILDRENS,247 CARS (WILLENHALL) LIMITED,26/02/2024,"2,158.40",6241-Hire of Vehicle with Driver,TRANSPORT,DIRECT TRANSPORT COSTS,REVENUE
Walsall Council,http://opendatacommunities.org/id/metropolitan-district-council/walsall ,WC159-43,29.02.2024,CHILDRENS,247 CARS (WILLENHALL) LIMITED,26/02/2024,"2,158.40",6241-Hire of Vehicle with Driver,TRANSPORT,DIRECT TRANSPORT COSTS,REVENUE
Walsall Council,http://opendatacommunities.org/id/metropolitan-district-council/walsall ,WC159-44,29.02.2024,CHILDRENS,247 CARS (WILLENHALL) LIMITED,26/02/2024,"2,158.40",6241-Hire of Vehicle with Driver,TRANSPORT,DIRECT TRANSPORT COSTS,REVENUE
Walsall Council,http://opendatacommunities.org/id/metropolitan-district-council/walsall ,WC159-45,29.02.2024,CHILDRENS,247 CARS (WILLENHALL) LIMITED,26/02/2024,"2,158.40",6241-Hire of Vehicle with Driver,TRANSPORT,DIRECT TRANSPORT COSTS,REVENUE
Walsall Council,http://opendatacommunities.org/id/metropolitan-district-council/walsall ,WC159-46,29.02.2024,CHILDRENS,247 CARS (WILLENHALL) LIMITED,26/02/2024,"1,520.00",6241-Hire of Vehicle with Driver,TRANSPORT,DIRECT TRANSPORT COSTS,REVENUE
Walsall Council,http://opendatacommunities.org/id/metropolitan-district-council/walsall ,WC159-47,29.02.2024,CHILDRENS,247 CARS (WILLENHALL) LIMITED,26/02/2024,"1,690.00",6241-Hire of Vehicle with Driver,TRANSPORT,DIRECT TRANSPORT COSTS,REVENUE
Walsall Council,http://opendatacommunities.org/id/metropolitan-district-council/walsall ,WC159-48,29.02.2024,CHILDRENS,247 CARS (WILLENHALL) LIMITED,26/02/2024,"1,481.60",6241-Hire of Vehicle with Driver,TRANSPORT,DIRECT TRANSPORT COSTS,REVENUE
Walsall Council,http://opendatacommunities.org/id/metropolitan-district-council/walsall ,WC159-49,29.02.2024,CHILDRENS,247 CARS (WILLENHALL) LIMITED,26/02/2024,"2,622.00",6241-Hire of Vehicle with Driver,TRANSPORT,DIRECT TRANSPORT COSTS,REVENUE
Walsall Council,http://opendatacommunities.org/id/metropolitan-district-council/walsall ,WC159-50,29.02.2024,CHILDRENS,247 CARS (WILLENHALL) LIMITED,26/02/2024,"1,520.00",6241-Hire of Vehicle with Driver,TRANSPORT,DIRECT TRANSPORT COSTS,REVENUE
Walsall Council,http://opendatacommunities.org/id/metropolitan-district-council/walsall ,WC159-51,29.02.2024,CHILDRENS,247 CARS (WILLENHALL) LIMITED,26/02/2024,846.37,6241-Hire of Vehicle with Driver,TRANSPORT,DIRECT TRANSPORT COSTS,REVENUE
Walsall Council,http://opendatacommunities.org/id/metropolitan-district-council/walsall ,WC159-52,29.02.2024,CHILDRENS,247 CARS (WILLENHALL) LIMITED,26/02/2024,-721.25,6241-Hire of Vehicle with Driver,TRANSPORT,DIRECT TRANSPORT COSTS,REVENUE
Walsall Council,http://opendatacommunities.org/id/metropolitan-district-council/walsall ,WC159-53,29.02.2024,CHILDRENS,247 CARS (WILLENHALL) LIMITED,26/02/2024,"2,602.60",6241-Hire of Vehicle with Driver,TRANSPORT,DIRECT TRANSPORT COSTS,REVENUE
Walsall Council,http://opendatacommunities.org/id/metropolitan-district-council/walsall ,WC159-54,29.02.2024,CHILDRENS,247 CARS (WILLENHALL) LIMITED,26/02/2024,"2,822.00",6241-Hire of Vehicle with Driver,TRANSPORT,DIRECT TRANSPORT COSTS,REVENUE
Walsall Council,http://opendatacommunities.org/id/metropolitan-district-council/walsall ,WC159-55,29.02.2024,CHILDRENS,247 CARS (WILLENHALL) LIMITED,26/02/2024,"1,130.88",6241-Hire of Vehicle with Driver,TRANSPORT,DIRECT TRANSPORT COSTS,REVENUE
Walsall Council,http://opendatacommunities.org/id/metropolitan-district-council/walsall ,WC159-56,29.02.2024,CHILDRENS,247 CARS (WILLENHALL) LIMITED,26/02/2024,"1,777.00",6241-Hire of Vehicle with Driver,TRANSPORT,DIRECT TRANSPORT COSTS,REVENUE
Walsall Council,http://opendatacommunities.org/id/metropolitan-district-council/walsall ,WC159-57,29.02.2024,CHILDRENS,247 CARS (WILLENHALL) LIMITED,26/02/2024,"1,332.75",6241-Hire of Vehicle with Driver,TRANSPORT,DIRECT TRANSPORT COSTS,REVENUE
Walsall Council,http://opendatacommunities.org/id/metropolitan-district-council/walsall ,WC159-58,29.02.2024,RESOURCES AND TRANSFORMATION,3 SPIRIT UK TRAINING & CONSULTANCY,06/02/2024,700.00,6625-Consultant Fees,SUPPLIES & SERVICES,SERVICES,REVENUE
Walsall Council,http://opendatacommunities.org/id/metropolitan-district-council/walsall ,WC159-59,29.02.2024,CHILDRENS,5 CARE SERVICES LTD,02/02/2024,486.00,6220-Professional Fees & Services,SUPPLIES & SERVICES,SERVICES,REVENUE
Walsall Council,http://opendatacommunities.org/id/metropolitan-district-council/walsall ,WC159-60,29.02.2024,CHILDRENS,5 CARE SERVICES LTD,02/02/2024,540.00,6220-Professional Fees & Services,SUPPLIES & SERVICES,SERVICES,REVENUE
Walsall Council,http://opendatacommunities.org/id/metropolitan-district-council/walsall ,WC159-61,29.02.2024,CHILDRENS,5 CARE SERVICES LTD,28/02/2024,801.00,6220-Professional Fees & Services,SUPPLIES & SERVICES,SERVICES,REVENUE
Walsall Council,http://opendatacommunities.org/id/metropolitan-district-council/walsall ,WC159-62,29.02.2024,CHILDRENS,5 CARE SERVICES LTD,28/02/2024,288.00,6220-Professional Fees & Services,SUPPLIES & SERVICES,SERVICES,REVENUE
Walsall Council,http://opendatacommunities.org/id/metropolitan-district-council/walsall ,WC159-63,29.02.2024,CHILDRENS,5 CARE SERVICES LTD,12/02/2024,297.00,6220-Professional Fees & Services,SUPPLIES & SERVICES,SERVICES,REVENUE
Walsall Council,http://opendatacommunities.org/id/metropolitan-district-council/walsall ,WC159-64,29.02.2024,CHILDRENS,5 CARE SERVICES LTD,12/02/2024,792.00,6220-Professional Fees & Services,SUPPLIES & SERVICES,SERVICES,REVENUE
Walsall Council,http://opendatacommunities.org/id/metropolitan-district-council/walsall ,WC159-65,29.02.2024,CHILDRENS,5 CARE SERVICES LTD,12/02/2024,396.00,6220-Professional Fees & Services,SUPPLIES & SERVICES,SERVICES,REVENUE
Walsall Council,http://opendatacommunities.org/id/metropolitan-district-council/walsall ,WC159-66,29.02.2024,CHILDRENS,5 CARE SERVICES LTD,12/02/2024,"2,196.00",6220-Professional Fees & Services,SUPPLIES & SERVICES,SERVICES,REVENUE
Walsall Council,http://opendatacommunities.org/id/metropolitan-district-council/walsall ,WC159-67,29.02.2024,CHILDRENS,5 CARE SERVICES LTD,22/02/2024,495.00,6220-Professional Fees & Services,SUPPLIES & SERVICES,SERVICES,REVENUE
Walsall Council,http://opendatacommunities.org/id/metropolitan-district-council/walsall ,WC159-68,29.02.2024,CHILDRENS,5 CARE SERVICES LTD,22/02/2024,792.00,6220-Professional Fees & Services,SUPPLIES & SERVICES,SERVICES,REVENUE
Walsall Council,http://opendatacommunities.org/id/metropolitan-district-council/walsall ,WC159-69,29.02.2024,CHILDRENS,5 CARE SERVICES LTD,29/02/2024,"1,206.00",6220-Professional Fees & Services,SUPPLIES & SERVICES,SERVICES,REVENUE
Walsall Council,http://opendatacommunities.org/id/metropolitan-district-council/walsall ,WC159-70,29.02.2024,CHILDRENS,5 CARE SERVICES LTD,23/02/2024,"2,340.00",6220-Professional Fees & Services,SUPPLIES & SERVICES,SERVICES,REVENUE
Walsall Council,http://opendatacommunities.org/id/metropolitan-district-council/walsall ,WC159-71,29.02.2024,ADULT SOCIAL CARE,5 CARE SERVICES LTD,08/02/2024,567.00,6554-Professional Services-Priv Contractor & Other Agencies,THIRD PARTY PAYMENTS,PRIVATE CONTRACTOR,REVENUE
Walsall Council,http://opendatacommunities.org/id/metropolitan-district-council/walsall ,WC159-72,29.02.2024,ADULT SOCIAL CARE,5 CARE SERVICES LTD,08/02/2024,342.00,6554-Professional Services-Priv Contractor & Other Agencies,THIRD PARTY PAYMENTS,PRIVATE CONTRACTOR,REVENUE
Walsall Council,http://opendatacommunities.org/id/metropolitan-district-council/walsall ,WC159-73,29.02.2024,ADULT SOCIAL CARE,5 CARE SERVICES LTD,08/02/2024,"2,016.00",6554-Professional Services-Priv Contractor & Other Agencies,THIRD PARTY PAYMENTS,PRIVATE CONTRACTOR,REVENUE
Walsall Council,http://opendatacommunities.org/id/metropolitan-district-council/walsall ,WC159-74,29.02.2024,ADULT SOCIAL CARE,5 CARE SERVICES LTD,08/02/2024,382.50,6554-Professional Services-Priv Contractor & Other Agencies,THIRD PARTY PAYMENTS,PRIVATE CONTRACTOR,REVENUE
Walsall Council,http://opendatacommunities.org/id/metropolitan-district-council/walsall ,WC159-75,29.02.2024,ADULT SOCIAL CARE,5 CARE SERVICES LTD,08/02/2024,526.50,6554-Professional Services-Priv Contractor & Other Agencies,THIRD PARTY PAYMENTS,PRIVATE CONTRACTOR,REVENUE
Walsall Council,http://opendatacommunities.org/id/metropolitan-district-council/walsall ,WC159-76,29.02.2024,ADULT SOCIAL CARE,5 CARE SERVICES LTD,08/02/2024,"4,248.00",6554-Professional Services-Priv Contractor & Other Agencies,THIRD PARTY PAYMENTS,PRIVATE CONTRACTOR,REVENUE
Walsall Council,http://opendatacommunities.org/id/metropolitan-district-council/walsall ,WC159-77,29.02.2024,ADULT SOCIAL CARE,5 CARE SERVICES LTD,08/02/2024,"1,134.00",6554-Professional Services-Priv Contractor & Other Agencies,THIRD PARTY PAYMENTS,PRIVATE CONTRACTOR,REVENUE
Walsall Council,http://opendatacommunities.org/id/metropolitan-district-council/walsall ,WC159-78,29.02.2024,ADULT SOCIAL CARE,5 CARE SERVICES LTD,08/02/2024,567.00,6554-Professional Services-Priv Contractor & Other Agencies,THIRD PARTY PAYMENTS,PRIVATE CONTRACTOR,REVENUE
Walsall Council,http://opendatacommunities.org/id/metropolitan-district-council/walsall ,WC159-79,29.02.2024,ADULT SOCIAL CARE,5 CARE SERVICES LTD,08/02/2024,"2,574.00",6554-Professional Services-Priv Contractor & Other Agencies,THIRD PARTY PAYMENTS,PRIVATE CONTRACTOR,REVENUE
Walsall Council,http://opendatacommunities.org/id/metropolitan-district-council/walsall ,WC159-80,29.02.2024,ADULT SOCIAL CARE,5 CARE SERVICES LTD,08/02/2024,949.50,6554-Professional Services-Priv Contractor & Other Agencies,THIRD PARTY PAYMENTS,PRIVATE CONTRACTOR,REVENUE
Walsall Council,http://opendatacommunities.org/id/metropolitan-district-council/walsall ,WC159-81,29.02.2024,ADULT SOCIAL CARE,5 CARE SERVICES LTD,12/02/2024,774.00,6541-Domiciliary Care,THIRD PARTY PAYMENTS,PRIVATE CONTRACTOR,REVENUE
Walsall Council,http://opendatacommunities.org/id/metropolitan-district-council/walsall ,WC159-82,29.02.2024,ADULT SOCIAL CARE,5 CARE SERVICES LTD,12/02/2024,283.50,6541-Domiciliary Care,THIRD PARTY PAYMENTS,PRIVATE CONTRACTOR,REVENUE
Walsall Council,http://opendatacommunities.org/id/metropolitan-district-council/walsall ,WC159-83,29.02.2024,ADULT SOCIAL CARE,5 CARE SERVICES LTD,12/02/2024,"1,008.00",6541-Domiciliary Care,THIRD PARTY PAYMENTS,PRIVATE CONTRACTOR,REVENUE
Walsall Council,http://opendatacommunities.org/id/metropolitan-district-council/walsall ,WC159-84,29.02.2024,ADULT SOCIAL CARE,5 CARE SERVICES LTD,12/02/2024,693.00,6541-Domiciliary Care,THIRD PARTY PAYMENTS,PRIVATE CONTRACTOR,REVENUE
Walsall Council,http://opendatacommunities.org/id/metropolitan-district-council/walsall ,WC159-85,29.02.2024,ADULT SOCIAL CARE,5 CARE SERVICES LTD,12/02/2024,"1,386.00",6541-Domiciliary Care,THIRD PARTY PAYMENTS,PRIVATE CONTRACTOR,REVENUE
Walsall Council,http://opendatacommunities.org/id/metropolitan-district-council/walsall ,WC159-86,29.02.2024,ADULT SOCIAL CARE,5 CARE SERVICES LTD,12/02/2024,324.00,6541-Domiciliary Care,THIRD PARTY PAYMENTS,PRIVATE CONTRACTOR,REVENUE
Walsall Council,http://opendatacommunities.org/id/metropolitan-district-council/walsall ,WC159-87,29.02.2024,ADULT SOCIAL CARE,5 CARE SERVICES LTD,12/02/2024,756.00,6541-Domiciliary Care,THIRD PARTY PAYMENTS,PRIVATE CONTRACTOR,REVENUE
Walsall Council,http://opendatacommunities.org/id/metropolitan-district-council/walsall ,WC159-88,29.02.2024,ADULT SOCIAL CARE,5 CARE SERVICES LTD,12/02/2024,283.50,6541-Domiciliary Care,THIRD PARTY PAYMENTS,PRIVATE CONTRACTOR,REVENUE
Walsall Council,http://opendatacommunities.org/id/metropolitan-district-council/walsall ,WC159-89,29.02.2024,ADULT SOCIAL CARE,5 CARE SERVICES LTD,12/02/2024,819.00,6541-Domiciliary Care,THIRD PARTY PAYMENTS,PRIVATE CONTRACTOR,REVENUE
Walsall Council,http://opendatacommunities.org/id/metropolitan-district-council/walsall ,WC159-90,29.02.2024,ADULT SOCIAL CARE,5 CARE SERVICES LTD,12/02/2024,450.00,6541-Domiciliary Care,THIRD PARTY PAYMENTS,PRIVATE CONTRACTOR,REVENUE
Walsall Council,http://opendatacommunities.org/id/metropolitan-district-council/walsall ,WC159-91,29.02.2024,ADULT SOCIAL CARE,5 CARE SERVICES LTD,12/02/2024,567.00,6541-Domiciliary Care,THIRD PARTY PAYMENTS,PRIVATE CONTRACTOR,REVENUE
Walsall Council,http://opendatacommunities.org/id/metropolitan-district-council/walsall ,WC159-92,29.02.2024,ADULT SOCIAL CARE,5 CARE SERVICES LTD,12/02/2024,256.50,6541-Domiciliary Care,THIRD PARTY PAYMENTS,PRIVATE CONTRACTOR,REVENUE
Walsall Council,http://opendatacommunities.org/id/metropolitan-district-council/walsall ,WC159-93,29.02.2024,ADULT SOCIAL CARE,5 CARE SERVICES LTD,12/02/2024,486.00,6541-Domiciliary Care,THIRD PARTY PAYMENTS,PRIVATE CONTRACTOR,REVENUE
Walsall Council,http://opendatacommunities.org/id/metropolitan-district-council/walsall ,WC159-94,29.02.2024,ADULT SOCIAL CARE,5 CARE SERVICES LTD,12/02/2024,294.00,6541-Domiciliary Care,THIRD PARTY PAYMENTS,PRIVATE CONTRACTOR,REVENUE
Walsall Council,http://opendatacommunities.org/id/metropolitan-district-council/walsall ,WC159-95,29.02.2024,ADULT SOCIAL CARE,5 CARE SERVICES LTD,12/02/2024,567.00,6541-Domiciliary Care,THIRD PARTY PAYMENTS,PRIVATE CONTRACTOR,REVENUE
Walsall Council,http://opendatacommunities.org/id/metropolitan-district-council/walsall ,WC159-96,29.02.2024,ADULT SOCIAL CARE,5 CARE SERVICES LTD,12/02/2024,283.50,6541-Domiciliary Care,THIRD PARTY PAYMENTS,PRIVATE CONTRACTOR,REVENUE
Walsall Council,http://opendatacommunities.org/id/metropolitan-district-council/walsall ,WC159-97,29.02.2024,ADULT SOCIAL CARE,5 CARE SERVICES LTD,12/02/2024,756.00,6541-Domiciliary Care,THIRD PARTY PAYMENTS,PRIVATE CONTRACTOR,REVENUE
Walsall Council,http://opendatacommunities.org/id/metropolitan-district-council/walsall ,WC159-98,29.02.2024,ADULT SOCIAL CARE,5 CARE SERVICES LTD,12/02/2024,630.00,6541-Domiciliary Care,THIRD PARTY PAYMENTS,PRIVATE CONTRACTOR,REVENUE
Walsall Council,http://opendatacommunities.org/id/metropolitan-district-council/walsall ,WC159-99,29.02.2024,ADULT SOCIAL CARE,5 CARE SERVICES LTD,12/02/2024,630.00,6541-Domiciliary Care,THIRD PARTY PAYMENTS,PRIVATE CONTRACTOR,REVENUE
Walsall Council,http://opendatacommunities.org/id/metropolitan-district-council/walsall ,WC159-100,29.02.2024,ADULT SOCIAL CARE,5 CARE SERVICES LTD,12/02/2024,378.00,6541-Domiciliary Care,THIRD PARTY PAYMENTS,PRIVATE CONTRACTOR,REVENUE
Walsall Council,http://opendatacommunities.org/id/metropolitan-district-council/walsall ,WC159-101,29.02.2024,ADULT SOCIAL CARE,5 CARE SERVICES LTD,12/02/2024,252.00,6541-Domiciliary Care,THIRD PARTY PAYMENTS,PRIVATE CONTRACTOR,REVENUE
Walsall Council,http://opendatacommunities.org/id/metropolitan-district-council/walsall ,WC159-102,29.02.2024,ADULT SOCIAL CARE,5 CARE SERVICES LTD,12/02/2024,486.00,6541-Domiciliary Care,THIRD PARTY PAYMENTS,PRIVATE CONTRACTOR,REVENUE
Walsall Council,http://opendatacommunities.org/id/metropolitan-district-council/walsall ,WC159-103,29.02.2024,ADULT SOCIAL CARE,5 CARE SERVICES LTD,12/02/2024,567.00,6541-Domiciliary Care,THIRD PARTY PAYMENTS,PRIVATE CONTRACTOR,REVENUE
Walsall Council,http://opendatacommunities.org/id/metropolitan-district-council/walsall ,WC159-104,29.02.2024,ADULT SOCIAL CARE,5 CARE SERVICES LTD,12/02/2024,504.00,6541-Domiciliary Care,THIRD PARTY PAYMENTS,PRIVATE CONTRACTOR,REVENUE
Walsall Council,http://opendatacommunities.org/id/metropolitan-district-council/walsall ,WC159-105,29.02.2024,ADULT SOCIAL CARE,5 CARE SERVICES LTD,12/02/2024,297.00,6541-Domiciliary Care,THIRD PARTY PAYMENTS,PRIVATE CONTRACTOR,REVENUE
Walsall Council,http://opendatacommunities.org/id/metropolitan-district-council/walsall ,WC159-106,29.02.2024,ADULT SOCIAL CARE,5 CARE SERVICES LTD,12/02/2024,567.00,6541-Domiciliary Care,THIRD PARTY PAYMENTS,PRIVATE CONTRACTOR,REVENUE
Walsall Council,http://opendatacommunities.org/id/metropolitan-district-council/walsall ,WC159-107,29.02.2024,ADULT SOCIAL CARE,5 CARE SERVICES LTD,12/02/2024,567.00,6541-Domiciliary Care,THIRD PARTY PAYMENTS,PRIVATE CONTRACTOR,REVENUE
Walsall Council,http://opendatacommunities.org/id/metropolitan-district-council/walsall ,WC159-108,29.02.2024,ADULT SOCIAL CARE,5 CARE SERVICES LTD,12/02/2024,630.00,6541-Domiciliary Care,THIRD PARTY PAYMENTS,PRIVATE CONTRACTOR,REVENUE
Walsall Council,http://opendatacommunities.org/id/metropolitan-district-council/walsall ,WC159-109,29.02.2024,ADULT SOCIAL CARE,5 CARE SERVICES LTD,12/02/2024,567.00,6541-Domiciliary Care,THIRD PARTY PAYMENTS,PRIVATE CONTRACTOR,REVENUE
Walsall Council,http://opendatacommunities.org/id/metropolitan-district-council/walsall ,WC159-110,29.02.2024,ADULT SOCIAL CARE,5 CARE SERVICES LTD,12/02/2024,261.00,6541-Domiciliary Care,THIRD PARTY PAYMENTS,PRIVATE CONTRACTOR,REVENUE
Walsall Council,http://opendatacommunities.org/id/metropolitan-district-council/walsall ,WC159-111,29.02.2024,ADULT SOCIAL CARE,5 CARE SERVICES LTD,12/02/2024,567.00,6541-Domiciliary Care,THIRD PARTY PAYMENTS,PRIVATE CONTRACTOR,REVENUE
Walsall Council,http://opendatacommunities.org/id/metropolitan-district-council/walsall ,WC159-112,29.02.2024,ADULT SOCIAL CARE,5 CARE SERVICES LTD,12/02/2024,567.00,6541-Domiciliary Care,THIRD PARTY PAYMENTS,PRIVATE CONTRACTOR,REVENUE
Walsall Council,http://opendatacommunities.org/id/metropolitan-district-council/walsall ,WC159-113,29.02.2024,ADULT SOCIAL CARE,5 CARE SERVICES LTD,12/02/2024,567.00,6541-Domiciliary Care,THIRD PARTY PAYMENTS,PRIVATE CONTRACTOR,REVENUE
Walsall Council,http://opendatacommunities.org/id/metropolitan-district-council/walsall ,WC159-114,29.02.2024,ADULT SOCIAL CARE,5 CARE SERVICES LTD,12/02/2024,283.50,6541-Domiciliary Care,THIRD PARTY PAYMENTS,PRIVATE CONTRACTOR,REVENUE
Walsall Council,http://opendatacommunities.org/id/metropolitan-district-council/walsall ,WC159-115,29.02.2024,ADULT SOCIAL CARE,5 CARE SERVICES LTD,12/02/2024,864.00,6541-Domiciliary Care,THIRD PARTY PAYMENTS,PRIVATE CONTRACTOR,REVENUE
Walsall Council,http://opendatacommunities.org/id/metropolitan-district-council/walsall ,WC159-116,29.02.2024,ADULT SOCIAL CARE,5 CARE SERVICES LTD,12/02/2024,567.00,6541-Domiciliary Care,THIRD PARTY PAYMENTS,PRIVATE CONTRACTOR,REVENUE
Walsall Council,http://opendatacommunities.org/id/metropolitan-district-council/walsall ,WC159-117,29.02.2024,ADULT SOCIAL CARE,5 CARE SERVICES LTD,12/02/2024,504.00,6541-Domiciliary Care,THIRD PARTY PAYMENTS,PRIVATE CONTRACTOR,REVENUE
Walsall Council,http://opendatacommunities.org/id/metropolitan-district-council/walsall ,WC159-118,29.02.2024,ADULT SOCIAL CARE,5 CARE SERVICES LTD,12/02/2024,567.00,6541-Domiciliary Care,THIRD PARTY PAYMENTS,PRIVATE CONTRACTOR,REVENUE
Walsall Council,http://opendatacommunities.org/id/metropolitan-district-council/walsall ,WC159-119,29.02.2024,ADULT SOCIAL CARE,5 CARE SERVICES LTD,12/02/2024,567.00,6541-Domiciliary Care,THIRD PARTY PAYMENTS,PRIVATE CONTRACTOR,REVENUE
Walsall Council,http://opendatacommunities.org/id/metropolitan-district-council/walsall ,WC159-120,29.02.2024,ADULT SOCIAL CARE,5 CARE SERVICES LTD,12/02/2024,630.00,6541-Domiciliary Care,THIRD PARTY PAYMENTS,PRIVATE CONTRACTOR,REVENUE
Walsall Council,http://opendatacommunities.org/id/metropolitan-district-council/walsall ,WC159-121,29.02.2024,ADULT SOCIAL CARE,5 CARE SERVICES LTD,12/02/2024,567.00,6541-Domiciliary Care,THIRD PARTY PAYMENTS,PRIVATE CONTRACTOR,REVENUE
Walsall Council,http://opendatacommunities.org/id/metropolitan-district-council/walsall ,WC159-122,29.02.2024,ADULT SOCIAL CARE,5 CARE SERVICES LTD,12/02/2024,756.00,6541-Domiciliary Care,THIRD PARTY PAYMENTS,PRIVATE CONTRACTOR,REVENUE
Walsall Council,http://opendatacommunities.org/id/metropolitan-district-council/walsall ,WC159-123,29.02.2024,ADULT SOCIAL CARE,5 CARE SERVICES LTD,12/02/2024,630.00,6541-Domiciliary Care,THIRD PARTY PAYMENTS,PRIVATE CONTRACTOR,REVENUE
Walsall Council,http://opendatacommunities.org/id/metropolitan-district-council/walsall ,WC159-124,29.02.2024,ADULT SOCIAL CARE,5 CARE SERVICES LTD,12/02/2024,567.00,6541-Domiciliary Care,THIRD PARTY PAYMENTS,PRIVATE CONTRACTOR,REVENUE
Walsall Council,http://opendatacommunities.org/id/metropolitan-district-council/walsall ,WC159-125,29.02.2024,ADULT SOCIAL CARE,5 CARE SERVICES LTD,12/02/2024,567.00,6541-Domiciliary Care,THIRD PARTY PAYMENTS,PRIVATE CONTRACTOR,REVENUE
Walsall Council,http://opendatacommunities.org/id/metropolitan-district-council/walsall ,WC159-126,29.02.2024,ADULT SOCIAL CARE,5 CARE SERVICES LTD,12/02/2024,360.00,6541-Domiciliary Care,THIRD PARTY PAYMENTS,PRIVATE CONTRACTOR,REVENUE
Walsall Council,http://opendatacommunities.org/id/metropolitan-district-council/walsall ,WC159-127,29.02.2024,ADULT SOCIAL CARE,5 CARE SERVICES LTD,12/02/2024,"1,008.00",6541-Domiciliary Care,THIRD PARTY PAYMENTS,PRIVATE CONTRACTOR,REVENUE
Walsall Council,http://opendatacommunities.org/id/metropolitan-district-council/walsall ,WC159-128,29.02.2024,ADULT SOCIAL CARE,5 CARE SERVICES LTD,12/02/2024,774.00,6541-Domiciliary Care,THIRD PARTY PAYMENTS,PRIVATE CONTRACTOR,REVENUE
Walsall Council,http://opendatacommunities.org/id/metropolitan-district-council/walsall ,WC159-129,29.02.2024,ADULT SOCIAL CARE,5 CARE SERVICES LTD,12/02/2024,283.50,6541-Domiciliary Care,THIRD PARTY PAYMENTS,PRIVATE CONTRACTOR,REVENUE
Walsall Council,http://opendatacommunities.org/id/metropolitan-district-council/walsall ,WC159-130,29.02.2024,ADULT SOCIAL CARE,5 CARE SERVICES LTD,12/02/2024,546.00,6541-Domiciliary Care,THIRD PARTY PAYMENTS,PRIVATE CONTRACTOR,REVENUE
Walsall Council,http://opendatacommunities.org/id/metropolitan-district-council/walsall ,WC159-131,29.02.2024,ADULT SOCIAL CARE,5 CARE SERVICES LTD,12/02/2024,486.00,6541-Domiciliary Care,THIRD PARTY PAYMENTS,PRIVATE CONTRACTOR,REVENUE
Walsall Council,http://opendatacommunities.org/id/metropolitan-district-council/walsall ,WC159-132,29.02.2024,ADULT SOCIAL CARE,5 CARE SERVICES LTD,12/02/2024,294.00,6541-Domiciliary Care,THIRD PARTY PAYMENTS,PRIVATE CONTRACTOR,REVENUE
Walsall Council,http://opendatacommunities.org/id/metropolitan-district-council/walsall ,WC159-133,29.02.2024,ADULT SOCIAL CARE,5 CARE SERVICES LTD,12/02/2024,567.00,6541-Domiciliary Care,THIRD PARTY PAYMENTS,PRIVATE CONTRACTOR,REVENUE
Walsall Council,http://opendatacommunities.org/id/metropolitan-district-council/walsall ,WC159-134,29.02.2024,ADULT SOCIAL CARE,5 CARE SERVICES LTD,12/02/2024,328.50,6541-Domiciliary Care,THIRD PARTY PAYMENTS,PRIVATE CONTRACTOR,REVENUE
Walsall Council,http://opendatacommunities.org/id/metropolitan-district-council/walsall ,WC159-135,29.02.2024,ADULT SOCIAL CARE,5 CARE SERVICES LTD,12/02/2024,621.00,6541-Domiciliary Care,THIRD PARTY PAYMENTS,PRIVATE CONTRACTOR,REVENUE
Walsall Council,http://opendatacommunities.org/id/metropolitan-district-council/walsall ,WC159-136,29.02.2024,ADULT SOCIAL CARE,5 CARE SERVICES LTD,12/02/2024,"1,386.00",6541-Domiciliary Care,THIRD PARTY PAYMENTS,PRIVATE CONTRACTOR,REVENUE
Walsall Council,http://opendatacommunities.org/id/metropolitan-district-council/walsall ,WC159-137,29.02.2024,ADULT SOCIAL CARE,5 CARE SERVICES LTD,12/02/2024,324.00,6541-Domiciliary Care,THIRD PARTY PAYMENTS,PRIVATE CONTRACTOR,REVENUE
Walsall Council,http://opendatacommunities.org/id/metropolitan-district-council/walsall ,WC159-138,29.02.2024,ADULT SOCIAL CARE,5 CARE SERVICES LTD,12/02/2024,756.00,6541-Domiciliary Care,THIRD PARTY PAYMENTS,PRIVATE CONTRACTOR,REVENUE
Walsall Council,http://opendatacommunities.org/id/metropolitan-district-council/walsall ,WC159-139,29.02.2024,ADULT SOCIAL CARE,5 CARE SERVICES LTD,12/02/2024,283.50,6541-Domiciliary Care,THIRD PARTY PAYMENTS,PRIVATE CONTRACTOR,REVENUE
Walsall Council,http://opendatacommunities.org/id/metropolitan-district-council/walsall ,WC159-140,29.02.2024,ADULT SOCIAL CARE,5 CARE SERVICES LTD,12/02/2024,819.00,6541-Domiciliary Care,THIRD PARTY PAYMENTS,PRIVATE CONTRACTOR,REVENUE
Walsall Council,http://opendatacommunities.org/id/metropolitan-district-council/walsall ,WC159-141,29.02.2024,ADULT SOCIAL CARE,5 CARE SERVICES LTD,12/02/2024,567.00,6541-Domiciliary Care,THIRD PARTY PAYMENTS,PRIVATE CONTRACTOR,REVENUE
Walsall Council,http://opendatacommunities.org/id/metropolitan-district-council/walsall ,WC159-142,29.02.2024,ADULT SOCIAL CARE,5 CARE SERVICES LTD,12/02/2024,256.50,6541-Domiciliary Care,THIRD PARTY PAYMENTS,PRIVATE CONTRACTOR,REVENUE
Walsall Council,http://opendatacommunities.org/id/metropolitan-district-council/walsall ,WC159-143,29.02.2024,ADULT SOCIAL CARE,5 CARE SERVICES LTD,12/02/2024,567.00,6541-Domiciliary Care,THIRD PARTY PAYMENTS,PRIVATE CONTRACTOR,REVENUE
Walsall Council,http://opendatacommunities.org/id/metropolitan-district-council/walsall ,WC159-144,29.02.2024,ADULT SOCIAL CARE,5 CARE SERVICES LTD,12/02/2024,378.00,6541-Domiciliary Care,THIRD PARTY PAYMENTS,PRIVATE CONTRACTOR,REVENUE
Walsall Council,http://opendatacommunities.org/id/metropolitan-district-council/walsall ,WC159-145,29.02.2024,ADULT SOCIAL CARE,5 CARE SERVICES LTD,12/02/2024,630.00,6541-Domiciliary Care,THIRD PARTY PAYMENTS,PRIVATE CONTRACTOR,REVENUE
Walsall Council,http://opendatacommunities.org/id/metropolitan-district-council/walsall ,WC159-146,29.02.2024,ADULT SOCIAL CARE,5 CARE SERVICES LTD,26/02/2024,756.00,6541-Domiciliary Care,THIRD PARTY PAYMENTS,PRIVATE CONTRACTOR,REVENUE
Walsall Council,http://opendatacommunities.org/id/metropolitan-district-council/walsall ,WC159-147,29.02.2024,ADULT SOCIAL CARE,5 CARE SERVICES LTD,26/02/2024,630.00,6541-Domiciliary Care,THIRD PARTY PAYMENTS,PRIVATE CONTRACTOR,REVENUE
Walsall Council,http://opendatacommunities.org/id/metropolitan-district-council/walsall ,WC159-148,29.02.2024,ADULT SOCIAL CARE,5 CARE SERVICES LTD,26/02/2024,360.00,6541-Domiciliary Care,THIRD PARTY PAYMENTS,PRIVATE CONTRACTOR,REVENUE
Walsall Council,http://opendatacommunities.org/id/metropolitan-district-council/walsall ,WC159-149,29.02.2024,ADULT SOCIAL CARE,5 CARE SERVICES LTD,26/02/2024,"1,008.00",6541-Domiciliary Care,THIRD PARTY PAYMENTS,PRIVATE CONTRACTOR,REVENUE
Walsall Council,http://opendatacommunities.org/id/metropolitan-district-council/walsall ,WC159-150,29.02.2024,ADULT SOCIAL CARE,5 CARE SERVICES LTD,26/02/2024,774.00,6541-Domiciliary Care,THIRD PARTY PAYMENTS,PRIVATE CONTRACTOR,REVENUE
Walsall Council,http://opendatacommunities.org/id/metropolitan-district-council/walsall ,WC159-151,29.02.2024,ADULT SOCIAL CARE,5 CARE SERVICES LTD,26/02/2024,283.50,6541-Domiciliary Care,THIRD PARTY PAYMENTS,PRIVATE CONTRACTOR,REVENUE
Walsall Council,http://opendatacommunities.org/id/metropolitan-district-council/walsall ,WC159-152,29.02.2024,ADULT SOCIAL CARE,5 CARE SERVICES LTD,26/02/2024,567.00,6541-Domiciliary Care,THIRD PARTY PAYMENTS,PRIVATE CONTRACTOR,REVENUE
Walsall Council,http://opendatacommunities.org/id/metropolitan-district-council/walsall ,WC159-153,29.02.2024,ADULT SOCIAL CARE,5 CARE SERVICES LTD,26/02/2024,567.00,6541-Domiciliary Care,THIRD PARTY PAYMENTS,PRIVATE CONTRACTOR,REVENUE
Walsall Council,http://opendatacommunities.org/id/metropolitan-district-council/walsall ,WC159-154,29.02.2024,ADULT SOCIAL CARE,5 CARE SERVICES LTD,26/02/2024,648.00,6541-Domiciliary Care,THIRD PARTY PAYMENTS,PRIVATE CONTRACTOR,REVENUE
Walsall Council,http://opendatacommunities.org/id/metropolitan-district-council/walsall ,WC159-155,29.02.2024,ADULT SOCIAL CARE,5 CARE SERVICES LTD,26/02/2024,"1,386.00",6541-Domiciliary Care,THIRD PARTY PAYMENTS,PRIVATE CONTRACTOR,REVENUE
Walsall Council,http://opendatacommunities.org/id/metropolitan-district-council/walsall ,WC159-156,29.02.2024,ADULT SOCIAL CARE,5 CARE SERVICES LTD,26/02/2024,324.00,6541-Domiciliary Care,THIRD PARTY PAYMENTS,PRIVATE CONTRACTOR,REVENUE
Walsall Council,http://opendatacommunities.org/id/metropolitan-district-council/walsall ,WC159-157,29.02.2024,ADULT SOCIAL CARE,5 CARE SERVICES LTD,26/02/2024,756.00,6541-Domiciliary Care,THIRD PARTY PAYMENTS,PRIVATE CONTRACTOR,REVENUE
Walsall Council,http://opendatacommunities.org/id/metropolitan-district-council/walsall ,WC159-158,29.02.2024,ADULT SOCIAL CARE,5 CARE SERVICES LTD,26/02/2024,283.50,6541-Domiciliary Care,THIRD PARTY PAYMENTS,PRIVATE CONTRACTOR,REVENUE
Walsall Council,http://opendatacommunities.org/id/metropolitan-district-council/walsall ,WC159-159,29.02.2024,ADULT SOCIAL CARE,5 CARE SERVICES LTD,26/02/2024,819.00,6541-Domiciliary Care,THIRD PARTY PAYMENTS,PRIVATE CONTRACTOR,REVENUE
Walsall Council,http://opendatacommunities.org/id/metropolitan-district-council/walsall ,WC159-160,29.02.2024,ADULT SOCIAL CARE,5 CARE SERVICES LTD,26/02/2024,486.00,6541-Domiciliary Care,THIRD PARTY PAYMENTS,PRIVATE CONTRACTOR,REVENUE
Walsall Council,http://opendatacommunities.org/id/metropolitan-district-council/walsall ,WC159-161,29.02.2024,ADULT SOCIAL CARE,5 CARE SERVICES LTD,26/02/2024,294.00,6541-Domiciliary Care,THIRD PARTY PAYMENTS,PRIVATE CONTRACTOR,REVENUE
Walsall Council,http://opendatacommunities.org/id/metropolitan-district-council/walsall ,WC159-162,29.02.2024,ADULT SOCIAL CARE,5 CARE SERVICES LTD,26/02/2024,567.00,6541-Domiciliary Care,THIRD PARTY PAYMENTS,PRIVATE CONTRACTOR,REVENUE
Walsall Council,http://opendatacommunities.org/id/metropolitan-district-council/walsall ,WC159-163,29.02.2024,ADULT SOCIAL CARE,5 CARE SERVICES LTD,26/02/2024,283.50,6541-Domiciliary Care,THIRD PARTY PAYMENTS,PRIVATE CONTRACTOR,REVENUE
Walsall Council,http://opendatacommunities.org/id/metropolitan-district-council/walsall ,WC159-164,29.02.2024,ADULT SOCIAL CARE,5 CARE SERVICES LTD,26/02/2024,567.00,6541-Domiciliary Care,THIRD PARTY PAYMENTS,PRIVATE CONTRACTOR,REVENUE
Walsall Council,http://opendatacommunities.org/id/metropolitan-district-council/walsall ,WC159-165,29.02.2024,ADULT SOCIAL CARE,5 CARE SERVICES LTD,26/02/2024,504.00,6541-Domiciliary Care,THIRD PARTY PAYMENTS,PRIVATE CONTRACTOR,REVENUE
Walsall Council,http://opendatacommunities.org/id/metropolitan-district-council/walsall ,WC159-166,29.02.2024,ADULT SOCIAL CARE,5 CARE SERVICES LTD,26/02/2024,567.00,6541-Domiciliary Care,THIRD PARTY PAYMENTS,PRIVATE CONTRACTOR,REVENUE
Walsall Council,http://opendatacommunities.org/id/metropolitan-district-council/walsall ,WC159-167,29.02.2024,ADULT SOCIAL CARE,5 CARE SERVICES LTD,26/02/2024,567.00,6541-Domiciliary Care,THIRD PARTY PAYMENTS,PRIVATE CONTRACTOR,REVENUE
Walsall Council,http://opendatacommunities.org/id/metropolitan-district-council/walsall ,WC159-168,29.02.2024,ADULT SOCIAL CARE,5 CARE SERVICES LTD,26/02/2024,256.50,6541-Domiciliary Care,THIRD PARTY PAYMENTS,PRIVATE CONTRACTOR,REVENUE
Walsall Council,http://opendatacommunities.org/id/metropolitan-district-council/walsall ,WC159-169,29.02.2024,ADULT SOCIAL CARE,5 CARE SERVICES LTD,26/02/2024,378.00,6541-Domiciliary Care,THIRD PARTY PAYMENTS,PRIVATE CONTRACTOR,REVENUE
Walsall Council,http://opendatacommunities.org/id/metropolitan-district-council/walsall ,WC159-170,29.02.2024,ADULT SOCIAL CARE,5 CARE SERVICES LTD,26/02/2024,630.00,6541-Domiciliary Care,THIRD PARTY PAYMENTS,PRIVATE CONTRACTOR,REVENUE
Walsall Council,http://opendatacommunities.org/id/metropolitan-district-council/walsall ,WC159-171,29.02.2024,ADULT SOCIAL CARE,5 CARE SERVICES LTD,26/02/2024,328.50,6541-Domiciliary Care,THIRD PARTY PAYMENTS,PRIVATE CONTRACTOR,REVENUE
Walsall Council,http://opendatacommunities.org/id/metropolitan-district-council/walsall ,WC159-172,29.02.2024,ADULT SOCIAL CARE,5 CARE SERVICES LTD,26/02/2024,567.00,6541-Domiciliary Care,THIRD PARTY PAYMENTS,PRIVATE CONTRACTOR,REVENUE
Walsall Council,http://opendatacommunities.org/id/metropolitan-district-council/walsall ,WC159-173,29.02.2024,ADULT SOCIAL CARE,5 CARE SERVICES LTD,26/02/2024,567.00,6541-Domiciliary Care,THIRD PARTY PAYMENTS,PRIVATE CONTRACTOR,REVENUE
Walsall Council,http://opendatacommunities.org/id/metropolitan-district-council/walsall ,WC159-174,29.02.2024,ADULT SOCIAL CARE,5 CARE SERVICES LTD,26/02/2024,630.00,6541-Domiciliary Care,THIRD PARTY PAYMENTS,PRIVATE CONTRACTOR,REVENUE
Walsall Council,http://opendatacommunities.org/id/metropolitan-district-council/walsall ,WC159-175,29.02.2024,ADULT SOCIAL CARE,5 CARE SERVICES LTD,26/02/2024,567.00,6541-Domiciliary Care,THIRD PARTY PAYMENTS,PRIVATE CONTRACTOR,REVENUE
Walsall Council,http://opendatacommunities.org/id/metropolitan-district-council/walsall ,WC159-176,29.02.2024,ADULT SOCIAL CARE,5 CARE SERVICES LTD,26/02/2024,324.00,6541-Domiciliary Care,THIRD PARTY PAYMENTS,PRIVATE CONTRACTOR,REVENUE
Walsall Council,http://opendatacommunities.org/id/metropolitan-district-council/walsall ,WC159-177,29.02.2024,ADULT SOCIAL CARE,5 CARE SERVICES LTD,26/02/2024,774.00,6541-Domiciliary Care,THIRD PARTY PAYMENTS,PRIVATE CONTRACTOR,REVENUE
Walsall Council,http://opendatacommunities.org/id/metropolitan-district-council/walsall ,WC159-178,29.02.2024,ADULT SOCIAL CARE,5 CARE SERVICES LTD,26/02/2024,283.50,6541-Domiciliary Care,THIRD PARTY PAYMENTS,PRIVATE CONTRACTOR,REVENUE
Walsall Council,http://opendatacommunities.org/id/metropolitan-district-council/walsall ,WC159-179,29.02.2024,ADULT SOCIAL CARE,5 CARE SERVICES LTD,26/02/2024,756.00,6541-Domiciliary Care,THIRD PARTY PAYMENTS,PRIVATE CONTRACTOR,REVENUE
Walsall Council,http://opendatacommunities.org/id/metropolitan-district-council/walsall ,WC159-180,29.02.2024,ADULT SOCIAL CARE,5 CARE SERVICES LTD,26/02/2024,630.00,6541-Domiciliary Care,THIRD PARTY PAYMENTS,PRIVATE CONTRACTOR,REVENUE
Walsall Council,http://opendatacommunities.org/id/metropolitan-district-council/walsall ,WC159-181,29.02.2024,ADULT SOCIAL CARE,5 CARE SERVICES LTD,26/02/2024,630.00,6541-Domiciliary Care,THIRD PARTY PAYMENTS,PRIVATE CONTRACTOR,REVENUE
Walsall Council,http://opendatacommunities.org/id/metropolitan-district-council/walsall ,WC159-182,29.02.2024,ADULT SOCIAL CARE,5 CARE SERVICES LTD,26/02/2024,"1,386.00",6541-Domiciliary Care,THIRD PARTY PAYMENTS,PRIVATE CONTRACTOR,REVENUE
Walsall Council,http://opendatacommunities.org/id/metropolitan-district-council/walsall ,WC159-183,29.02.2024,ADULT SOCIAL CARE,5 CARE SERVICES LTD,26/02/2024,324.00,6541-Domiciliary Care,THIRD PARTY PAYMENTS,PRIVATE CONTRACTOR,REVENUE
Walsall Council,http://opendatacommunities.org/id/metropolitan-district-council/walsall ,WC159-184,29.02.2024,ADULT SOCIAL CARE,5 CARE SERVICES LTD,26/02/2024,756.00,6541-Domiciliary Care,THIRD PARTY PAYMENTS,PRIVATE CONTRACTOR,REVENUE
Walsall Council,http://opendatacommunities.org/id/metropolitan-district-council/walsall ,WC159-185,29.02.2024,ADULT SOCIAL CARE,5 CARE SERVICES LTD,26/02/2024,283.50,6541-Domiciliary Care,THIRD PARTY PAYMENTS,PRIVATE CONTRACTOR,REVENUE
Walsall Council,http://opendatacommunities.org/id/metropolitan-district-council/walsall ,WC159-186,29.02.2024,ADULT SOCIAL CARE,5 CARE SERVICES LTD,26/02/2024,819.00,6541-Domiciliary Care,THIRD PARTY PAYMENTS,PRIVATE CONTRACTOR,REVENUE
Walsall Council,http://opendatacommunities.org/id/metropolitan-district-council/walsall ,WC159-187,29.02.2024,ADULT SOCIAL CARE,5 CARE SERVICES LTD,26/02/2024,567.00,6541-Domiciliary Care,THIRD PARTY PAYMENTS,PRIVATE CONTRACTOR,REVENUE
Walsall Council,http://opendatacommunities.org/id/metropolitan-district-council/walsall ,WC159-188,29.02.2024,ADULT SOCIAL CARE,5 CARE SERVICES LTD,26/02/2024,504.00,6541-Domiciliary Care,THIRD PARTY PAYMENTS,PRIVATE CONTRACTOR,REVENUE
Walsall Council,http://opendatacommunities.org/id/metropolitan-district-council/walsall ,WC159-189,29.02.2024,ADULT SOCIAL CARE,5 CARE SERVICES LTD,26/02/2024,567.00,6541-Domiciliary Care,THIRD PARTY PAYMENTS,PRIVATE CONTRACTOR,REVENUE
Walsall Council,http://opendatacommunities.org/id/metropolitan-district-council/walsall ,WC159-190,29.02.2024,ADULT SOCIAL CARE,5 CARE SERVICES LTD,26/02/2024,567.00,6541-Domiciliary Care,THIRD PARTY PAYMENTS,PRIVATE CONTRACTOR,REVENUE
Walsall Council,http://opendatacommunities.org/id/metropolitan-district-council/walsall ,WC159-191,29.02.2024,ADULT SOCIAL CARE,5 CARE SERVICES LTD,26/02/2024,567.00,6541-Domiciliary Care,THIRD PARTY PAYMENTS,PRIVATE CONTRACTOR,REVENUE
Walsall Council,http://opendatacommunities.org/id/metropolitan-district-council/walsall ,WC159-192,29.02.2024,ADULT SOCIAL CARE,5 CARE SERVICES LTD,26/02/2024,567.00,6541-Domiciliary Care,THIRD PARTY PAYMENTS,PRIVATE CONTRACTOR,REVENUE
Walsall Council,http://opendatacommunities.org/id/metropolitan-district-council/walsall ,WC159-193,29.02.2024,ADULT SOCIAL CARE,5 CARE SERVICES LTD,26/02/2024,256.50,6541-Domiciliary Care,THIRD PARTY PAYMENTS,PRIVATE CONTRACTOR,REVENUE
Walsall Council,http://opendatacommunities.org/id/metropolitan-district-council/walsall ,WC159-194,29.02.2024,ADULT SOCIAL CARE,5 CARE SERVICES LTD,26/02/2024,567.00,6541-Domiciliary Care,THIRD PARTY PAYMENTS,PRIVATE CONTRACTOR,REVENUE
Walsall Council,http://opendatacommunities.org/id/metropolitan-district-council/walsall ,WC159-195,29.02.2024,ADULT SOCIAL CARE,5 CARE SERVICES LTD,26/02/2024,630.00,6541-Domiciliary Care,THIRD PARTY PAYMENTS,PRIVATE CONTRACTOR,REVENUE
Walsall Council,http://opendatacommunities.org/id/metropolitan-district-council/walsall ,WC159-196,29.02.2024,ADULT SOCIAL CARE,5 CARE SERVICES LTD,26/02/2024,567.00,6541-Domiciliary Care,THIRD PARTY PAYMENTS,PRIVATE CONTRACTOR,REVENUE
Walsall Council,http://opendatacommunities.org/id/metropolitan-district-council/walsall ,WC159-197,29.02.2024,ADULT SOCIAL CARE,5 CARE SERVICES LTD,26/02/2024,360.00,6541-Domiciliary Care,THIRD PARTY PAYMENTS,PRIVATE CONTRACTOR,REVENUE
Walsall Council,http://opendatacommunities.org/id/metropolitan-district-council/walsall ,WC159-198,29.02.2024,ADULT SOCIAL CARE,5 CARE SERVICES LTD,26/02/2024,"1,008.00",6541-Domiciliary Care,THIRD PARTY PAYMENTS,PRIVATE CONTRACTOR,REVENUE
Walsall Council,http://opendatacommunities.org/id/metropolitan-district-council/walsall ,WC159-199,29.02.2024,ADULT SOCIAL CARE,5 CARE SERVICES LTD,26/02/2024,558.00,6541-Domiciliary Care,THIRD PARTY PAYMENTS,PRIVATE CONTRACTOR,REVENUE
Walsall Council,http://opendatacommunities.org/id/metropolitan-district-council/walsall ,WC159-200,29.02.2024,ADULT SOCIAL CARE,5 CARE SERVICES LTD,26/02/2024,630.00,6541-Domiciliary Care,THIRD PARTY PAYMENTS,PRIVATE CONTRACTOR,REVENUE
Walsall Council,http://opendatacommunities.org/id/metropolitan-district-council/walsall ,WC159-201,29.02.2024,ADULT SOCIAL CARE,5 CARE SERVICES LTD,26/02/2024,252.00,6541-Domiciliary Care,THIRD PARTY PAYMENTS,PRIVATE CONTRACTOR,REVENUE
Walsall Council,http://opendatacommunities.org/id/metropolitan-district-council/walsall ,WC159-202,29.02.2024,ADULT SOCIAL CARE,5 CARE SERVICES LTD,26/02/2024,378.00,6541-Domiciliary Care,THIRD PARTY PAYMENTS,PRIVATE CONTRACTOR,REVENUE
Walsall Council,http://opendatacommunities.org/id/metropolitan-district-council/walsall ,WC159-203,29.02.2024,ADULT SOCIAL CARE,5 CARE SERVICES LTD,26/02/2024,567.00,6541-Domiciliary Care,THIRD PARTY PAYMENTS,PRIVATE CONTRACTOR,REVENUE
Walsall Council,http://opendatacommunities.org/id/metropolitan-district-council/walsall ,WC159-204,29.02.2024,ADULT SOCIAL CARE,5 CARE SERVICES LTD,26/02/2024,486.00,6541-Domiciliary Care,THIRD PARTY PAYMENTS,PRIVATE CONTRACTOR,REVENUE
Walsall Council,http://opendatacommunities.org/id/metropolitan-district-council/walsall ,WC159-205,29.02.2024,ADULT SOCIAL CARE,5 CARE SERVICES LTD,26/02/2024,294.00,6541-Domiciliary Care,THIRD PARTY PAYMENTS,PRIVATE CONTRACTOR,REVENUE
Walsall Council,http://opendatacommunities.org/id/metropolitan-district-council/walsall ,WC159-206,29.02.2024,ADULT SOCIAL CARE,5 CARE SERVICES LTD,26/02/2024,567.00,6541-Domiciliary Care,THIRD PARTY PAYMENTS,PRIVATE CONTRACTOR,REVENUE
Walsall Council,http://opendatacommunities.org/id/metropolitan-district-council/walsall ,WC159-207,29.02.2024,ADULT SOCIAL CARE,5 CARE SERVICES LTD,26/02/2024,328.50,6541-Domiciliary Care,THIRD PARTY PAYMENTS,PRIVATE CONTRACTOR,REVENUE
Walsall Council,http://opendatacommunities.org/id/metropolitan-district-council/walsall ,WC159-208,29.02.2024,"ECONOMY, ENVIRONMENT & COMMUNITIES",A B WASTE MANAGEMENT LTD,05/02/2024,-265.00,6414-Recycling & Disposal of Waste -Priv Contractor Fees,THIRD PARTY PAYMENTS,PRIVATE CONTRACTOR,REVENUE
Walsall Council,http://opendatacommunities.org/id/metropolitan-district-council/walsall ,WC159-209,29.02.2024,"ECONOMY, ENVIRONMENT & COMMUNITIES",A B WASTE MANAGEMENT LTD,05/02/2024,265.00,6414-Recycling & Disposal of Waste -Priv Contractor Fees,THIRD PARTY PAYMENTS,PRIVATE CONTRACTOR,REVENUE
Walsall Council,http://opendatacommunities.org/id/metropolitan-district-council/walsall ,WC159-210,29.02.2024,RESOURCES AND TRANSFORMATION,A D T FIRE AND SECURITY PLC,15/02/2024,"1,756.60",6310-Security & Alarm Maintenance,PREMISES,REPAIRS & MAINTENANCE,REVENUE
Walsall Council,http://opendatacommunities.org/id/metropolitan-district-council/walsall ,WC159-211,29.02.2024,CHILDRENS,A D T FIRE AND SECURITY PLC,20/02/2024,"1,101.37",6223-Operational Maintenance,PREMISES,REPAIRS & MAINTENANCE,REVENUE
Walsall Council,http://opendatacommunities.org/id/metropolitan-district-council/walsall ,WC159-212,29.02.2024,"ECONOMY, ENVIRONMENT & COMMUNITIES",A F BLAKEMORE & SON LTD,06/02/2024,367.48,6413-Food & Drink Supplies,SUPPLIES & SERVICES,CATERING,REVENUE
Walsall Council,http://opendatacommunities.org/id/metropolitan-district-council/walsall ,WC159-213,29.02.2024,"ECONOMY, ENVIRONMENT & COMMUNITIES",A F BLAKEMORE & SON LTD,05/02/2024,562.08,6413-Food & Drink Supplies,SUPPLIES & SERVICES,CATERING,REVENUE
Walsall Council,http://opendatacommunities.org/id/metropolitan-district-council/walsall ,WC159-214,29.02.2024,"ECONOMY, ENVIRONMENT & COMMUNITIES",A F BLAKEMORE & SON LTD,05/02/2024,"1,306.13",6413-Food & Drink Supplies,SUPPLIES & SERVICES,CATERING,REVENUE
Walsall Council,http://opendatacommunities.org/id/metropolitan-district-council/walsall ,WC159-215,29.02.2024,"ECONOMY, ENVIRONMENT & COMMUNITIES",A F BLAKEMORE & SON LTD,02/02/2024,337.31,6413-Materials,SUPPLIES & SERVICES,EQUIPMENT FURNITURE & MATERIALS,REVENUE
Walsall Council,http://opendatacommunities.org/id/metropolitan-district-council/walsall ,WC159-216,29.02.2024,"ECONOMY, ENVIRONMENT & COMMUNITIES",A F BLAKEMORE & SON LTD,02/02/2024,722.10,6413-Materials,SUPPLIES & SERVICES,EQUIPMENT FURNITURE & MATERIALS,REVENUE
Walsall Council,http://opendatacommunities.org/id/metropolitan-district-council/walsall ,WC159-217,29.02.2024,"ECONOMY, ENVIRONMENT & COMMUNITIES",A F BLAKEMORE & SON LTD,16/02/2024,329.27,6413-Materials,SUPPLIES & SERVICES,EQUIPMENT FURNITURE & MATERIALS,REVENUE
Walsall Council,http://opendatacommunities.org/id/metropolitan-district-council/walsall ,WC159-218,29.02.2024,"ECONOMY, ENVIRONMENT & COMMUNITIES",A F BLAKEMORE & SON LTD,16/02/2024,798.87,6413-Materials,SUPPLIES & SERVICES,EQUIPMENT FURNITURE & MATERIALS,REVENUE
Walsall Council,http://opendatacommunities.org/id/metropolitan-district-council/walsall ,WC159-219,29.02.2024,"ECONOMY, ENVIRONMENT & COMMUNITIES",A F BLAKEMORE & SON LTD,20/02/2024,764.72,6413-Materials,SUPPLIES & SERVICES,EQUIPMENT FURNITURE & MATERIALS,REVENUE
Walsall Council,http://opendatacommunities.org/id/metropolitan-district-council/walsall ,WC159-220,29.02.2024,"ECONOMY, ENVIRONMENT & COMMUNITIES",A F BLAKEMORE & SON LTD,29/02/2024,335.64,6413-Materials,SUPPLIES & SERVICES,EQUIPMENT FURNITURE & MATERIALS,REVENUE
Walsall Council,http://opendatacommunities.org/id/metropolitan-district-council/walsall ,WC159-221,29.02.2024,"ECONOMY, ENVIRONMENT & COMMUNITIES",A F BLAKEMORE & SON LTD,29/02/2024,845.23,6413-Materials,SUPPLIES & SERVICES,EQUIPMENT FURNITURE & MATERIALS,REVENUE
Walsall Council,http://opendatacommunities.org/id/metropolitan-district-council/walsall ,WC159-222,29.02.2024,CHILDRENS,A+ TUTORING SERVICES,21/02/2024,320.00,1220-Professional Fees & Services,SUPPLIES & SERVICES,SERVICES,REVENUE
Walsall Council,http://opendatacommunities.org/id/metropolitan-district-council/walsall ,WC159-223,29.02.2024,CHILDRENS,A1 WALSALL RADIO CARS,26/02/2024,"2,100.00",6241-Hire of Vehicle with Driver,TRANSPORT,DIRECT TRANSPORT COSTS,REVENUE
Walsall Council,http://opendatacommunities.org/id/metropolitan-district-council/walsall ,WC159-224,29.02.2024,CHILDRENS,A1 WALSALL RADIO CARS,26/02/2024,"1,152.00",6241-Hire of Vehicle with Driver,TRANSPORT,DIRECT TRANSPORT COSTS,REVENUE
Walsall Council,http://opendatacommunities.org/id/metropolitan-district-council/walsall ,WC159-225,29.02.2024,CHILDRENS,A1 WALSALL RADIO CARS,26/02/2024,"1,577.00",6241-Hire of Vehicle with Driver,TRANSPORT,DIRECT TRANSPORT COSTS,REVENUE
Walsall Council,http://opendatacommunities.org/id/metropolitan-district-council/walsall ,WC159-226,29.02.2024,CHILDRENS,A1 WALSALL RADIO CARS,26/02/2024,"2,160.00",6241-Hire of Vehicle with Driver,TRANSPORT,DIRECT TRANSPORT COSTS,REVENUE
Walsall Council,http://opendatacommunities.org/id/metropolitan-district-council/walsall ,WC159-227,29.02.2024,CHILDRENS,A1 WALSALL RADIO CARS,26/02/2024,996.00,6241-Hire of Vehicle with Driver,TRANSPORT,DIRECT TRANSPORT COSTS,REVENUE
Walsall Council,http://opendatacommunities.org/id/metropolitan-district-council/walsall ,WC159-228,29.02.2024,CHILDRENS,A1 WALSALL RADIO CARS,26/02/2024,"1,152.00",6241-Hire of Vehicle with Driver,TRANSPORT,DIRECT TRANSPORT COSTS,REVENUE
Walsall Council,http://opendatacommunities.org/id/metropolitan-district-council/walsall ,WC159-229,29.02.2024,CHILDRENS,A1 WALSALL RADIO CARS,26/02/2024,"3,360.00",6241-Hire of Vehicle with Driver,TRANSPORT,DIRECT TRANSPORT COSTS,REVENUE
Walsall Council,http://opendatacommunities.org/id/metropolitan-district-council/walsall ,WC159-230,29.02.2024,CHILDRENS,A1 WALSALL RADIO CARS,26/02/2024,"1,862.00",6241-Hire of Vehicle with Driver,TRANSPORT,DIRECT TRANSPORT COSTS,REVENUE
Walsall Council,http://opendatacommunities.org/id/metropolitan-district-council/walsall ,WC159-231,29.02.2024,CHILDRENS,AAINA COMMUNITY HUB,12/02/2024,"-5,000.00",6632-Grants to Other Orgs,SUPPLIES & SERVICES,GRANTS (EXP) & SUBSCRIPTIONS,REVENUE
Walsall Council,http://opendatacommunities.org/id/metropolitan-district-council/walsall ,WC159-232,29.02.2024,CHILDRENS,AAINA COMMUNITY HUB,12/02/2024,"5,000.00",6632-Grants to Other Orgs,SUPPLIES & SERVICES,GRANTS (EXP) & SUBSCRIPTIONS,REVENUE
Walsall Council,http://opendatacommunities.org/id/metropolitan-district-council/walsall ,WC159-233,29.02.2024,"ECONOMY, ENVIRONMENT & COMMUNITIES",AAINA COMMUNITY HUB,12/02/2024,"1,250.00",6430-Grants to Other Orgs,SUPPLIES & SERVICES,GRANTS (EXP) & SUBSCRIPTIONS,REVENUE
Walsall Council,http://opendatacommunities.org/id/metropolitan-district-council/walsall ,WC159-234,29.02.2024,"ECONOMY, ENVIRONMENT & COMMUNITIES",AAINA COMMUNITY HUB,07/02/2024,"1,658.80",6430-Grants to Other Orgs,SUPPLIES & SERVICES,GRANTS (EXP) & SUBSCRIPTIONS,REVENUE
Walsall Council,http://opendatacommunities.org/id/metropolitan-district-council/walsall ,WC159-235,29.02.2024,ADULT SOCIAL CARE,REDACTED,01/02/2024,900.96,6541-Direct Payment,THIRD PARTY PAYMENTS,PRIVATE CONTRACTOR,REVENUE
Walsall Council,http://opendatacommunities.org/id/metropolitan-district-council/walsall ,WC159-236,29.02.2024,CHILDRENS,ABACUS FOSTERING LTD,20/02/2024,"3,038.80",6223-Independent Foster Care-Oth Agency Provision,THIRD PARTY PAYMENTS,PRIVATE CONTRACTOR,REVENUE
Walsall Council,http://opendatacommunities.org/id/metropolitan-district-council/walsall ,WC159-237,29.02.2024,CHILDRENS,ABACUS FOSTERING LTD,20/02/2024,"2,984.80",6223-Independent Foster Care-Oth Agency Provision,THIRD PARTY PAYMENTS,PRIVATE CONTRACTOR,REVENUE
Walsall Council,http://opendatacommunities.org/id/metropolitan-district-council/walsall ,WC159-238,29.02.2024,CHILDRENS,ABACUS FOSTERING LTD,20/02/2024,"2,818.88",6223-Independent Foster Care-Oth Agency Provision,THIRD PARTY PAYMENTS,PRIVATE CONTRACTOR,REVENUE
Walsall Council,http://opendatacommunities.org/id/metropolitan-district-council/walsall ,WC159-239,29.02.2024,CHILDRENS,ABACUS FOSTERING LTD,20/02/2024,"3,198.72",6223-Independent Foster Care-Oth Agency Provision,THIRD PARTY PAYMENTS,PRIVATE CONTRACTOR,REVENUE
Walsall Council,http://opendatacommunities.org/id/metropolitan-district-council/walsall ,WC159-240,29.02.2024,ADULT SOCIAL CARE,ABBEY HEALTHCARE HOMES LTD,12/02/2024,"3,180.76",6541-Residential,THIRD PARTY PAYMENTS,PRIVATE CONTRACTOR,REVENUE
Walsall Council,http://opendatacommunities.org/id/metropolitan-district-council/walsall ,WC159-241,29.02.2024,ADULT SOCIAL CARE,ABBEY HEALTHCARE HOMES LTD,12/02/2024,"3,180.76",6541-Residential,THIRD PARTY PAYMENTS,PRIVATE CONTRACTOR,REVENUE
Walsall Council,http://opendatacommunities.org/id/metropolitan-district-council/walsall ,WC159-242,29.02.2024,ADULT SOCIAL CARE,ABBEY HEALTHCARE HOMES LTD,12/02/2024,"4,000.00",6541-Residential,THIRD PARTY PAYMENTS,PRIVATE CONTRACTOR,REVENUE
Walsall Council,http://opendatacommunities.org/id/metropolitan-district-council/walsall ,WC159-243,29.02.2024,ADULT SOCIAL CARE,ABBEY HEALTHCARE HOMES LTD,12/02/2024,"2,432.32",6541-Residential,THIRD PARTY PAYMENTS,PRIVATE CONTRACTOR,REVENUE
Walsall Council,http://opendatacommunities.org/id/metropolitan-district-council/walsall ,WC159-244,29.02.2024,CHILDRENS,ABC DAY NURSERY (WILLENHALL) LIMITED,08/02/2024,"1,421.55",1184-Other-Grants to Other Orgs,SUPPLIES & SERVICES,GRANTS (EXP) & SUBSCRIPTIONS,REVENUE
Walsall Council,http://opendatacommunities.org/id/metropolitan-district-council/walsall ,WC159-245,29.02.2024,ADULT SOCIAL CARE,REDACTED,01/02/2024,"2,438.24",6541-Direct Payment,THIRD PARTY PAYMENTS,PRIVATE CONTRACTOR,REVENUE
Walsall Council,http://opendatacommunities.org/id/metropolitan-district-council/walsall ,WC159-246,29.02.2024,ADULT SOCIAL CARE,ABILITY HEALTHCARE CANNOCK LTD,07/02/2024,"2,016.00",6541-Domiciliary Care,THIRD PARTY PAYMENTS,PRIVATE CONTRACTOR,REVENUE
Walsall Council,http://opendatacommunities.org/id/metropolitan-district-council/walsall ,WC159-247,29.02.2024,ADULT SOCIAL CARE,ABILITY HEALTHCARE CANNOCK LTD,07/02/2024,261.28,6541-Domiciliary Care,THIRD PARTY PAYMENTS,PRIVATE CONTRACTOR,REVENUE
Walsall Council,http://opendatacommunities.org/id/metropolitan-district-council/walsall ,WC159-248,29.02.2024,ADULT SOCIAL CARE,ABILITY HEALTHCARE CANNOCK LTD,07/02/2024,"1,044.00",6541-Domiciliary Care,THIRD PARTY PAYMENTS,PRIVATE CONTRACTOR,REVENUE
Walsall Council,http://opendatacommunities.org/id/metropolitan-district-council/walsall ,WC159-249,29.02.2024,ADULT SOCIAL CARE,ABILITY HEALTHCARE CANNOCK LTD,07/02/2024,"2,016.00",6541-Domiciliary Care,THIRD PARTY PAYMENTS,PRIVATE CONTRACTOR,REVENUE
Walsall Council,http://opendatacommunities.org/id/metropolitan-district-council/walsall ,WC159-250,29.02.2024,ADULT SOCIAL CARE,ABILITY HEALTHCARE CANNOCK LTD,07/02/2024,"1,792.50",6541-Domiciliary Care,THIRD PARTY PAYMENTS,PRIVATE CONTRACTOR,REVENUE
Walsall Council,http://opendatacommunities.org/id/metropolitan-district-council/walsall ,WC159-251,29.02.2024,ADULT SOCIAL CARE,ABILITY HEALTHCARE CANNOCK LTD,07/02/2024,"2,016.00",6541-Domiciliary Care,THIRD PARTY PAYMENTS,PRIVATE CONTRACTOR,REVENUE
Walsall Council,http://opendatacommunities.org/id/metropolitan-district-council/walsall ,WC159-252,29.02.2024,ADULT SOCIAL CARE,ABILITY HEALTHCARE CANNOCK LTD,07/02/2024,"2,412.00",6541-Domiciliary Care,THIRD PARTY PAYMENTS,PRIVATE CONTRACTOR,REVENUE
Walsall Council,http://opendatacommunities.org/id/metropolitan-district-council/walsall ,WC159-253,29.02.2024,ADULT SOCIAL CARE,ABILITY HEALTHCARE CANNOCK LTD,07/02/2024,"2,268.00",6541-Domiciliary Care,THIRD PARTY PAYMENTS,PRIVATE CONTRACTOR,REVENUE
Walsall Council,http://opendatacommunities.org/id/metropolitan-district-council/walsall ,WC159-254,29.02.2024,ADULT SOCIAL CARE,ABILITY HEALTHCARE CANNOCK LTD,07/02/2024,"2,268.00",6541-Domiciliary Care,THIRD PARTY PAYMENTS,PRIVATE CONTRACTOR,REVENUE
Walsall Council,http://opendatacommunities.org/id/metropolitan-district-council/walsall ,WC159-255,29.02.2024,ADULT SOCIAL CARE,ABILITY HEALTHCARE CANNOCK LTD,07/02/2024,"2,016.00",6541-Domiciliary Care,THIRD PARTY PAYMENTS,PRIVATE CONTRACTOR,REVENUE
Walsall Council,http://opendatacommunities.org/id/metropolitan-district-council/walsall ,WC159-256,29.02.2024,ADULT SOCIAL CARE,ABILITY HEALTHCARE CANNOCK LTD,07/02/2024,"1,944.00",6541-Domiciliary Care,THIRD PARTY PAYMENTS,PRIVATE CONTRACTOR,REVENUE
Walsall Council,http://opendatacommunities.org/id/metropolitan-district-council/walsall ,WC159-257,29.02.2024,ADULT SOCIAL CARE,ABILITY HEALTHCARE CANNOCK LTD,07/02/2024,882.00,6541-Domiciliary Care,THIRD PARTY PAYMENTS,PRIVATE CONTRACTOR,REVENUE
Walsall Council,http://opendatacommunities.org/id/metropolitan-district-council/walsall ,WC159-258,29.02.2024,ADULT SOCIAL CARE,ABILITY HEALTHCARE CANNOCK LTD,07/02/2024,828.00,6541-Domiciliary Care,THIRD PARTY PAYMENTS,PRIVATE CONTRACTOR,REVENUE
Walsall Council,http://opendatacommunities.org/id/metropolitan-district-council/walsall ,WC159-259,29.02.2024,ADULT SOCIAL CARE,ABILITY HEALTHCARE CANNOCK LTD,07/02/2024,"3,528.00",6541-Domiciliary Care,THIRD PARTY PAYMENTS,PRIVATE CONTRACTOR,REVENUE
Walsall Council,http://opendatacommunities.org/id/metropolitan-district-council/walsall ,WC159-260,29.02.2024,ADULT SOCIAL CARE,ABILITY HEALTHCARE CANNOCK LTD,07/02/2024,"2,268.00",6541-Domiciliary Care,THIRD PARTY PAYMENTS,PRIVATE CONTRACTOR,REVENUE
Walsall Council,http://opendatacommunities.org/id/metropolitan-district-council/walsall ,WC159-261,29.02.2024,ADULT SOCIAL CARE,ABILITY HEALTHCARE CANNOCK LTD,07/02/2024,"2,016.00",6541-Domiciliary Care,THIRD PARTY PAYMENTS,PRIVATE CONTRACTOR,REVENUE
Walsall Council,http://opendatacommunities.org/id/metropolitan-district-council/walsall ,WC159-262,29.02.2024,ADULT SOCIAL CARE,ABILITY HEALTHCARE CANNOCK LTD,07/02/2024,"1,008.00",6541-Domiciliary Care,THIRD PARTY PAYMENTS,PRIVATE CONTRACTOR,REVENUE
Walsall Council,http://opendatacommunities.org/id/metropolitan-district-council/walsall ,WC159-263,29.02.2024,ADULT SOCIAL CARE,ABILITY HEALTHCARE CANNOCK LTD,07/02/2024,"2,772.00",6541-Domiciliary Care,THIRD PARTY PAYMENTS,PRIVATE CONTRACTOR,REVENUE
Walsall Council,http://opendatacommunities.org/id/metropolitan-district-council/walsall ,WC159-264,29.02.2024,ADULT SOCIAL CARE,ABILITY HEALTHCARE CANNOCK LTD,07/02/2024,"2,304.00",6541-Domiciliary Care,THIRD PARTY PAYMENTS,PRIVATE CONTRACTOR,REVENUE
Walsall Council,http://opendatacommunities.org/id/metropolitan-district-council/walsall ,WC159-265,29.02.2024,ADULT SOCIAL CARE,ABILITY HEALTHCARE CANNOCK LTD,07/02/2024,"2,016.00",6541-Domiciliary Care,THIRD PARTY PAYMENTS,PRIVATE CONTRACTOR,REVENUE
Walsall Council,http://opendatacommunities.org/id/metropolitan-district-council/walsall ,WC159-266,29.02.2024,ADULT SOCIAL CARE,ABILITY HEALTHCARE CANNOCK LTD,07/02/2024,"2,268.00",6541-Domiciliary Care,THIRD PARTY PAYMENTS,PRIVATE CONTRACTOR,REVENUE
Walsall Council,http://opendatacommunities.org/id/metropolitan-district-council/walsall ,WC159-267,29.02.2024,ADULT SOCIAL CARE,ABILITY HEALTHCARE CANNOCK LTD,07/02/2024,"1,890.00",6541-Domiciliary Care,THIRD PARTY PAYMENTS,PRIVATE CONTRACTOR,REVENUE
Walsall Council,http://opendatacommunities.org/id/metropolitan-district-council/walsall ,WC159-268,29.02.2024,ADULT SOCIAL CARE,ABILITY HEALTHCARE CANNOCK LTD,07/02/2024,"1,680.00",6541-Domiciliary Care,THIRD PARTY PAYMENTS,PRIVATE CONTRACTOR,REVENUE
Walsall Council,http://opendatacommunities.org/id/metropolitan-district-council/walsall ,WC159-269,29.02.2024,ADULT SOCIAL CARE,ABILITY HEALTHCARE CANNOCK LTD,07/02/2024,"1,089.00",6541-Domiciliary Care,THIRD PARTY PAYMENTS,PRIVATE CONTRACTOR,REVENUE
Walsall Council,http://opendatacommunities.org/id/metropolitan-district-council/walsall ,WC159-270,29.02.2024,ADULT SOCIAL CARE,ABILITY HEALTHCARE CANNOCK LTD,07/02/2024,"2,214.00",6541-Domiciliary Care,THIRD PARTY PAYMENTS,PRIVATE CONTRACTOR,REVENUE
Walsall Council,http://opendatacommunities.org/id/metropolitan-district-council/walsall ,WC159-271,29.02.2024,ADULT SOCIAL CARE,ABILITY HEALTHCARE CANNOCK LTD,07/02/2024,300.00,6541-Domiciliary Care,THIRD PARTY PAYMENTS,PRIVATE CONTRACTOR,REVENUE
Walsall Council,http://opendatacommunities.org/id/metropolitan-district-council/walsall ,WC159-272,29.02.2024,ADULT SOCIAL CARE,ABILITY HEALTHCARE CANNOCK LTD,07/02/2024,"1,764.00",6541-Domiciliary Care,THIRD PARTY PAYMENTS,PRIVATE CONTRACTOR,REVENUE
Walsall Council,http://opendatacommunities.org/id/metropolitan-district-council/walsall ,WC159-273,29.02.2024,ADULT SOCIAL CARE,ABILITY HEALTHCARE CANNOCK LTD,07/02/2024,"1,344.00",6541-Domiciliary Care,THIRD PARTY PAYMENTS,PRIVATE CONTRACTOR,REVENUE
Walsall Council,http://opendatacommunities.org/id/metropolitan-district-council/walsall ,WC159-274,29.02.2024,ADULT SOCIAL CARE,ABILITY HEALTHCARE CANNOCK LTD,08/02/2024,"2,268.00",6554-Professional Services-Priv Contractor & Other Agencies,THIRD PARTY PAYMENTS,PRIVATE CONTRACTOR,REVENUE
Walsall Council,http://opendatacommunities.org/id/metropolitan-district-council/walsall ,WC159-275,29.02.2024,ADULT SOCIAL CARE,ABILITY HEALTHCARE CANNOCK LTD,08/02/2024,"2,268.00",6554-Professional Services-Priv Contractor & Other Agencies,THIRD PARTY PAYMENTS,PRIVATE CONTRACTOR,REVENUE
Walsall Council,http://opendatacommunities.org/id/metropolitan-district-council/walsall ,WC159-276,29.02.2024,ADULT SOCIAL CARE,ABILITY HEALTHCARE CANNOCK LTD,08/02/2024,"1,458.00",6554-Professional Services-Priv Contractor & Other Agencies,THIRD PARTY PAYMENTS,PRIVATE CONTRACTOR,REVENUE
Walsall Council,http://opendatacommunities.org/id/metropolitan-district-council/walsall ,WC159-277,29.02.2024,ADULT SOCIAL CARE,ABILITY HEALTHCARE CANNOCK LTD,08/02/2024,"2,106.00",6554-Professional Services-Priv Contractor & Other Agencies,THIRD PARTY PAYMENTS,PRIVATE CONTRACTOR,REVENUE
Walsall Council,http://opendatacommunities.org/id/metropolitan-district-council/walsall ,WC159-278,29.02.2024,CHILDRENS,ABLEWELL CARS,26/02/2024,"1,480.00",6241-Hire of Vehicle with Driver,TRANSPORT,DIRECT TRANSPORT COSTS,REVENUE
Walsall Council,http://opendatacommunities.org/id/metropolitan-district-council/walsall ,WC159-279,29.02.2024,CHILDRENS,ABLEWELL CARS,26/02/2024,"1,264.00",6241-Hire of Vehicle with Driver,TRANSPORT,DIRECT TRANSPORT COSTS,REVENUE
Walsall Council,http://opendatacommunities.org/id/metropolitan-district-council/walsall ,WC159-280,29.02.2024,CHILDRENS,ABLEWELL CARS,26/02/2024,"2,850.00",6241-Hire of Vehicle with Driver,TRANSPORT,DIRECT TRANSPORT COSTS,REVENUE
Walsall Council,http://opendatacommunities.org/id/metropolitan-district-council/walsall ,WC159-281,29.02.2024,CHILDRENS,ABLEWELL CARS,26/02/2024,"1,683.20",6241-Hire of Vehicle with Driver,TRANSPORT,DIRECT TRANSPORT COSTS,REVENUE
Walsall Council,http://opendatacommunities.org/id/metropolitan-district-council/walsall ,WC159-282,29.02.2024,CHILDRENS,ABS TAXIS (ALDRIDGE),26/02/2024,"1,875.30",6241-Hire of Vehicle with Driver,TRANSPORT,DIRECT TRANSPORT COSTS,REVENUE
Walsall Council,http://opendatacommunities.org/id/metropolitan-district-council/walsall ,WC159-283,29.02.2024,CHILDRENS,ABS TAXIS (ALDRIDGE),26/02/2024,"2,876.60",6241-Hire of Vehicle with Driver,TRANSPORT,DIRECT TRANSPORT COSTS,REVENUE
Walsall Council,http://opendatacommunities.org/id/metropolitan-district-council/walsall ,WC159-284,29.02.2024,CHILDRENS,ABS TAXIS (ALDRIDGE),26/02/2024,"1,529.50",6241-Hire of Vehicle with Driver,TRANSPORT,DIRECT TRANSPORT COSTS,REVENUE
Walsall Council,http://opendatacommunities.org/id/metropolitan-district-council/walsall ,WC159-285,29.02.2024,ADULT SOCIAL CARE,ABSOLUTE CARE HOMES (CENTRAL) LTD,12/02/2024,"7,600.00",6541-Nursing EMI,THIRD PARTY PAYMENTS,PRIVATE CONTRACTOR,REVENUE
Walsall Council,http://opendatacommunities.org/id/metropolitan-district-council/walsall ,WC159-286,29.02.2024,ADULT SOCIAL CARE,ABSOLUTE HEALTHCARE SWAN HOUSE LTD,12/02/2024,"2,137.32",6541-Residential,THIRD PARTY PAYMENTS,PRIVATE CONTRACTOR,REVENUE
Walsall Council,http://opendatacommunities.org/id/metropolitan-district-council/walsall ,WC159-287,29.02.2024,ADULT SOCIAL CARE,ABSOLUTE HEALTHCARE SWAN HOUSE LTD,12/02/2024,"2,137.32",6541-Residential,THIRD PARTY PAYMENTS,PRIVATE CONTRACTOR,REVENUE
Walsall Council,http://opendatacommunities.org/id/metropolitan-district-council/walsall ,WC159-288,29.02.2024,ADULT SOCIAL CARE,ABSOLUTE HEALTHCARE SWAN HOUSE LTD,12/02/2024,"2,413.36",6541-Residential EMI,THIRD PARTY PAYMENTS,PRIVATE CONTRACTOR,REVENUE
Walsall Council,http://opendatacommunities.org/id/metropolitan-district-council/walsall ,WC159-289,29.02.2024,ADULT SOCIAL CARE,ABSOLUTE HEALTHCARE SWAN HOUSE LTD,12/02/2024,"2,277.32",6541-Residential,THIRD PARTY PAYMENTS,PRIVATE CONTRACTOR,REVENUE
Walsall Council,http://opendatacommunities.org/id/metropolitan-district-council/walsall ,WC159-290,29.02.2024,ADULT SOCIAL CARE,ABSOLUTE HEALTHCARE SWAN HOUSE LTD,12/02/2024,"2,137.32",6541-Residential,THIRD PARTY PAYMENTS,PRIVATE CONTRACTOR,REVENUE
Walsall Council,http://opendatacommunities.org/id/metropolitan-district-council/walsall ,WC159-291,29.02.2024,ADULT SOCIAL CARE,ABSOLUTE HEALTHCARE SWAN HOUSE LTD,12/02/2024,"2,413.36",6541-Residential EMI,THIRD PARTY PAYMENTS,PRIVATE CONTRACTOR,REVENUE
Walsall Council,http://opendatacommunities.org/id/metropolitan-district-council/walsall ,WC159-292,29.02.2024,ADULT SOCIAL CARE,ABSOLUTE HEALTHCARE SWAN HOUSE LTD,12/02/2024,-762.24,6541-Nursing,THIRD PARTY PAYMENTS,PRIVATE CONTRACTOR,REVENUE
Walsall Council,http://opendatacommunities.org/id/metropolitan-district-council/walsall ,WC159-293,29.02.2024,ADULT SOCIAL CARE,ABSOLUTE HEALTHCARE SWAN HOUSE LTD,12/02/2024,"-2,025.98",6541-Nursing EMI,THIRD PARTY PAYMENTS,PRIVATE CONTRACTOR,REVENUE
Walsall Council,http://opendatacommunities.org/id/metropolitan-district-council/walsall ,WC159-294,29.02.2024,ADULT SOCIAL CARE,ABSOLUTE HEALTHCARE SWAN HOUSE LTD,12/02/2024,"3,600.00",6541-Residential,THIRD PARTY PAYMENTS,PRIVATE CONTRACTOR,REVENUE
Walsall Council,http://opendatacommunities.org/id/metropolitan-district-council/walsall ,WC159-295,29.02.2024,ADULT SOCIAL CARE,ABSOLUTE HEALTHCARE SWAN HOUSE LTD,12/02/2024,"2,413.36",6541-Residential EMI,THIRD PARTY PAYMENTS,PRIVATE CONTRACTOR,REVENUE
Walsall Council,http://opendatacommunities.org/id/metropolitan-district-council/walsall ,WC159-296,29.02.2024,ADULT SOCIAL CARE,ABSOLUTE HEALTHCARE SWAN HOUSE LTD,12/02/2024,"3,400.00",6541-Residential EMI,THIRD PARTY PAYMENTS,PRIVATE CONTRACTOR,REVENUE
Walsall Council,http://opendatacommunities.org/id/metropolitan-district-council/walsall ,WC159-297,29.02.2024,ADULT SOCIAL CARE,ABSOLUTE HEALTHCARE SWAN HOUSE LTD,12/02/2024,"4,056.00",6541-Residential,THIRD PARTY PAYMENTS,PRIVATE CONTRACTOR,REVENUE
Walsall Council,http://opendatacommunities.org/id/metropolitan-district-council/walsall ,WC159-298,29.02.2024,ADULT SOCIAL CARE,ABSOLUTE HEALTHCARE SWAN HOUSE LTD,12/02/2024,"2,137.32",6541-Residential,THIRD PARTY PAYMENTS,PRIVATE CONTRACTOR,REVENUE
Walsall Council,http://opendatacommunities.org/id/metropolitan-district-council/walsall ,WC159-299,29.02.2024,ADULT SOCIAL CARE,ABSOLUTE HEALTHCARE SWAN HOUSE LTD,12/02/2024,"1,551.45",6541-Residential EMI,THIRD PARTY PAYMENTS,PRIVATE CONTRACTOR,REVENUE
Walsall Council,http://opendatacommunities.org/id/metropolitan-district-council/walsall ,WC159-300,29.02.2024,ADULT SOCIAL CARE,ABSOLUTE HEALTHCARE SWAN HOUSE LTD,12/02/2024,"2,413.36",6541-Residential EMI,THIRD PARTY PAYMENTS,PRIVATE CONTRACTOR,REVENUE
Walsall Council,http://opendatacommunities.org/id/metropolitan-district-council/walsall ,WC159-301,29.02.2024,ADULT SOCIAL CARE,ABSOLUTE HEALTHCARE SWAN HOUSE LTD,12/02/2024,"4,000.00",6541-Nursing EMI,THIRD PARTY PAYMENTS,PRIVATE CONTRACTOR,REVENUE
Walsall Council,http://opendatacommunities.org/id/metropolitan-district-council/walsall ,WC159-302,29.02.2024,ADULT SOCIAL CARE,ABSOLUTE HEALTHCARE SWAN HOUSE LTD,12/02/2024,"4,800.00",6541-Residential,THIRD PARTY PAYMENTS,PRIVATE CONTRACTOR,REVENUE
Walsall Council,http://opendatacommunities.org/id/metropolitan-district-council/walsall ,WC159-303,29.02.2024,ADULT SOCIAL CARE,ABSOLUTE HEALTHCARE SWAN HOUSE LTD,12/02/2024,"5,240.48",6541-Nursing EMI,THIRD PARTY PAYMENTS,PRIVATE CONTRACTOR,REVENUE
Walsall Council,http://opendatacommunities.org/id/metropolitan-district-council/walsall ,WC159-304,29.02.2024,CHILDRENS,ABU BAKR NURSERY,08/02/2024,681.86,1184-Other-Grants to Other Orgs,SUPPLIES & SERVICES,GRANTS (EXP) & SUBSCRIPTIONS,REVENUE
Walsall Council,http://opendatacommunities.org/id/metropolitan-district-council/walsall ,WC159-305,29.02.2024,CHILDRENS,ABU BAKR NURSERY,08/02/2024,"1,585.58",1184-Other-Grants to Other Orgs,SUPPLIES & SERVICES,GRANTS (EXP) & SUBSCRIPTIONS,REVENUE
Walsall Council,http://opendatacommunities.org/id/metropolitan-district-council/walsall ,WC159-306,29.02.2024,CHILDRENS,ACCALIA CARE SERVICES LTD,20/02/2024,"21,160.00",6223-External Residential Care-Oth Agency Provision,THIRD PARTY PAYMENTS,PRIVATE CONTRACTOR,REVENUE
Walsall Council,http://opendatacommunities.org/id/metropolitan-district-council/walsall ,WC159-307,29.02.2024,CHILDRENS,ACCEPTING BEHAVIOUR LTD,06/02/2024,"-1,248.00",1220-Professional Fees & Services,SUPPLIES & SERVICES,SERVICES,REVENUE
Walsall Council,http://opendatacommunities.org/id/metropolitan-district-council/walsall ,WC159-308,29.02.2024,CHILDRENS,ACCEPTING BEHAVIOUR LTD,06/02/2024,"1,040.00",1220-Professional Fees & Services,SUPPLIES & SERVICES,SERVICES,REVENUE
Walsall Council,http://opendatacommunities.org/id/metropolitan-district-council/walsall ,WC159-309,29.02.2024,CHILDRENS,ACCEPTING BEHAVIOUR LTD,06/02/2024,"1,248.00",1220-Professional Fees & Services,SUPPLIES & SERVICES,SERVICES,REVENUE
Walsall Council,http://opendatacommunities.org/id/metropolitan-district-council/walsall ,WC159-310,29.02.2024,RESOURCES AND TRANSFORMATION CAPITAL,ACCESS PAYSUITE LTD,29/02/2024,"15,111.00",7300-Consultants Fees,CAPITAL,"NEW CONSTRUCTION,CONVERSION & RENOVATION",REVENUE
Walsall Council,http://opendatacommunities.org/id/metropolitan-district-council/walsall ,WC159-311,29.02.2024,RESOURCES AND TRANSFORMATION,ACCESS UK LTD,06/02/2024,"-6,422.00",6625-Consultant Fees,SUPPLIES & SERVICES,SERVICES,REVENUE
Walsall Council,http://opendatacommunities.org/id/metropolitan-district-council/walsall ,WC159-312,29.02.2024,RESOURCES AND TRANSFORMATION,ACCESS UK LTD,06/02/2024,"-4,281.33",6625-Consultant Fees,SUPPLIES & SERVICES,SERVICES,REVENUE
Walsall Council,http://opendatacommunities.org/id/metropolitan-district-council/walsall ,WC159-313,29.02.2024,RESOURCES AND TRANSFORMATION,ACCESS UK LTD,06/02/2024,"-2,140.67",6625-Consultant Fees,SUPPLIES & SERVICES,SERVICES,REVENUE
Walsall Council,http://opendatacommunities.org/id/metropolitan-district-council/walsall ,WC159-314,29.02.2024,RESOURCES AND TRANSFORMATION,ACCESS UK LTD,06/02/2024,"2,140.67",6625-Consultant Fees,SUPPLIES & SERVICES,SERVICES,REVENUE
Walsall Council,http://opendatacommunities.org/id/metropolitan-district-council/walsall ,WC159-315,29.02.2024,RESOURCES AND TRANSFORMATION,ACCESS UK LTD,06/02/2024,"4,281.33",6625-Consultant Fees,SUPPLIES & SERVICES,SERVICES,REVENUE
Walsall Council,http://opendatacommunities.org/id/metropolitan-district-council/walsall ,WC159-316,29.02.2024,RESOURCES AND TRANSFORMATION,ACCESS UK LTD,06/02/2024,"6,422.00",6625-Consultant Fees,SUPPLIES & SERVICES,SERVICES,REVENUE
Walsall Council,http://opendatacommunities.org/id/metropolitan-district-council/walsall ,WC159-317,29.02.2024,ADULT SOCIAL CARE,ACCESS UK LTD,02/02/2024,"18,315.00",6551-Professional Fees & Services,SUPPLIES & SERVICES,SERVICES,REVENUE
Walsall Council,http://opendatacommunities.org/id/metropolitan-district-council/walsall ,WC159-318,29.02.2024,ADULT SOCIAL CARE,ACCESS UK LTD,14/02/2024,"1,110.00",6551-Computer Equipment,SUPPLIES & SERVICES,COMMUNICATIONS & COMPUTING,REVENUE
Walsall Council,http://opendatacommunities.org/id/metropolitan-district-council/walsall ,WC159-319,29.02.2024,ADULT SOCIAL CARE,ACCESS UK LTD,29/02/2024,"-1,100.00",6551-Computer Equipment,SUPPLIES & SERVICES,COMMUNICATIONS & COMPUTING,REVENUE
Walsall Council,http://opendatacommunities.org/id/metropolitan-district-council/walsall ,WC159-320,29.02.2024,ADULT SOCIAL CARE,ACCESS UK LTD,29/02/2024,"1,100.00",6551-Computer Equipment,SUPPLIES & SERVICES,COMMUNICATIONS & COMPUTING,REVENUE
Walsall Council,http://opendatacommunities.org/id/metropolitan-district-council/walsall ,WC159-321,29.02.2024,ADULT SOCIAL CARE,ACCORD HOUSING ASSOCIATION LIMITED - HOBS MEADOW,12/02/2024,"4,776.84",6541-Residential,THIRD PARTY PAYMENTS,PRIVATE CONTRACTOR,REVENUE
Walsall Council,http://opendatacommunities.org/id/metropolitan-district-council/walsall ,WC159-322,29.02.2024,ADULT SOCIAL CARE,ACCORD HOUSING ASSOCIATION LIMITED - HOBS MEADOW,12/02/2024,"4,957.64",6541-Residential,THIRD PARTY PAYMENTS,PRIVATE CONTRACTOR,REVENUE
Walsall Council,http://opendatacommunities.org/id/metropolitan-district-council/walsall ,WC159-323,29.02.2024,ADULT SOCIAL CARE,ACCORD HOUSING ASSOCIATION LIMITED - HOBS MEADOW,12/02/2024,"4,776.84",6541-Residential,THIRD PARTY PAYMENTS,PRIVATE CONTRACTOR,REVENUE
Walsall Council,http://opendatacommunities.org/id/metropolitan-district-council/walsall ,WC159-324,29.02.2024,CHILDRENS,ACE CARS & MINIBUSES LTD,26/02/2024,"2,033.00",6241-Hire of Vehicle with Driver,TRANSPORT,DIRECT TRANSPORT COSTS,REVENUE
Walsall Council,http://opendatacommunities.org/id/metropolitan-district-council/walsall ,WC159-325,29.02.2024,CHILDRENS,ACE CARS & MINIBUSES LTD,26/02/2024,"2,033.00",6241-Hire of Vehicle with Driver,TRANSPORT,DIRECT TRANSPORT COSTS,REVENUE
Walsall Council,http://opendatacommunities.org/id/metropolitan-district-council/walsall ,WC159-326,29.02.2024,CHILDRENS,ACE CARS & MINIBUSES LTD,26/02/2024,"2,033.00",6241-Hire of Vehicle with Driver,TRANSPORT,DIRECT TRANSPORT COSTS,REVENUE
Walsall Council,http://opendatacommunities.org/id/metropolitan-district-council/walsall ,WC159-327,29.02.2024,CHILDRENS,ACE CARS & MINIBUSES LTD,26/02/2024,"2,033.00",6241-Hire of Vehicle with Driver,TRANSPORT,DIRECT TRANSPORT COSTS,REVENUE
Walsall Council,http://opendatacommunities.org/id/metropolitan-district-council/walsall ,WC159-328,29.02.2024,CHILDRENS,ACE CARS & MINIBUSES LTD,26/02/2024,"2,242.00",6241-Hire of Vehicle with Driver,TRANSPORT,DIRECT TRANSPORT COSTS,REVENUE
Walsall Council,http://opendatacommunities.org/id/metropolitan-district-council/walsall ,WC159-329,29.02.2024,CHILDRENS,ACE CARS & MINIBUSES LTD,26/02/2024,"3,011.50",6241-Hire of Vehicle with Driver,TRANSPORT,DIRECT TRANSPORT COSTS,REVENUE
Walsall Council,http://opendatacommunities.org/id/metropolitan-district-council/walsall ,WC159-330,29.02.2024,CHILDRENS,ACE CARS & MINIBUSES LTD,26/02/2024,"3,220.50",6241-Hire of Vehicle with Driver,TRANSPORT,DIRECT TRANSPORT COSTS,REVENUE
Walsall Council,http://opendatacommunities.org/id/metropolitan-district-council/walsall ,WC159-331,29.02.2024,CHILDRENS,ACE CARS & MINIBUSES LTD,26/02/2024,"2,390.00",6241-Hire of Vehicle with Driver,TRANSPORT,DIRECT TRANSPORT COSTS,REVENUE
Walsall Council,http://opendatacommunities.org/id/metropolitan-district-council/walsall ,WC159-332,29.02.2024,CHILDRENS,ACE CARS & MINIBUSES LTD,26/02/2024,"2,629.00",6241-Hire of Vehicle with Driver,TRANSPORT,DIRECT TRANSPORT COSTS,REVENUE
Walsall Council,http://opendatacommunities.org/id/metropolitan-district-council/walsall ,WC159-333,29.02.2024,CHILDRENS,ACE CARS & MINIBUSES LTD,26/02/2024,"2,585.90",6241-Hire of Vehicle with Driver,TRANSPORT,DIRECT TRANSPORT COSTS,REVENUE
Walsall Council,http://opendatacommunities.org/id/metropolitan-district-council/walsall ,WC159-334,29.02.2024,CHILDRENS,ACE CARS & MINIBUSES LTD,26/02/2024,"2,585.90",6241-Hire of Vehicle with Driver,TRANSPORT,DIRECT TRANSPORT COSTS,REVENUE
Walsall Council,http://opendatacommunities.org/id/metropolitan-district-council/walsall ,WC159-335,29.02.2024,CHILDRENS,ACE CARS & MINIBUSES LTD,26/02/2024,"2,242.00",6241-Hire of Vehicle with Driver,TRANSPORT,DIRECT TRANSPORT COSTS,REVENUE
Walsall Council,http://opendatacommunities.org/id/metropolitan-district-council/walsall ,WC159-336,29.02.2024,CHILDRENS,ACE CARS & MINIBUSES LTD,26/02/2024,"2,555.88",6241-Hire of Vehicle with Driver,TRANSPORT,DIRECT TRANSPORT COSTS,REVENUE
Walsall Council,http://opendatacommunities.org/id/metropolitan-district-council/walsall ,WC159-337,29.02.2024,CHILDRENS,ACE CARS & MINIBUSES LTD,26/02/2024,"2,376.52",6241-Hire of Vehicle with Driver,TRANSPORT,DIRECT TRANSPORT COSTS,REVENUE
Walsall Council,http://opendatacommunities.org/id/metropolitan-district-council/walsall ,WC159-338,29.02.2024,CHILDRENS,ACE CARS & MINIBUSES LTD,26/02/2024,"2,166.00",6241-Hire of Vehicle with Driver,TRANSPORT,DIRECT TRANSPORT COSTS,REVENUE
Walsall Council,http://opendatacommunities.org/id/metropolitan-district-council/walsall ,WC159-339,29.02.2024,CHILDRENS,ACE CARS & MINIBUSES LTD,26/02/2024,"2,242.00",6241-Hire of Vehicle with Driver,TRANSPORT,DIRECT TRANSPORT COSTS,REVENUE
Walsall Council,http://opendatacommunities.org/id/metropolitan-district-council/walsall ,WC159-340,29.02.2024,CHILDRENS,ACE CARS & MINIBUSES LTD,26/02/2024,"3,594.61",6241-Hire of Vehicle with Driver,TRANSPORT,DIRECT TRANSPORT COSTS,REVENUE
Walsall Council,http://opendatacommunities.org/id/metropolitan-district-council/walsall ,WC159-341,29.02.2024,CHILDRENS,ACE CARS & MINIBUSES LTD,26/02/2024,"2,585.90",6241-Hire of Vehicle with Driver,TRANSPORT,DIRECT TRANSPORT COSTS,REVENUE
Walsall Council,http://opendatacommunities.org/id/metropolitan-district-council/walsall ,WC159-342,29.02.2024,CHILDRENS,ACE CARS & MINIBUSES LTD,26/02/2024,"2,922.01",6241-Hire of Vehicle with Driver,TRANSPORT,DIRECT TRANSPORT COSTS,REVENUE
Walsall Council,http://opendatacommunities.org/id/metropolitan-district-council/walsall ,WC159-343,29.02.2024,CHILDRENS,ACE CARS & MINIBUSES LTD,26/02/2024,"2,959.44",6241-Hire of Vehicle with Driver,TRANSPORT,DIRECT TRANSPORT COSTS,REVENUE
Walsall Council,http://opendatacommunities.org/id/metropolitan-district-council/walsall ,WC159-344,29.02.2024,CHILDRENS,ACE CARS & MINIBUSES LTD,26/02/2024,"2,280.00",6241-Hire of Vehicle with Driver,TRANSPORT,DIRECT TRANSPORT COSTS,REVENUE
Walsall Council,http://opendatacommunities.org/id/metropolitan-district-council/walsall ,WC159-345,29.02.2024,CHILDRENS,ACE CARS & MINIBUSES LTD,26/02/2024,"2,280.00",6241-Hire of Vehicle with Driver,TRANSPORT,DIRECT TRANSPORT COSTS,REVENUE
Walsall Council,http://opendatacommunities.org/id/metropolitan-district-council/walsall ,WC159-346,29.02.2024,CHILDRENS,ACE CARS & MINIBUSES LTD,26/02/2024,"2,390.00",6241-Hire of Vehicle with Driver,TRANSPORT,DIRECT TRANSPORT COSTS,REVENUE
Walsall Council,http://opendatacommunities.org/id/metropolitan-district-council/walsall ,WC159-347,29.02.2024,CHILDRENS,ACE CARS & MINIBUSES LTD,26/02/2024,"2,033.00",6241-Hire of Vehicle with Driver,TRANSPORT,DIRECT TRANSPORT COSTS,REVENUE
Walsall Council,http://opendatacommunities.org/id/metropolitan-district-council/walsall ,WC159-348,29.02.2024,CHILDRENS,ACE CARS & MINIBUSES LTD,26/02/2024,"4,035.60",6241-Hire of Vehicle with Driver,TRANSPORT,DIRECT TRANSPORT COSTS,REVENUE
Walsall Council,http://opendatacommunities.org/id/metropolitan-district-council/walsall ,WC159-349,29.02.2024,CHILDRENS,ACE CARS & MINIBUSES LTD,26/02/2024,"2,033.00",6241-Hire of Vehicle with Driver,TRANSPORT,DIRECT TRANSPORT COSTS,REVENUE
Walsall Council,http://opendatacommunities.org/id/metropolitan-district-council/walsall ,WC159-350,29.02.2024,CHILDRENS,ACE CARS & MINIBUSES LTD,26/02/2024,"2,033.00",6241-Hire of Vehicle with Driver,TRANSPORT,DIRECT TRANSPORT COSTS,REVENUE
Walsall Council,http://opendatacommunities.org/id/metropolitan-district-council/walsall ,WC159-351,29.02.2024,CHILDRENS,ACE CARS & MINIBUSES LTD,26/02/2024,"2,033.00",6241-Hire of Vehicle with Driver,TRANSPORT,DIRECT TRANSPORT COSTS,REVENUE
Walsall Council,http://opendatacommunities.org/id/metropolitan-district-council/walsall ,WC159-352,29.02.2024,CHILDRENS,ACE CARS & MINIBUSES LTD,26/02/2024,"2,242.00",6241-Hire of Vehicle with Driver,TRANSPORT,DIRECT TRANSPORT COSTS,REVENUE
Walsall Council,http://opendatacommunities.org/id/metropolitan-district-council/walsall ,WC159-353,29.02.2024,CHILDRENS,ACE CARS & MINIBUSES LTD,26/02/2024,"2,585.90",6241-Hire of Vehicle with Driver,TRANSPORT,DIRECT TRANSPORT COSTS,REVENUE
Walsall Council,http://opendatacommunities.org/id/metropolitan-district-council/walsall ,WC159-354,29.02.2024,CHILDRENS,ACE CARS & MINIBUSES LTD,26/02/2024,"2,585.90",6241-Hire of Vehicle with Driver,TRANSPORT,DIRECT TRANSPORT COSTS,REVENUE
Walsall Council,http://opendatacommunities.org/id/metropolitan-district-council/walsall ,WC159-355,29.02.2024,CHILDRENS,ACE CARS & MINIBUSES LTD,26/02/2024,"2,585.90",6241-Hire of Vehicle with Driver,TRANSPORT,DIRECT TRANSPORT COSTS,REVENUE
Walsall Council,http://opendatacommunities.org/id/metropolitan-district-council/walsall ,WC159-356,29.02.2024,CHILDRENS,ACE CARS & MINIBUSES LTD,26/02/2024,"3,848.00",6241-Hire of Vehicle with Driver,TRANSPORT,DIRECT TRANSPORT COSTS,REVENUE
Walsall Council,http://opendatacommunities.org/id/metropolitan-district-council/walsall ,WC159-357,29.02.2024,CHILDRENS,ACE CARS & MINIBUSES LTD,26/02/2024,"2,390.00",6241-Hire of Vehicle with Driver,TRANSPORT,DIRECT TRANSPORT COSTS,REVENUE
Walsall Council,http://opendatacommunities.org/id/metropolitan-district-council/walsall ,WC159-358,29.02.2024,CHILDRENS,ACE CARS & MINIBUSES LTD,26/02/2024,"2,280.00",6241-Hire of Vehicle with Driver,TRANSPORT,DIRECT TRANSPORT COSTS,REVENUE
Walsall Council,http://opendatacommunities.org/id/metropolitan-district-council/walsall ,WC159-359,29.02.2024,CHILDRENS,ACE CARS & MINIBUSES LTD,26/02/2024,"2,033.00",6241-Hire of Vehicle with Driver,TRANSPORT,DIRECT TRANSPORT COSTS,REVENUE
Walsall Council,http://opendatacommunities.org/id/metropolitan-district-council/walsall ,WC159-360,29.02.2024,CHILDRENS,ACE CARS & MINIBUSES LTD,26/02/2024,"2,033.00",6241-Hire of Vehicle with Driver,TRANSPORT,DIRECT TRANSPORT COSTS,REVENUE
Walsall Council,http://opendatacommunities.org/id/metropolitan-district-council/walsall ,WC159-361,29.02.2024,CHILDRENS,ACE CARS & MINIBUSES LTD,26/02/2024,"2,242.00",6241-Hire of Vehicle with Driver,TRANSPORT,DIRECT TRANSPORT COSTS,REVENUE
Walsall Council,http://opendatacommunities.org/id/metropolitan-district-council/walsall ,WC159-362,29.02.2024,CHILDRENS,ACE CARS & MINIBUSES LTD,26/02/2024,"3,393.80",6241-Hire of Vehicle with Driver,TRANSPORT,DIRECT TRANSPORT COSTS,REVENUE
Walsall Council,http://opendatacommunities.org/id/metropolitan-district-council/walsall ,WC159-363,29.02.2024,CHILDRENS,ACE CARS & MINIBUSES LTD,26/02/2024,"2,033.00",6241-Hire of Vehicle with Driver,TRANSPORT,DIRECT TRANSPORT COSTS,REVENUE
Walsall Council,http://opendatacommunities.org/id/metropolitan-district-council/walsall ,WC159-364,29.02.2024,ADULT SOCIAL CARE,ACEPAY LTD (COTTAGE NUR HOME),12/02/2024,"2,505.36",6541-Nursing,THIRD PARTY PAYMENTS,PRIVATE CONTRACTOR,REVENUE
Walsall Council,http://opendatacommunities.org/id/metropolitan-district-council/walsall ,WC159-365,29.02.2024,ADULT SOCIAL CARE,ACEPAY LTD (COTTAGE NUR HOME),12/02/2024,"2,505.36",6541-Nursing,THIRD PARTY PAYMENTS,PRIVATE CONTRACTOR,REVENUE
Walsall Council,http://opendatacommunities.org/id/metropolitan-district-council/walsall ,WC159-366,29.02.2024,ADULT SOCIAL CARE,ACEPAY LTD (COTTAGE NUR HOME),12/02/2024,"2,505.36",6541-Nursing,THIRD PARTY PAYMENTS,PRIVATE CONTRACTOR,REVENUE
Walsall Council,http://opendatacommunities.org/id/metropolitan-district-council/walsall ,WC159-367,29.02.2024,ADULT SOCIAL CARE,ACEPAY LTD (COTTAGE NUR HOME),12/02/2024,"2,505.36",6541-Nursing,THIRD PARTY PAYMENTS,PRIVATE CONTRACTOR,REVENUE
Walsall Council,http://opendatacommunities.org/id/metropolitan-district-council/walsall ,WC159-368,29.02.2024,ADULT SOCIAL CARE,ACEPAY LTD (COTTAGE NUR HOME),12/02/2024,"2,413.36",6541-Residential EMI,THIRD PARTY PAYMENTS,PRIVATE CONTRACTOR,REVENUE
Walsall Council,http://opendatacommunities.org/id/metropolitan-district-council/walsall ,WC159-369,29.02.2024,ADULT SOCIAL CARE,ACEPAY LTD (COTTAGE NUR HOME),12/02/2024,"2,819.08",6541-Nursing EMI,THIRD PARTY PAYMENTS,PRIVATE CONTRACTOR,REVENUE
Walsall Council,http://opendatacommunities.org/id/metropolitan-district-council/walsall ,WC159-370,29.02.2024,ADULT SOCIAL CARE,ACEPAY LTD (COTTAGE NUR HOME),12/02/2024,"2,413.36",6541-Residential EMI,THIRD PARTY PAYMENTS,PRIVATE CONTRACTOR,REVENUE
Walsall Council,http://opendatacommunities.org/id/metropolitan-district-council/walsall ,WC159-371,29.02.2024,ADULT SOCIAL CARE,ACEPAY LTD (COTTAGE NUR HOME),12/02/2024,"2,505.36",6541-Nursing,THIRD PARTY PAYMENTS,PRIVATE CONTRACTOR,REVENUE
Walsall Council,http://opendatacommunities.org/id/metropolitan-district-council/walsall ,WC159-372,29.02.2024,ADULT SOCIAL CARE,ACEPAY LTD (COTTAGE NUR HOME),12/02/2024,"2,819.08",6541-Nursing EMI,THIRD PARTY PAYMENTS,PRIVATE CONTRACTOR,REVENUE
Walsall Council,http://opendatacommunities.org/id/metropolitan-district-council/walsall ,WC159-373,29.02.2024,ADULT SOCIAL CARE,ACEPAY LTD (COTTAGE NUR HOME),12/02/2024,"4,530.66",6541-Nursing EMI,THIRD PARTY PAYMENTS,PRIVATE CONTRACTOR,REVENUE
Walsall Council,http://opendatacommunities.org/id/metropolitan-district-council/walsall ,WC159-374,29.02.2024,ADULT SOCIAL CARE,ACEPAY LTD (COTTAGE NUR HOME),12/02/2024,"2,505.36",6541-Nursing,THIRD PARTY PAYMENTS,PRIVATE CONTRACTOR,REVENUE
Walsall Council,http://opendatacommunities.org/id/metropolitan-district-council/walsall ,WC159-375,29.02.2024,ADULT SOCIAL CARE,ACEPAY LTD (COTTAGE NUR HOME),12/02/2024,"2,505.36",6541-Nursing,THIRD PARTY PAYMENTS,PRIVATE CONTRACTOR,REVENUE
Walsall Council,http://opendatacommunities.org/id/metropolitan-district-council/walsall ,WC159-376,29.02.2024,ADULT SOCIAL CARE,ACEPAY LTD (COTTAGE NUR HOME),12/02/2024,"2,505.36",6541-Nursing,THIRD PARTY PAYMENTS,PRIVATE CONTRACTOR,REVENUE
Walsall Council,http://opendatacommunities.org/id/metropolitan-district-council/walsall ,WC159-377,29.02.2024,ADULT SOCIAL CARE,ACEPAY LTD (COTTAGE NUR HOME),12/02/2024,"2,505.36",6541-Nursing,THIRD PARTY PAYMENTS,PRIVATE CONTRACTOR,REVENUE
Walsall Council,http://opendatacommunities.org/id/metropolitan-district-council/walsall ,WC159-378,29.02.2024,ADULT SOCIAL CARE,ACEPAY LTD (COTTAGE NUR HOME),12/02/2024,"2,505.36",6541-Nursing,THIRD PARTY PAYMENTS,PRIVATE CONTRACTOR,REVENUE
Walsall Council,http://opendatacommunities.org/id/metropolitan-district-council/walsall ,WC159-379,29.02.2024,ADULT SOCIAL CARE,ACEPAY LTD (COTTAGE NUR HOME),12/02/2024,"2,236.93",6541-Nursing,THIRD PARTY PAYMENTS,PRIVATE CONTRACTOR,REVENUE
Walsall Council,http://opendatacommunities.org/id/metropolitan-district-council/walsall ,WC159-380,29.02.2024,ADULT SOCIAL CARE,ACEPAY LTD (COTTAGE NUR HOME),12/02/2024,"2,505.36",6541-Nursing,THIRD PARTY PAYMENTS,PRIVATE CONTRACTOR,REVENUE
Walsall Council,http://opendatacommunities.org/id/metropolitan-district-council/walsall ,WC159-381,29.02.2024,ADULT SOCIAL CARE,ACEPAY LTD (COTTAGE NUR HOME),12/02/2024,"3,059.08",6541-Nursing EMI,THIRD PARTY PAYMENTS,PRIVATE CONTRACTOR,REVENUE
Walsall Council,http://opendatacommunities.org/id/metropolitan-district-council/walsall ,WC159-382,29.02.2024,ADULT SOCIAL CARE,ACEPAY LTD (COTTAGE NUR HOME),12/02/2024,"2,413.36",6541-Residential EMI,THIRD PARTY PAYMENTS,PRIVATE CONTRACTOR,REVENUE
Walsall Council,http://opendatacommunities.org/id/metropolitan-district-council/walsall ,WC159-383,29.02.2024,ADULT SOCIAL CARE,ACEPAY LTD (COTTAGE NUR HOME),12/02/2024,"2,413.36",6541-Residential EMI,THIRD PARTY PAYMENTS,PRIVATE CONTRACTOR,REVENUE
Walsall Council,http://opendatacommunities.org/id/metropolitan-district-council/walsall ,WC159-384,29.02.2024,ADULT SOCIAL CARE,ACEPAY LTD (COTTAGE NUR HOME),12/02/2024,"2,819.08",6541-Nursing EMI,THIRD PARTY PAYMENTS,PRIVATE CONTRACTOR,REVENUE
Walsall Council,http://opendatacommunities.org/id/metropolitan-district-council/walsall ,WC159-385,29.02.2024,ADULT SOCIAL CARE,ACEPAY LTD (COTTAGE NUR HOME),12/02/2024,"2,819.08",6541-Nursing EMI,THIRD PARTY PAYMENTS,PRIVATE CONTRACTOR,REVENUE
Walsall Council,http://opendatacommunities.org/id/metropolitan-district-council/walsall ,WC159-386,29.02.2024,ADULT SOCIAL CARE,ACEPAY LTD (COTTAGE NUR HOME),12/02/2024,"2,819.08",6541-Nursing EMI,THIRD PARTY PAYMENTS,PRIVATE CONTRACTOR,REVENUE
Walsall Council,http://opendatacommunities.org/id/metropolitan-district-council/walsall ,WC159-387,29.02.2024,ADULT SOCIAL CARE,ACEPAY LTD (COTTAGE NUR HOME),12/02/2024,"2,505.36",6541-Nursing,THIRD PARTY PAYMENTS,PRIVATE CONTRACTOR,REVENUE
Walsall Council,http://opendatacommunities.org/id/metropolitan-district-council/walsall ,WC159-388,29.02.2024,ADULT SOCIAL CARE,ACHIEVE TOGETHER LIMITED,12/02/2024,"5,506.08",6541-Residential,THIRD PARTY PAYMENTS,PRIVATE CONTRACTOR,REVENUE
Walsall Council,http://opendatacommunities.org/id/metropolitan-district-council/walsall ,WC159-389,29.02.2024,ADULT SOCIAL CARE,ACHIEVE TOGETHER LIMITED,12/02/2024,"9,178.80",6541-Residential,THIRD PARTY PAYMENTS,PRIVATE CONTRACTOR,REVENUE
Walsall Council,http://opendatacommunities.org/id/metropolitan-district-council/walsall ,WC159-390,29.02.2024,ADULT SOCIAL CARE,ACHIEVE TOGETHER LIMITED,12/02/2024,"6,572.72",6541-Residential,THIRD PARTY PAYMENTS,PRIVATE CONTRACTOR,REVENUE
Walsall Council,http://opendatacommunities.org/id/metropolitan-district-council/walsall ,WC159-391,29.02.2024,ADULT SOCIAL CARE,ACHIEVE TOGETHER LIMITED,12/02/2024,"3,852.80",6541-Residential,THIRD PARTY PAYMENTS,PRIVATE CONTRACTOR,REVENUE
Walsall Council,http://opendatacommunities.org/id/metropolitan-district-council/walsall ,WC159-392,29.02.2024,ADULT SOCIAL CARE,ACHIEVE TOGETHER LIMITED,12/02/2024,"4,920.72",6541-Residential,THIRD PARTY PAYMENTS,PRIVATE CONTRACTOR,REVENUE
Walsall Council,http://opendatacommunities.org/id/metropolitan-district-council/walsall ,WC159-393,29.02.2024,CHILDRENS,ACORN CARE & EDUCATION LTD (SALES),20/02/2024,"-6,389.17",1220-Professional Fees & Services,SUPPLIES & SERVICES,SERVICES,REVENUE
Walsall Council,http://opendatacommunities.org/id/metropolitan-district-council/walsall ,WC159-394,29.02.2024,CHILDRENS,ACORN CARE & EDUCATION LTD (SALES),20/02/2024,"6,389.17",1220-Professional Fees & Services,SUPPLIES & SERVICES,SERVICES,REVENUE
Walsall Council,http://opendatacommunities.org/id/metropolitan-district-council/walsall ,WC159-395,29.02.2024,CHILDRENS,ACORN CARE & EDUCATION LTD (SALES),20/02/2024,"37,438.46",6223-External Residential Care-Oth Agency Provision,THIRD PARTY PAYMENTS,PRIVATE CONTRACTOR,REVENUE
Walsall Council,http://opendatacommunities.org/id/metropolitan-district-council/walsall ,WC159-396,29.02.2024,"ECONOMY, ENVIRONMENT & COMMUNITIES",ACORN ENVIRONMENTAL MANAGEMENT GROUP LTD,15/02/2024,"12,054.00",6410-Professional Services-Priv Contractor & Other Agencies,THIRD PARTY PAYMENTS,PRIVATE CONTRACTOR,REVENUE
Walsall Council,http://opendatacommunities.org/id/metropolitan-district-council/walsall ,WC159-397,29.02.2024,CHILDRENS,ACORN FOSTERING SERVICES LTD,20/02/2024,"3,340.00",6223-Independent Foster Care-Oth Agency Provision,THIRD PARTY PAYMENTS,PRIVATE CONTRACTOR,REVENUE
Walsall Council,http://opendatacommunities.org/id/metropolitan-district-council/walsall ,WC159-398,29.02.2024,CHILDRENS CAPITAL,ACORN MOBILITY SERVICES LTD/ACORN STAIRLIFTS,29/02/2024,"5,890.00",7100-Private Grants,CAPITAL,CAPITAL GRANTS,CAPITAL GRANTS
Walsall Council,http://opendatacommunities.org/id/metropolitan-district-council/walsall ,WC159-399,29.02.2024,CHILDRENS CAPITAL,ACORN MOBILITY SERVICES LTD/ACORN STAIRLIFTS,29/02/2024,"5,198.02",7100-Private Grants,CAPITAL,CAPITAL GRANTS,CAPITAL GRANTS
Walsall Council,http://opendatacommunities.org/id/metropolitan-district-council/walsall ,WC159-400,29.02.2024,CHILDRENS CAPITAL,ACORN MOBILITY SERVICES LTD/ACORN STAIRLIFTS,29/02/2024,"-7,485.00",7100-Private Grants,CAPITAL,CAPITAL GRANTS,CAPITAL GRANTS
Walsall Council,http://opendatacommunities.org/id/metropolitan-district-council/walsall ,WC159-401,29.02.2024,CHILDRENS CAPITAL,ACORN MOBILITY SERVICES LTD/ACORN STAIRLIFTS,29/02/2024,"-5,890.00",7100-Private Grants,CAPITAL,CAPITAL GRANTS,CAPITAL GRANTS
Walsall Council,http://opendatacommunities.org/id/metropolitan-district-council/walsall ,WC159-402,29.02.2024,CHILDRENS,ACORNS CHILDRENS HOSPICE TRUST,22/02/2024,"1,950.00",6220-Professional Fees & Services,SUPPLIES & SERVICES,SERVICES,REVENUE
Walsall Council,http://opendatacommunities.org/id/metropolitan-district-council/walsall ,WC159-403,29.02.2024,CHILDRENS,ACPAS LIMITED,05/02/2024,266.44,6222-Consultant Fees,SUPPLIES & SERVICES,SERVICES,REVENUE
Walsall Council,http://opendatacommunities.org/id/metropolitan-district-council/walsall ,WC159-404,29.02.2024,CHILDRENS,ACPAS LIMITED,15/02/2024,358.80,6220-School Only Payments - Catering,THIRD PARTY PAYMENTS,INDEPENDENT UNIT WITHIN COUNCIL,REVENUE
Walsall Council,http://opendatacommunities.org/id/metropolitan-district-council/walsall ,WC159-405,29.02.2024,CHILDRENS,ACPAS LIMITED,12/02/2024,"1,076.40",6222-Consultant Fees,SUPPLIES & SERVICES,SERVICES,REVENUE
Walsall Council,http://opendatacommunities.org/id/metropolitan-district-council/walsall ,WC159-406,29.02.2024,"ECONOMY, ENVIRONMENT & COMMUNITIES",ACTION GRAPHICS & DISPLAY LTD,08/02/2024,368.00,6414-Outwork Print & Design,SUPPLIES & SERVICES,PRINTING STATIONERY & GENERAL OFFICE,REVENUE
Walsall Council,http://opendatacommunities.org/id/metropolitan-district-council/walsall ,WC159-407,29.02.2024,CHILDRENS,ACTIVE CARE SOLUTIONS LTD,20/02/2024,"4,366.76",6223-Independent Foster Care-Oth Agency Provision,THIRD PARTY PAYMENTS,PRIVATE CONTRACTOR,REVENUE
Walsall Council,http://opendatacommunities.org/id/metropolitan-district-council/walsall ,WC159-408,29.02.2024,CHILDRENS,ACTIVE CARE SOLUTIONS LTD,20/02/2024,"3,514.80",6223-Independent Foster Care-Oth Agency Provision,THIRD PARTY PAYMENTS,PRIVATE CONTRACTOR,REVENUE
Walsall Council,http://opendatacommunities.org/id/metropolitan-district-council/walsall ,WC159-409,29.02.2024,"ECONOMY, ENVIRONMENT & COMMUNITIES",ACTIVITY GYM LTD,06/02/2024,"1,250.00",6413-Fees & Licences,SUPPLIES & SERVICES,SERVICES,REVENUE
Walsall Council,http://opendatacommunities.org/id/metropolitan-district-council/walsall ,WC159-410,29.02.2024,ADULT SOCIAL CARE,REDACTED,01/02/2024,747.92,6541-Direct Payment,THIRD PARTY PAYMENTS,PRIVATE CONTRACTOR,REVENUE
Walsall Council,http://opendatacommunities.org/id/metropolitan-district-council/walsall ,WC159-411,29.02.2024,CHILDRENS,REDACTED,08/02/2024,363.84,6223-Special Guardianship Orders,TRANSFER PAYMENTS,CHILDREN SOCIAL SERVICES CLIENT,REVENUE
Walsall Council,http://opendatacommunities.org/id/metropolitan-district-council/walsall ,WC159-412,29.02.2024,CHILDRENS,ADCS (ASSOCIATION OF DIRECTORS OF CHILDRENS SERVICES),20/02/2024,"2,851.00",6213-Contribution to PCT,THIRD PARTY PAYMENTS,HEALTH AUTHORITIES,REVENUE
Walsall Council,http://opendatacommunities.org/id/metropolitan-district-council/walsall ,WC159-413,29.02.2024,CHILDRENS,REDACTED,08/02/2024,350.96,6223-Residents Orders,TRANSFER PAYMENTS,CHILDREN SOCIAL SERVICES CLIENT,REVENUE
Walsall Council,http://opendatacommunities.org/id/metropolitan-district-council/walsall ,WC159-414,29.02.2024,ADULT SOCIAL CARE,REDACTED,01/02/2024,"2,177.80",6541-Direct Payment,THIRD PARTY PAYMENTS,PRIVATE CONTRACTOR,REVENUE
Walsall Council,http://opendatacommunities.org/id/metropolitan-district-council/walsall ,WC159-415,29.02.2024,ADULT SOCIAL CARE,ADVANCE HEALTH CARE (UK) LTD,07/02/2024,996.00,6541-Domiciliary Care,THIRD PARTY PAYMENTS,PRIVATE CONTRACTOR,REVENUE
Walsall Council,http://opendatacommunities.org/id/metropolitan-district-council/walsall ,WC159-416,29.02.2024,ADULT SOCIAL CARE,ADVANCE HEALTH CARE (UK) LTD,07/02/2024,336.00,6541-Domiciliary Care,THIRD PARTY PAYMENTS,PRIVATE CONTRACTOR,REVENUE
Walsall Council,http://opendatacommunities.org/id/metropolitan-district-council/walsall ,WC159-417,29.02.2024,ADULT SOCIAL CARE,ADVANCE HEALTH CARE (UK) LTD,07/02/2024,744.00,6541-Domiciliary Care,THIRD PARTY PAYMENTS,PRIVATE CONTRACTOR,REVENUE
Walsall Council,http://opendatacommunities.org/id/metropolitan-district-council/walsall ,WC159-418,29.02.2024,ADULT SOCIAL CARE,ADVANCE HEALTH CARE (UK) LTD,07/02/2024,"1,134.00",6541-Domiciliary Care,THIRD PARTY PAYMENTS,PRIVATE CONTRACTOR,REVENUE
Walsall Council,http://opendatacommunities.org/id/metropolitan-district-council/walsall ,WC159-419,29.02.2024,ADULT SOCIAL CARE,ADVANCE HEALTH CARE (UK) LTD,07/02/2024,951.00,6541-Domiciliary Care,THIRD PARTY PAYMENTS,PRIVATE CONTRACTOR,REVENUE
Walsall Council,http://opendatacommunities.org/id/metropolitan-district-council/walsall ,WC159-420,29.02.2024,ADULT SOCIAL CARE,ADVANCE HEALTH CARE (UK) LTD,07/02/2024,"1,242.00",6541-Domiciliary Care,THIRD PARTY PAYMENTS,PRIVATE CONTRACTOR,REVENUE
Walsall Council,http://opendatacommunities.org/id/metropolitan-district-council/walsall ,WC159-421,29.02.2024,ADULT SOCIAL CARE,ADVANCE HEALTH CARE (UK) LTD,07/02/2024,"1,134.00",6541-Domiciliary Care,THIRD PARTY PAYMENTS,PRIVATE CONTRACTOR,REVENUE
Walsall Council,http://opendatacommunities.org/id/metropolitan-district-council/walsall ,WC159-422,29.02.2024,ADULT SOCIAL CARE,ADVANCE HEALTH CARE (UK) LTD,07/02/2024,840.00,6541-Domiciliary Care,THIRD PARTY PAYMENTS,PRIVATE CONTRACTOR,REVENUE
Walsall Council,http://opendatacommunities.org/id/metropolitan-district-council/walsall ,WC159-423,29.02.2024,ADULT SOCIAL CARE,ADVANCE HEALTH CARE (UK) LTD,07/02/2024,828.00,6541-Domiciliary Care,THIRD PARTY PAYMENTS,PRIVATE CONTRACTOR,REVENUE
Walsall Council,http://opendatacommunities.org/id/metropolitan-district-council/walsall ,WC159-424,29.02.2024,ADULT SOCIAL CARE,ADVANCE HEALTH CARE (UK) LTD,07/02/2024,828.00,6541-Domiciliary Care,THIRD PARTY PAYMENTS,PRIVATE CONTRACTOR,REVENUE
Walsall Council,http://opendatacommunities.org/id/metropolitan-district-council/walsall ,WC159-425,29.02.2024,ADULT SOCIAL CARE,ADVANCE HEALTH CARE (UK) LTD,07/02/2024,"1,050.00",6541-Domiciliary Care,THIRD PARTY PAYMENTS,PRIVATE CONTRACTOR,REVENUE
Walsall Council,http://opendatacommunities.org/id/metropolitan-district-council/walsall ,WC159-426,29.02.2024,ADULT SOCIAL CARE,ADVANCE HEALTH CARE (UK) LTD,07/02/2024,"1,206.00",6541-Domiciliary Care,THIRD PARTY PAYMENTS,PRIVATE CONTRACTOR,REVENUE
Walsall Council,http://opendatacommunities.org/id/metropolitan-district-council/walsall ,WC159-427,29.02.2024,ADULT SOCIAL CARE,ADVANCE HEALTH CARE (UK) LTD,07/02/2024,948.00,6541-Domiciliary Care,THIRD PARTY PAYMENTS,PRIVATE CONTRACTOR,REVENUE
Walsall Council,http://opendatacommunities.org/id/metropolitan-district-council/walsall ,WC159-428,29.02.2024,ADULT SOCIAL CARE,ADVANCE HEALTH CARE (UK) LTD,07/02/2024,429.00,6541-Domiciliary Care,THIRD PARTY PAYMENTS,PRIVATE CONTRACTOR,REVENUE
Walsall Council,http://opendatacommunities.org/id/metropolitan-district-council/walsall ,WC159-429,29.02.2024,ADULT SOCIAL CARE,ADVANCE HEALTH CARE (UK) LTD,07/02/2024,432.00,6541-Domiciliary Care,THIRD PARTY PAYMENTS,PRIVATE CONTRACTOR,REVENUE
Walsall Council,http://opendatacommunities.org/id/metropolitan-district-council/walsall ,WC159-430,29.02.2024,ADULT SOCIAL CARE,ADVANCE HEALTH CARE (UK) LTD,07/02/2024,786.00,6541-Domiciliary Care,THIRD PARTY PAYMENTS,PRIVATE CONTRACTOR,REVENUE
Walsall Council,http://opendatacommunities.org/id/metropolitan-district-council/walsall ,WC159-431,29.02.2024,ADULT SOCIAL CARE,ADVANCE HEALTH CARE (UK) LTD,07/02/2024,"1,278.00",6541-Domiciliary Care,THIRD PARTY PAYMENTS,PRIVATE CONTRACTOR,REVENUE
Walsall Council,http://opendatacommunities.org/id/metropolitan-district-council/walsall ,WC159-432,29.02.2024,ADULT SOCIAL CARE,ADVANCE HEALTH CARE (UK) LTD,08/02/2024,672.00,6554-Professional Services-Priv Contractor & Other Agencies,THIRD PARTY PAYMENTS,PRIVATE CONTRACTOR,REVENUE
Walsall Council,http://opendatacommunities.org/id/metropolitan-district-council/walsall ,WC159-433,29.02.2024,ADULT SOCIAL CARE,ADVANCE HEALTH CARE (UK) LTD,08/02/2024,405.00,6554-Professional Services-Priv Contractor & Other Agencies,THIRD PARTY PAYMENTS,PRIVATE CONTRACTOR,REVENUE
Walsall Council,http://opendatacommunities.org/id/metropolitan-district-council/walsall ,WC159-434,29.02.2024,ADULT SOCIAL CARE,ADVANCE HEALTH CARE (UK) LTD,08/02/2024,666.00,6554-Professional Services-Priv Contractor & Other Agencies,THIRD PARTY PAYMENTS,PRIVATE CONTRACTOR,REVENUE
Walsall Council,http://opendatacommunities.org/id/metropolitan-district-council/walsall ,WC159-435,29.02.2024,ADULT SOCIAL CARE,ADVANCE HEALTH CARE (UK) LTD,12/02/2024,963.00,6541-Domiciliary Care,THIRD PARTY PAYMENTS,PRIVATE CONTRACTOR,REVENUE
Walsall Council,http://opendatacommunities.org/id/metropolitan-district-council/walsall ,WC159-436,29.02.2024,ADULT SOCIAL CARE,ADVANCE HEALTH CARE (UK) LTD,12/02/2024,283.50,6541-Domiciliary Care,THIRD PARTY PAYMENTS,PRIVATE CONTRACTOR,REVENUE
Walsall Council,http://opendatacommunities.org/id/metropolitan-district-council/walsall ,WC159-437,29.02.2024,ADULT SOCIAL CARE,ADVANCE HEALTH CARE (UK) LTD,12/02/2024,420.00,6541-Domiciliary Care,THIRD PARTY PAYMENTS,PRIVATE CONTRACTOR,REVENUE
Walsall Council,http://opendatacommunities.org/id/metropolitan-district-council/walsall ,WC159-438,29.02.2024,ADULT SOCIAL CARE,ADVANCE HEALTH CARE (UK) LTD,12/02/2024,378.00,6541-Domiciliary Care,THIRD PARTY PAYMENTS,PRIVATE CONTRACTOR,REVENUE
Walsall Council,http://opendatacommunities.org/id/metropolitan-district-council/walsall ,WC159-439,29.02.2024,ADULT SOCIAL CARE,ADVANCE HEALTH CARE (UK) LTD,12/02/2024,342.00,6541-Domiciliary Care,THIRD PARTY PAYMENTS,PRIVATE CONTRACTOR,REVENUE
Walsall Council,http://opendatacommunities.org/id/metropolitan-district-council/walsall ,WC159-440,29.02.2024,ADULT SOCIAL CARE,ADVANCE HEALTH CARE (UK) LTD,12/02/2024,504.00,6541-Domiciliary Care,THIRD PARTY PAYMENTS,PRIVATE CONTRACTOR,REVENUE
Walsall Council,http://opendatacommunities.org/id/metropolitan-district-council/walsall ,WC159-441,29.02.2024,ADULT SOCIAL CARE,ADVANCE HEALTH CARE (UK) LTD,12/02/2024,283.50,6541-Domiciliary Care,THIRD PARTY PAYMENTS,PRIVATE CONTRACTOR,REVENUE
Walsall Council,http://opendatacommunities.org/id/metropolitan-district-council/walsall ,WC159-442,29.02.2024,ADULT SOCIAL CARE,ADVANCE HEALTH CARE (UK) LTD,12/02/2024,567.00,6541-Domiciliary Care,THIRD PARTY PAYMENTS,PRIVATE CONTRACTOR,REVENUE
Walsall Council,http://opendatacommunities.org/id/metropolitan-district-council/walsall ,WC159-443,29.02.2024,ADULT SOCIAL CARE,ADVANCE HEALTH CARE (UK) LTD,12/02/2024,756.00,6541-Domiciliary Care,THIRD PARTY PAYMENTS,PRIVATE CONTRACTOR,REVENUE
Walsall Council,http://opendatacommunities.org/id/metropolitan-district-council/walsall ,WC159-444,29.02.2024,ADULT SOCIAL CARE,ADVANCE HEALTH CARE (UK) LTD,12/02/2024,567.00,6541-Domiciliary Care,THIRD PARTY PAYMENTS,PRIVATE CONTRACTOR,REVENUE
Walsall Council,http://opendatacommunities.org/id/metropolitan-district-council/walsall ,WC159-445,29.02.2024,ADULT SOCIAL CARE,ADVANCE HEALTH CARE (UK) LTD,12/02/2024,441.00,6541-Domiciliary Care,THIRD PARTY PAYMENTS,PRIVATE CONTRACTOR,REVENUE
Walsall Council,http://opendatacommunities.org/id/metropolitan-district-council/walsall ,WC159-446,29.02.2024,ADULT SOCIAL CARE,ADVANCE HEALTH CARE (UK) LTD,12/02/2024,441.00,6541-Domiciliary Care,THIRD PARTY PAYMENTS,PRIVATE CONTRACTOR,REVENUE
Walsall Council,http://opendatacommunities.org/id/metropolitan-district-council/walsall ,WC159-447,29.02.2024,ADULT SOCIAL CARE,ADVANCE HEALTH CARE (UK) LTD,12/02/2024,594.00,6541-Domiciliary Care,THIRD PARTY PAYMENTS,PRIVATE CONTRACTOR,REVENUE
Walsall Council,http://opendatacommunities.org/id/metropolitan-district-council/walsall ,WC159-448,29.02.2024,ADULT SOCIAL CARE,ADVANCE HEALTH CARE (UK) LTD,12/02/2024,666.00,6541-Domiciliary Care,THIRD PARTY PAYMENTS,PRIVATE CONTRACTOR,REVENUE
Walsall Council,http://opendatacommunities.org/id/metropolitan-district-council/walsall ,WC159-449,29.02.2024,ADULT SOCIAL CARE,ADVANCE HEALTH CARE (UK) LTD,12/02/2024,252.00,6541-Domiciliary Care,THIRD PARTY PAYMENTS,PRIVATE CONTRACTOR,REVENUE
Walsall Council,http://opendatacommunities.org/id/metropolitan-district-council/walsall ,WC159-450,29.02.2024,ADULT SOCIAL CARE,ADVANCE HEALTH CARE (UK) LTD,12/02/2024,567.00,6541-Domiciliary Care,THIRD PARTY PAYMENTS,PRIVATE CONTRACTOR,REVENUE
Walsall Council,http://opendatacommunities.org/id/metropolitan-district-council/walsall ,WC159-451,29.02.2024,ADULT SOCIAL CARE,ADVANCE HEALTH CARE (UK) LTD,12/02/2024,630.00,6541-Domiciliary Care,THIRD PARTY PAYMENTS,PRIVATE CONTRACTOR,REVENUE
Walsall Council,http://opendatacommunities.org/id/metropolitan-district-council/walsall ,WC159-452,29.02.2024,ADULT SOCIAL CARE,ADVANCE HEALTH CARE (UK) LTD,12/02/2024,441.00,6541-Domiciliary Care,THIRD PARTY PAYMENTS,PRIVATE CONTRACTOR,REVENUE
Walsall Council,http://opendatacommunities.org/id/metropolitan-district-council/walsall ,WC159-453,29.02.2024,ADULT SOCIAL CARE,ADVANCE HEALTH CARE (UK) LTD,12/02/2024,283.50,6541-Domiciliary Care,THIRD PARTY PAYMENTS,PRIVATE CONTRACTOR,REVENUE
Walsall Council,http://opendatacommunities.org/id/metropolitan-district-council/walsall ,WC159-454,29.02.2024,ADULT SOCIAL CARE,ADVANCE HEALTH CARE (UK) LTD,12/02/2024,891.00,6541-Domiciliary Care,THIRD PARTY PAYMENTS,PRIVATE CONTRACTOR,REVENUE
Walsall Council,http://opendatacommunities.org/id/metropolitan-district-council/walsall ,WC159-455,29.02.2024,ADULT SOCIAL CARE,ADVANCE HEALTH CARE (UK) LTD,12/02/2024,441.00,6541-Domiciliary Care,THIRD PARTY PAYMENTS,PRIVATE CONTRACTOR,REVENUE
Walsall Council,http://opendatacommunities.org/id/metropolitan-district-council/walsall ,WC159-456,29.02.2024,ADULT SOCIAL CARE,ADVANCE HEALTH CARE (UK) LTD,12/02/2024,666.00,6541-Domiciliary Care,THIRD PARTY PAYMENTS,PRIVATE CONTRACTOR,REVENUE
Walsall Council,http://opendatacommunities.org/id/metropolitan-district-council/walsall ,WC159-457,29.02.2024,ADULT SOCIAL CARE,ADVANCE HEALTH CARE (UK) LTD,12/02/2024,567.00,6541-Domiciliary Care,THIRD PARTY PAYMENTS,PRIVATE CONTRACTOR,REVENUE
Walsall Council,http://opendatacommunities.org/id/metropolitan-district-council/walsall ,WC159-458,29.02.2024,ADULT SOCIAL CARE,ADVANCE HEALTH CARE (UK) LTD,12/02/2024,252.00,6541-Domiciliary Care,THIRD PARTY PAYMENTS,PRIVATE CONTRACTOR,REVENUE
Walsall Council,http://opendatacommunities.org/id/metropolitan-district-council/walsall ,WC159-459,29.02.2024,ADULT SOCIAL CARE,ADVANCE HEALTH CARE (UK) LTD,12/02/2024,567.00,6541-Domiciliary Care,THIRD PARTY PAYMENTS,PRIVATE CONTRACTOR,REVENUE
Walsall Council,http://opendatacommunities.org/id/metropolitan-district-council/walsall ,WC159-460,29.02.2024,ADULT SOCIAL CARE,ADVANCE HEALTH CARE (UK) LTD,12/02/2024,630.00,6541-Domiciliary Care,THIRD PARTY PAYMENTS,PRIVATE CONTRACTOR,REVENUE
Walsall Council,http://opendatacommunities.org/id/metropolitan-district-council/walsall ,WC159-461,29.02.2024,ADULT SOCIAL CARE,ADVANCE HEALTH CARE (UK) LTD,12/02/2024,283.50,6541-Domiciliary Care,THIRD PARTY PAYMENTS,PRIVATE CONTRACTOR,REVENUE
Walsall Council,http://opendatacommunities.org/id/metropolitan-district-council/walsall ,WC159-462,29.02.2024,ADULT SOCIAL CARE,ADVANCE HEALTH CARE (UK) LTD,12/02/2024,420.00,6541-Domiciliary Care,THIRD PARTY PAYMENTS,PRIVATE CONTRACTOR,REVENUE
Walsall Council,http://opendatacommunities.org/id/metropolitan-district-council/walsall ,WC159-463,29.02.2024,ADULT SOCIAL CARE,ADVANCE HEALTH CARE (UK) LTD,12/02/2024,378.00,6541-Domiciliary Care,THIRD PARTY PAYMENTS,PRIVATE CONTRACTOR,REVENUE
Walsall Council,http://opendatacommunities.org/id/metropolitan-district-council/walsall ,WC159-464,29.02.2024,ADULT SOCIAL CARE,ADVANCE HEALTH CARE (UK) LTD,12/02/2024,963.00,6541-Domiciliary Care,THIRD PARTY PAYMENTS,PRIVATE CONTRACTOR,REVENUE
Walsall Council,http://opendatacommunities.org/id/metropolitan-district-council/walsall ,WC159-465,29.02.2024,ADULT SOCIAL CARE,ADVANCE HEALTH CARE (UK) LTD,12/02/2024,756.00,6541-Domiciliary Care,THIRD PARTY PAYMENTS,PRIVATE CONTRACTOR,REVENUE
Walsall Council,http://opendatacommunities.org/id/metropolitan-district-council/walsall ,WC159-466,29.02.2024,ADULT SOCIAL CARE,ADVANCE HEALTH CARE (UK) LTD,12/02/2024,441.00,6541-Domiciliary Care,THIRD PARTY PAYMENTS,PRIVATE CONTRACTOR,REVENUE
Walsall Council,http://opendatacommunities.org/id/metropolitan-district-council/walsall ,WC159-467,29.02.2024,ADULT SOCIAL CARE,ADVANCE HEALTH CARE (UK) LTD,12/02/2024,441.00,6541-Domiciliary Care,THIRD PARTY PAYMENTS,PRIVATE CONTRACTOR,REVENUE
Walsall Council,http://opendatacommunities.org/id/metropolitan-district-council/walsall ,WC159-468,29.02.2024,ADULT SOCIAL CARE,ADVANCE HEALTH CARE (UK) LTD,12/02/2024,283.50,6541-Domiciliary Care,THIRD PARTY PAYMENTS,PRIVATE CONTRACTOR,REVENUE
Walsall Council,http://opendatacommunities.org/id/metropolitan-district-council/walsall ,WC159-469,29.02.2024,ADULT SOCIAL CARE,ADVANCE HEALTH CARE (UK) LTD,12/02/2024,891.00,6541-Domiciliary Care,THIRD PARTY PAYMENTS,PRIVATE CONTRACTOR,REVENUE
Walsall Council,http://opendatacommunities.org/id/metropolitan-district-council/walsall ,WC159-470,29.02.2024,ADULT SOCIAL CARE,ADVANCE HEALTH CARE (UK) LTD,12/02/2024,441.00,6541-Domiciliary Care,THIRD PARTY PAYMENTS,PRIVATE CONTRACTOR,REVENUE
Walsall Council,http://opendatacommunities.org/id/metropolitan-district-council/walsall ,WC159-471,29.02.2024,ADULT SOCIAL CARE,ADVANCE HEALTH CARE (UK) LTD,12/02/2024,594.00,6541-Domiciliary Care,THIRD PARTY PAYMENTS,PRIVATE CONTRACTOR,REVENUE
Walsall Council,http://opendatacommunities.org/id/metropolitan-district-council/walsall ,WC159-472,29.02.2024,ADULT SOCIAL CARE,ADVANCE HEALTH CARE (UK) LTD,12/02/2024,265.50,6541-Domiciliary Care,THIRD PARTY PAYMENTS,PRIVATE CONTRACTOR,REVENUE
Walsall Council,http://opendatacommunities.org/id/metropolitan-district-council/walsall ,WC159-473,29.02.2024,ADULT SOCIAL CARE,ADVANCE HEALTH CARE (UK) LTD,12/02/2024,301.50,6541-Domiciliary Care,THIRD PARTY PAYMENTS,PRIVATE CONTRACTOR,REVENUE
Walsall Council,http://opendatacommunities.org/id/metropolitan-district-council/walsall ,WC159-474,29.02.2024,ADULT SOCIAL CARE,ADVANCE HEALTH CARE (UK) LTD,12/02/2024,504.00,6541-Domiciliary Care,THIRD PARTY PAYMENTS,PRIVATE CONTRACTOR,REVENUE
Walsall Council,http://opendatacommunities.org/id/metropolitan-district-council/walsall ,WC159-475,29.02.2024,ADULT SOCIAL CARE,ADVANCE HEALTH CARE (UK) LTD,12/02/2024,283.50,6541-Domiciliary Care,THIRD PARTY PAYMENTS,PRIVATE CONTRACTOR,REVENUE
Walsall Council,http://opendatacommunities.org/id/metropolitan-district-council/walsall ,WC159-476,29.02.2024,ADULT SOCIAL CARE,ADVANCE HEALTH CARE (UK) LTD,12/02/2024,567.00,6541-Domiciliary Care,THIRD PARTY PAYMENTS,PRIVATE CONTRACTOR,REVENUE
Walsall Council,http://opendatacommunities.org/id/metropolitan-district-council/walsall ,WC159-477,29.02.2024,ADULT SOCIAL CARE,ADVANCE HEALTH CARE (UK) LTD,12/02/2024,441.00,6541-Domiciliary Care,THIRD PARTY PAYMENTS,PRIVATE CONTRACTOR,REVENUE
Walsall Council,http://opendatacommunities.org/id/metropolitan-district-council/walsall ,WC159-478,29.02.2024,ADULT SOCIAL CARE,ADVANCE HEALTH CARE (UK) LTD,26/02/2024,567.00,6541-Domiciliary Care,THIRD PARTY PAYMENTS,PRIVATE CONTRACTOR,REVENUE
Walsall Council,http://opendatacommunities.org/id/metropolitan-district-council/walsall ,WC159-479,29.02.2024,ADULT SOCIAL CARE,ADVANCE HEALTH CARE (UK) LTD,26/02/2024,283.50,6541-Domiciliary Care,THIRD PARTY PAYMENTS,PRIVATE CONTRACTOR,REVENUE
Walsall Council,http://opendatacommunities.org/id/metropolitan-district-council/walsall ,WC159-480,29.02.2024,ADULT SOCIAL CARE,ADVANCE HEALTH CARE (UK) LTD,26/02/2024,420.00,6541-Domiciliary Care,THIRD PARTY PAYMENTS,PRIVATE CONTRACTOR,REVENUE
Walsall Council,http://opendatacommunities.org/id/metropolitan-district-council/walsall ,WC159-481,29.02.2024,ADULT SOCIAL CARE,ADVANCE HEALTH CARE (UK) LTD,26/02/2024,378.00,6541-Domiciliary Care,THIRD PARTY PAYMENTS,PRIVATE CONTRACTOR,REVENUE
Walsall Council,http://opendatacommunities.org/id/metropolitan-district-council/walsall ,WC159-482,29.02.2024,ADULT SOCIAL CARE,ADVANCE HEALTH CARE (UK) LTD,26/02/2024,963.00,6541-Domiciliary Care,THIRD PARTY PAYMENTS,PRIVATE CONTRACTOR,REVENUE
Walsall Council,http://opendatacommunities.org/id/metropolitan-district-council/walsall ,WC159-483,29.02.2024,ADULT SOCIAL CARE,ADVANCE HEALTH CARE (UK) LTD,26/02/2024,252.00,6541-Domiciliary Care,THIRD PARTY PAYMENTS,PRIVATE CONTRACTOR,REVENUE
Walsall Council,http://opendatacommunities.org/id/metropolitan-district-council/walsall ,WC159-484,29.02.2024,ADULT SOCIAL CARE,ADVANCE HEALTH CARE (UK) LTD,26/02/2024,567.00,6541-Domiciliary Care,THIRD PARTY PAYMENTS,PRIVATE CONTRACTOR,REVENUE
Walsall Council,http://opendatacommunities.org/id/metropolitan-district-council/walsall ,WC159-485,29.02.2024,ADULT SOCIAL CARE,ADVANCE HEALTH CARE (UK) LTD,26/02/2024,-450.00,6541-Domiciliary Care,THIRD PARTY PAYMENTS,PRIVATE CONTRACTOR,REVENUE
Walsall Council,http://opendatacommunities.org/id/metropolitan-district-council/walsall ,WC159-486,29.02.2024,ADULT SOCIAL CARE,ADVANCE HEALTH CARE (UK) LTD,26/02/2024,301.50,6541-Domiciliary Care,THIRD PARTY PAYMENTS,PRIVATE CONTRACTOR,REVENUE
Walsall Council,http://opendatacommunities.org/id/metropolitan-district-council/walsall ,WC159-487,29.02.2024,ADULT SOCIAL CARE,ADVANCE HEALTH CARE (UK) LTD,26/02/2024,441.00,6541-Domiciliary Care,THIRD PARTY PAYMENTS,PRIVATE CONTRACTOR,REVENUE
Walsall Council,http://opendatacommunities.org/id/metropolitan-district-council/walsall ,WC159-488,29.02.2024,ADULT SOCIAL CARE,ADVANCE HEALTH CARE (UK) LTD,26/02/2024,283.50,6541-Domiciliary Care,THIRD PARTY PAYMENTS,PRIVATE CONTRACTOR,REVENUE
Walsall Council,http://opendatacommunities.org/id/metropolitan-district-council/walsall ,WC159-489,29.02.2024,ADULT SOCIAL CARE,ADVANCE HEALTH CARE (UK) LTD,26/02/2024,756.00,6541-Domiciliary Care,THIRD PARTY PAYMENTS,PRIVATE CONTRACTOR,REVENUE
Walsall Council,http://opendatacommunities.org/id/metropolitan-district-council/walsall ,WC159-490,29.02.2024,ADULT SOCIAL CARE,ADVANCE HEALTH CARE (UK) LTD,26/02/2024,666.00,6541-Domiciliary Care,THIRD PARTY PAYMENTS,PRIVATE CONTRACTOR,REVENUE
Walsall Council,http://opendatacommunities.org/id/metropolitan-district-council/walsall ,WC159-491,29.02.2024,ADULT SOCIAL CARE,ADVANCE HEALTH CARE (UK) LTD,26/02/2024,441.00,6541-Domiciliary Care,THIRD PARTY PAYMENTS,PRIVATE CONTRACTOR,REVENUE
Walsall Council,http://opendatacommunities.org/id/metropolitan-district-council/walsall ,WC159-492,29.02.2024,ADULT SOCIAL CARE,ADVANCE HEALTH CARE (UK) LTD,26/02/2024,441.00,6541-Domiciliary Care,THIRD PARTY PAYMENTS,PRIVATE CONTRACTOR,REVENUE
Walsall Council,http://opendatacommunities.org/id/metropolitan-district-council/walsall ,WC159-493,29.02.2024,ADULT SOCIAL CARE,ADVANCE HEALTH CARE (UK) LTD,26/02/2024,594.00,6541-Domiciliary Care,THIRD PARTY PAYMENTS,PRIVATE CONTRACTOR,REVENUE
Walsall Council,http://opendatacommunities.org/id/metropolitan-district-council/walsall ,WC159-494,29.02.2024,ADULT SOCIAL CARE,ADVANCE HEALTH CARE (UK) LTD,26/02/2024,441.00,6541-Domiciliary Care,THIRD PARTY PAYMENTS,PRIVATE CONTRACTOR,REVENUE
Walsall Council,http://opendatacommunities.org/id/metropolitan-district-council/walsall ,WC159-495,29.02.2024,ADULT SOCIAL CARE,ADVANCE HEALTH CARE (UK) LTD,26/02/2024,504.00,6541-Domiciliary Care,THIRD PARTY PAYMENTS,PRIVATE CONTRACTOR,REVENUE
Walsall Council,http://opendatacommunities.org/id/metropolitan-district-council/walsall ,WC159-496,29.02.2024,ADULT SOCIAL CARE,ADVANCE HEALTH CARE (UK) LTD,26/02/2024,283.50,6541-Domiciliary Care,THIRD PARTY PAYMENTS,PRIVATE CONTRACTOR,REVENUE
Walsall Council,http://opendatacommunities.org/id/metropolitan-district-council/walsall ,WC159-497,29.02.2024,ADULT SOCIAL CARE,ADVANCE HEALTH CARE (UK) LTD,26/02/2024,567.00,6541-Domiciliary Care,THIRD PARTY PAYMENTS,PRIVATE CONTRACTOR,REVENUE
Walsall Council,http://opendatacommunities.org/id/metropolitan-district-council/walsall ,WC159-498,29.02.2024,ADULT SOCIAL CARE,ADVANCE HEALTH CARE (UK) LTD,26/02/2024,963.00,6541-Domiciliary Care,THIRD PARTY PAYMENTS,PRIVATE CONTRACTOR,REVENUE
Walsall Council,http://opendatacommunities.org/id/metropolitan-district-council/walsall ,WC159-499,29.02.2024,ADULT SOCIAL CARE,ADVANCE HEALTH CARE (UK) LTD,26/02/2024,567.00,6541-Domiciliary Care,THIRD PARTY PAYMENTS,PRIVATE CONTRACTOR,REVENUE
Walsall Council,http://opendatacommunities.org/id/metropolitan-district-council/walsall ,WC159-500,29.02.2024,ADULT SOCIAL CARE,ADVANCE HEALTH CARE (UK) LTD,26/02/2024,301.50,6541-Domiciliary Care,THIRD PARTY PAYMENTS,PRIVATE CONTRACTOR,REVENUE
Walsall Council,http://opendatacommunities.org/id/metropolitan-district-council/walsall ,WC159-501,29.02.2024,ADULT SOCIAL CARE,ADVANCE HEALTH CARE (UK) LTD,26/02/2024,504.00,6541-Domiciliary Care,THIRD PARTY PAYMENTS,PRIVATE CONTRACTOR,REVENUE
Walsall Council,http://opendatacommunities.org/id/metropolitan-district-council/walsall ,WC159-502,29.02.2024,ADULT SOCIAL CARE,ADVANCE HEALTH CARE (UK) LTD,26/02/2024,666.00,6541-Domiciliary Care,THIRD PARTY PAYMENTS,PRIVATE CONTRACTOR,REVENUE
Walsall Council,http://opendatacommunities.org/id/metropolitan-district-council/walsall ,WC159-503,29.02.2024,ADULT SOCIAL CARE,ADVANCE HEALTH CARE (UK) LTD,26/02/2024,252.00,6541-Domiciliary Care,THIRD PARTY PAYMENTS,PRIVATE CONTRACTOR,REVENUE
Walsall Council,http://opendatacommunities.org/id/metropolitan-district-council/walsall ,WC159-504,29.02.2024,ADULT SOCIAL CARE,ADVANCE HEALTH CARE (UK) LTD,26/02/2024,567.00,6541-Domiciliary Care,THIRD PARTY PAYMENTS,PRIVATE CONTRACTOR,REVENUE
Walsall Council,http://opendatacommunities.org/id/metropolitan-district-council/walsall ,WC159-505,29.02.2024,ADULT SOCIAL CARE,ADVANCE HEALTH CARE (UK) LTD,26/02/2024,283.50,6541-Domiciliary Care,THIRD PARTY PAYMENTS,PRIVATE CONTRACTOR,REVENUE
Walsall Council,http://opendatacommunities.org/id/metropolitan-district-council/walsall ,WC159-506,29.02.2024,ADULT SOCIAL CARE,ADVANCE HEALTH CARE (UK) LTD,26/02/2024,567.00,6541-Domiciliary Care,THIRD PARTY PAYMENTS,PRIVATE CONTRACTOR,REVENUE
Walsall Council,http://opendatacommunities.org/id/metropolitan-district-council/walsall ,WC159-507,29.02.2024,ADULT SOCIAL CARE,ADVANCE HEALTH CARE (UK) LTD,26/02/2024,283.50,6541-Domiciliary Care,THIRD PARTY PAYMENTS,PRIVATE CONTRACTOR,REVENUE
Walsall Council,http://opendatacommunities.org/id/metropolitan-district-council/walsall ,WC159-508,29.02.2024,ADULT SOCIAL CARE,ADVANCE HEALTH CARE (UK) LTD,26/02/2024,420.00,6541-Domiciliary Care,THIRD PARTY PAYMENTS,PRIVATE CONTRACTOR,REVENUE
Walsall Council,http://opendatacommunities.org/id/metropolitan-district-council/walsall ,WC159-509,29.02.2024,ADULT SOCIAL CARE,ADVANCE HEALTH CARE (UK) LTD,26/02/2024,378.00,6541-Domiciliary Care,THIRD PARTY PAYMENTS,PRIVATE CONTRACTOR,REVENUE
Walsall Council,http://opendatacommunities.org/id/metropolitan-district-council/walsall ,WC159-510,29.02.2024,ADULT SOCIAL CARE,ADVANCE HEALTH CARE (UK) LTD,26/02/2024,441.00,6541-Domiciliary Care,THIRD PARTY PAYMENTS,PRIVATE CONTRACTOR,REVENUE
Walsall Council,http://opendatacommunities.org/id/metropolitan-district-council/walsall ,WC159-511,29.02.2024,ADULT SOCIAL CARE,ADVANCE HEALTH CARE (UK) LTD,26/02/2024,283.50,6541-Domiciliary Care,THIRD PARTY PAYMENTS,PRIVATE CONTRACTOR,REVENUE
Walsall Council,http://opendatacommunities.org/id/metropolitan-district-council/walsall ,WC159-512,29.02.2024,ADULT SOCIAL CARE,ADVANCE HEALTH CARE (UK) LTD,26/02/2024,891.00,6541-Domiciliary Care,THIRD PARTY PAYMENTS,PRIVATE CONTRACTOR,REVENUE
Walsall Council,http://opendatacommunities.org/id/metropolitan-district-council/walsall ,WC159-513,29.02.2024,ADULT SOCIAL CARE,ADVANCE HEALTH CARE (UK) LTD,26/02/2024,441.00,6541-Domiciliary Care,THIRD PARTY PAYMENTS,PRIVATE CONTRACTOR,REVENUE
Walsall Council,http://opendatacommunities.org/id/metropolitan-district-council/walsall ,WC159-514,29.02.2024,ADULT SOCIAL CARE,ADVANCE HEALTH CARE (UK) LTD,26/02/2024,396.00,6541-Domiciliary Care,THIRD PARTY PAYMENTS,PRIVATE CONTRACTOR,REVENUE
Walsall Council,http://opendatacommunities.org/id/metropolitan-district-council/walsall ,WC159-515,29.02.2024,ADULT SOCIAL CARE,ADVANCE HEALTH CARE (UK) LTD,26/02/2024,441.00,6541-Domiciliary Care,THIRD PARTY PAYMENTS,PRIVATE CONTRACTOR,REVENUE
Walsall Council,http://opendatacommunities.org/id/metropolitan-district-council/walsall ,WC159-516,29.02.2024,ADULT SOCIAL CARE,ADVANCE HEALTH CARE (UK) LTD,26/02/2024,441.00,6541-Domiciliary Care,THIRD PARTY PAYMENTS,PRIVATE CONTRACTOR,REVENUE
Walsall Council,http://opendatacommunities.org/id/metropolitan-district-council/walsall ,WC159-517,29.02.2024,ADULT SOCIAL CARE,ADVANCE HEALTH CARE (UK) LTD,26/02/2024,594.00,6541-Domiciliary Care,THIRD PARTY PAYMENTS,PRIVATE CONTRACTOR,REVENUE
Walsall Council,http://opendatacommunities.org/id/metropolitan-district-council/walsall ,WC159-518,29.02.2024,"ECONOMY, ENVIRONMENT & COMMUNITIES",ADVANCED COMMUNICATION SOLUTIONS LTD,27/02/2024,295.50,6414-Purchase of Furniture & Equipment,SUPPLIES & SERVICES,EQUIPMENT FURNITURE & MATERIALS,REVENUE
Walsall Council,http://opendatacommunities.org/id/metropolitan-district-council/walsall ,WC159-519,29.02.2024,CHILDRENS,ADVENTURELAND DAY NURSERY,08/02/2024,743.85,1184-Other-Grants to Other Orgs,SUPPLIES & SERVICES,GRANTS (EXP) & SUBSCRIPTIONS,REVENUE
Walsall Council,http://opendatacommunities.org/id/metropolitan-district-council/walsall ,WC159-520,29.02.2024,CHILDRENS,ADVENTURELAND DAY NURSERY,08/02/2024,"2,685.57",1184-Other-Grants to Other Orgs,SUPPLIES & SERVICES,GRANTS (EXP) & SUBSCRIPTIONS,REVENUE
Walsall Council,http://opendatacommunities.org/id/metropolitan-district-council/walsall ,WC159-521,29.02.2024,ADULT SOCIAL CARE,ADVINIA CARE HOMES LTD - HAMMERWICH HALL CARE HOME,12/02/2024,"2,413.36",6541-Residential EMI,THIRD PARTY PAYMENTS,PRIVATE CONTRACTOR,REVENUE
Walsall Council,http://opendatacommunities.org/id/metropolitan-district-council/walsall ,WC159-522,29.02.2024,ADULT SOCIAL CARE,ADVINIA CARE HOMES LTD - HAMMERWICH HALL CARE HOME,12/02/2024,"2,137.32",6541-Residential,THIRD PARTY PAYMENTS,PRIVATE CONTRACTOR,REVENUE
Walsall Council,http://opendatacommunities.org/id/metropolitan-district-council/walsall ,WC159-523,29.02.2024,ADULT SOCIAL CARE,ADVINIA CARE HOMES LTD - HAMMERWICH HALL CARE HOME,12/02/2024,280.00,6541-Residential EMI,THIRD PARTY PAYMENTS,PRIVATE CONTRACTOR,REVENUE
Walsall Council,http://opendatacommunities.org/id/metropolitan-district-council/walsall ,WC159-524,29.02.2024,ADULT SOCIAL CARE,ADVINIA CARE HOMES LTD - HAMMERWICH HALL CARE HOME,12/02/2024,280.00,6541-Residential,THIRD PARTY PAYMENTS,PRIVATE CONTRACTOR,REVENUE
Walsall Council,http://opendatacommunities.org/id/metropolitan-district-council/walsall ,WC159-525,29.02.2024,ADULT SOCIAL CARE,AESOP ARTS AND SOCIETY LTD,16/02/2024,"6,248.75",6420-Professional Fees & Services,SUPPLIES & SERVICES,SERVICES,REVENUE
Walsall Council,http://opendatacommunities.org/id/metropolitan-district-council/walsall ,WC159-526,29.02.2024,ADULT SOCIAL CARE,REDACTED,01/02/2024,945.44,6541-Direct Payment,THIRD PARTY PAYMENTS,PRIVATE CONTRACTOR,REVENUE
Walsall Council,http://opendatacommunities.org/id/metropolitan-district-council/walsall ,WC159-527,29.02.2024,ADULT SOCIAL CARE,REDACTED,01/02/2024,"1,260.00",6541-Direct Payment,THIRD PARTY PAYMENTS,PRIVATE CONTRACTOR,REVENUE
Walsall Council,http://opendatacommunities.org/id/metropolitan-district-council/walsall ,WC159-528,29.02.2024,CHILDRENS,REDACTED,08/02/2024,535.08,6223-Special Guardianship Orders,TRANSFER PAYMENTS,CHILDREN SOCIAL SERVICES CLIENT,REVENUE
Walsall Council,http://opendatacommunities.org/id/metropolitan-district-council/walsall ,WC159-529,29.02.2024,"ECONOMY, ENVIRONMENT & COMMUNITIES",AGROVISTA UK LTD,07/02/2024,990.50,6410-Materials,SUPPLIES & SERVICES,EQUIPMENT FURNITURE & MATERIALS,REVENUE
Walsall Council,http://opendatacommunities.org/id/metropolitan-district-council/walsall ,WC159-530,29.02.2024,ADULT SOCIAL CARE,REDACTED,01/02/2024,298.56,6541-Direct Payment,THIRD PARTY PAYMENTS,PRIVATE CONTRACTOR,REVENUE
Walsall Council,http://opendatacommunities.org/id/metropolitan-district-council/walsall ,WC159-531,29.02.2024,ADULT SOCIAL CARE,REDACTED,01/02/2024,"2,836.32",6541-Direct Payment,THIRD PARTY PAYMENTS,PRIVATE CONTRACTOR,REVENUE
Walsall Council,http://opendatacommunities.org/id/metropolitan-district-council/walsall ,WC159-532,29.02.2024,RESOURCES AND TRANSFORMATION,AIRTECH CONTROLS LTD,23/02/2024,"2,223.00",6310-Planned Maintenance,PREMISES,REPAIRS & MAINTENANCE,REVENUE
Walsall Council,http://opendatacommunities.org/id/metropolitan-district-council/walsall ,WC159-533,29.02.2024,RESOURCES AND TRANSFORMATION CAPITAL,AIRTECH CONTROLS LTD,29/02/2024,"12,000.00",7300-Site Works - Other Contractors,CAPITAL,"NEW CONSTRUCTION,CONVERSION & RENOVATION",CAPITAL
Walsall Council,http://opendatacommunities.org/id/metropolitan-district-council/walsall ,WC159-534,29.02.2024,RESOURCES AND TRANSFORMATION CAPITAL,AIRTECH CONTROLS LTD,29/02/2024,"6,490.00",7300-Site Works Contractors,CAPITAL,"NEW CONSTRUCTION,CONVERSION & RENOVATION",CAPITAL
Walsall Council,http://opendatacommunities.org/id/metropolitan-district-council/walsall ,WC159-535,29.02.2024,ADULT SOCIAL CARE,REDACTED,01/02/2024,"1,125.44",6541-Direct Payment,THIRD PARTY PAYMENTS,PRIVATE CONTRACTOR,REVENUE
Walsall Council,http://opendatacommunities.org/id/metropolitan-district-council/walsall ,WC159-536,29.02.2024,ADULT SOCIAL CARE,REDACTED,01/02/2024,513.88,6541-Direct Payment,THIRD PARTY PAYMENTS,PRIVATE CONTRACTOR,REVENUE
Walsall Council,http://opendatacommunities.org/id/metropolitan-district-council/walsall ,WC159-537,29.02.2024,ADULT SOCIAL CARE,REDACTED,01/02/2024,267.44,6541-Direct Payment,THIRD PARTY PAYMENTS,PRIVATE CONTRACTOR,REVENUE
Walsall Council,http://opendatacommunities.org/id/metropolitan-district-council/walsall ,WC159-538,29.02.2024,ADULT SOCIAL CARE,REDACTED,01/02/2024,"1,396.00",6541-Direct Payment,THIRD PARTY PAYMENTS,PRIVATE CONTRACTOR,REVENUE
Walsall Council,http://opendatacommunities.org/id/metropolitan-district-council/walsall ,WC159-539,29.02.2024,ADULT SOCIAL CARE,REDACTED,01/02/2024,"1,393.28",6541-Direct Payment,THIRD PARTY PAYMENTS,PRIVATE CONTRACTOR,REVENUE
Walsall Council,http://opendatacommunities.org/id/metropolitan-district-council/walsall ,WC159-540,29.02.2024,ADULT SOCIAL CARE,ALDBOURNE NURSING HOME LTD,12/02/2024,"5,920.00",6541-Nursing EMI,THIRD PARTY PAYMENTS,PRIVATE CONTRACTOR,REVENUE
Walsall Council,http://opendatacommunities.org/id/metropolitan-district-council/walsall ,WC159-541,29.02.2024,CHILDRENS,ALDRIDGE & BARONS LIMITED,26/02/2024,"2,434.00",6241-Hire of Vehicle with Driver,TRANSPORT,DIRECT TRANSPORT COSTS,REVENUE
Walsall Council,http://opendatacommunities.org/id/metropolitan-district-council/walsall ,WC159-542,29.02.2024,CHILDRENS,ALDRIDGE & BARONS LIMITED,26/02/2024,"2,791.67",6241-Hire of Vehicle with Driver,TRANSPORT,DIRECT TRANSPORT COSTS,REVENUE
Walsall Council,http://opendatacommunities.org/id/metropolitan-district-council/walsall ,WC159-543,29.02.2024,CHILDRENS,ALDRIDGE & BARONS LIMITED,26/02/2024,"2,860.00",6241-Hire of Vehicle with Driver,TRANSPORT,DIRECT TRANSPORT COSTS,REVENUE
Walsall Council,http://opendatacommunities.org/id/metropolitan-district-council/walsall ,WC159-544,29.02.2024,CHILDRENS,ALDRIDGE & BARONS LIMITED,26/02/2024,"2,600.00",6241-Hire of Vehicle with Driver,TRANSPORT,DIRECT TRANSPORT COSTS,REVENUE
Walsall Council,http://opendatacommunities.org/id/metropolitan-district-council/walsall ,WC159-545,29.02.2024,CHILDRENS,ALDRIDGE & BARONS LIMITED,26/02/2024,"2,400.00",6241-Hire of Vehicle with Driver,TRANSPORT,DIRECT TRANSPORT COSTS,REVENUE
Walsall Council,http://opendatacommunities.org/id/metropolitan-district-council/walsall ,WC159-546,29.02.2024,CHILDRENS,ALDRIDGE & BARONS LIMITED,26/02/2024,"2,900.00",6241-Hire of Vehicle with Driver,TRANSPORT,DIRECT TRANSPORT COSTS,REVENUE
Walsall Council,http://opendatacommunities.org/id/metropolitan-district-council/walsall ,WC159-547,29.02.2024,CHILDRENS,ALDRIDGE & BARONS LIMITED,26/02/2024,"2,887.60",6241-Hire of Vehicle with Driver,TRANSPORT,DIRECT TRANSPORT COSTS,REVENUE
Walsall Council,http://opendatacommunities.org/id/metropolitan-district-council/walsall ,WC159-548,29.02.2024,CHILDRENS,ALDRIDGE & BARONS LIMITED,26/02/2024,"2,340.00",6241-Hire of Vehicle with Driver,TRANSPORT,DIRECT TRANSPORT COSTS,REVENUE
Walsall Council,http://opendatacommunities.org/id/metropolitan-district-council/walsall ,WC159-549,29.02.2024,CHILDRENS,ALDRIDGE & BARONS LIMITED,26/02/2024,"2,250.00",6241-Hire of Vehicle with Driver,TRANSPORT,DIRECT TRANSPORT COSTS,REVENUE
Walsall Council,http://opendatacommunities.org/id/metropolitan-district-council/walsall ,WC159-550,29.02.2024,CHILDRENS,ALDRIDGE & BARONS LIMITED,26/02/2024,"3,680.00",6241-Hire of Vehicle with Driver,TRANSPORT,DIRECT TRANSPORT COSTS,REVENUE
Walsall Council,http://opendatacommunities.org/id/metropolitan-district-council/walsall ,WC159-551,29.02.2024,CHILDRENS,ALDRIDGE & BARONS LIMITED,26/02/2024,"3,004.00",6241-Hire of Vehicle with Driver,TRANSPORT,DIRECT TRANSPORT COSTS,REVENUE
Walsall Council,http://opendatacommunities.org/id/metropolitan-district-council/walsall ,WC159-552,29.02.2024,CHILDRENS,ALDRIDGE & BARONS LIMITED,26/02/2024,"1,980.00",6241-Hire of Vehicle with Driver,TRANSPORT,DIRECT TRANSPORT COSTS,REVENUE
Walsall Council,http://opendatacommunities.org/id/metropolitan-district-council/walsall ,WC159-553,29.02.2024,CHILDRENS,ALDRIDGE & BARONS LIMITED,26/02/2024,"2,860.00",6241-Hire of Vehicle with Driver,TRANSPORT,DIRECT TRANSPORT COSTS,REVENUE
Walsall Council,http://opendatacommunities.org/id/metropolitan-district-council/walsall ,WC159-554,29.02.2024,CHILDRENS,ALDRIDGE & BARONS LIMITED,26/02/2024,"2,500.00",6241-Hire of Vehicle with Driver,TRANSPORT,DIRECT TRANSPORT COSTS,REVENUE
Walsall Council,http://opendatacommunities.org/id/metropolitan-district-council/walsall ,WC159-555,29.02.2024,CHILDRENS,ALDRIDGE & BARONS LIMITED,26/02/2024,"2,200.00",6241-Hire of Vehicle with Driver,TRANSPORT,DIRECT TRANSPORT COSTS,REVENUE
Walsall Council,http://opendatacommunities.org/id/metropolitan-district-council/walsall ,WC159-556,29.02.2024,CHILDRENS,ALDRIDGE & BARONS LIMITED,26/02/2024,"3,000.00",6241-Hire of Vehicle with Driver,TRANSPORT,DIRECT TRANSPORT COSTS,REVENUE
Walsall Council,http://opendatacommunities.org/id/metropolitan-district-council/walsall ,WC159-557,29.02.2024,CHILDRENS,ALDRIDGE & BARONS LIMITED,26/02/2024,"3,600.00",6241-Hire of Vehicle with Driver,TRANSPORT,DIRECT TRANSPORT COSTS,REVENUE
Walsall Council,http://opendatacommunities.org/id/metropolitan-district-council/walsall ,WC159-558,29.02.2024,CHILDRENS,ALDRIDGE & BARONS LIMITED,26/02/2024,"1,980.00",6241-Hire of Vehicle with Driver,TRANSPORT,DIRECT TRANSPORT COSTS,REVENUE
Walsall Council,http://opendatacommunities.org/id/metropolitan-district-council/walsall ,WC159-559,29.02.2024,CHILDRENS,ALDRIDGE & BARONS LIMITED,26/02/2024,"2,860.00",6241-Hire of Vehicle with Driver,TRANSPORT,DIRECT TRANSPORT COSTS,REVENUE
Walsall Council,http://opendatacommunities.org/id/metropolitan-district-council/walsall ,WC159-560,29.02.2024,CHILDRENS,ALDRIDGE & BARONS LIMITED,26/02/2024,"3,200.00",6241-Hire of Vehicle with Driver,TRANSPORT,DIRECT TRANSPORT COSTS,REVENUE
Walsall Council,http://opendatacommunities.org/id/metropolitan-district-council/walsall ,WC159-561,29.02.2024,CHILDRENS,ALDRIDGE & BARONS LIMITED,26/02/2024,"3,552.00",6241-Hire of Vehicle with Driver,TRANSPORT,DIRECT TRANSPORT COSTS,REVENUE
Walsall Council,http://opendatacommunities.org/id/metropolitan-district-council/walsall ,WC159-562,29.02.2024,CHILDRENS,ALDRIDGE & BARONS LIMITED,26/02/2024,827.60,6241-Hire of Vehicle with Driver,TRANSPORT,DIRECT TRANSPORT COSTS,REVENUE
Walsall Council,http://opendatacommunities.org/id/metropolitan-district-council/walsall ,WC159-563,29.02.2024,CHILDRENS,ALDRIDGE & BARONS LIMITED,26/02/2024,"3,156.00",6241-Hire of Vehicle with Driver,TRANSPORT,DIRECT TRANSPORT COSTS,REVENUE
Walsall Council,http://opendatacommunities.org/id/metropolitan-district-council/walsall ,WC159-564,29.02.2024,CHILDRENS,ALDRIDGE & BARONS LIMITED,26/02/2024,"2,811.60",6241-Hire of Vehicle with Driver,TRANSPORT,DIRECT TRANSPORT COSTS,REVENUE
Walsall Council,http://opendatacommunities.org/id/metropolitan-district-council/walsall ,WC159-565,29.02.2024,CHILDRENS,ALDRIDGE & BARONS LIMITED,26/02/2024,"3,350.00",6241-Hire of Vehicle with Driver,TRANSPORT,DIRECT TRANSPORT COSTS,REVENUE
Walsall Council,http://opendatacommunities.org/id/metropolitan-district-council/walsall ,WC159-566,29.02.2024,CHILDRENS,ALDRIDGE & BARONS LIMITED,26/02/2024,"2,124.00",6241-Hire of Vehicle with Driver,TRANSPORT,DIRECT TRANSPORT COSTS,REVENUE
Walsall Council,http://opendatacommunities.org/id/metropolitan-district-council/walsall ,WC159-567,29.02.2024,CHILDRENS,ALDRIDGE & BARONS LIMITED,26/02/2024,"1,914.00",6241-Hire of Vehicle with Driver,TRANSPORT,DIRECT TRANSPORT COSTS,REVENUE
Walsall Council,http://opendatacommunities.org/id/metropolitan-district-council/walsall ,WC159-568,29.02.2024,CHILDRENS,ALDRIDGE & BARONS LIMITED,26/02/2024,"3,604.80",6241-Hire of Vehicle with Driver,TRANSPORT,DIRECT TRANSPORT COSTS,REVENUE
Walsall Council,http://opendatacommunities.org/id/metropolitan-district-council/walsall ,WC159-569,29.02.2024,CHILDRENS,ALDRIDGE & BARONS LIMITED,26/02/2024,"2,232.00",6241-Hire of Vehicle with Driver,TRANSPORT,DIRECT TRANSPORT COSTS,REVENUE
Walsall Council,http://opendatacommunities.org/id/metropolitan-district-council/walsall ,WC159-570,29.02.2024,CHILDRENS,ALDRIDGE & BARONS LIMITED,26/02/2024,"3,000.00",6241-Hire of Vehicle with Driver,TRANSPORT,DIRECT TRANSPORT COSTS,REVENUE
Walsall Council,http://opendatacommunities.org/id/metropolitan-district-council/walsall ,WC159-571,29.02.2024,CHILDRENS,ALDRIDGE & BARONS LIMITED,26/02/2024,"1,800.00",6241-Hire of Vehicle with Driver,TRANSPORT,DIRECT TRANSPORT COSTS,REVENUE
Walsall Council,http://opendatacommunities.org/id/metropolitan-district-council/walsall ,WC159-572,29.02.2024,CHILDRENS,ALDRIDGE & BARONS LIMITED,26/02/2024,"3,015.11",6241-Hire of Vehicle with Driver,TRANSPORT,DIRECT TRANSPORT COSTS,REVENUE
Walsall Council,http://opendatacommunities.org/id/metropolitan-district-council/walsall ,WC159-573,29.02.2024,ADULT SOCIAL CARE,REDACTED,01/02/2024,"1,728.00",6541-Direct Payment,THIRD PARTY PAYMENTS,PRIVATE CONTRACTOR,REVENUE
Walsall Council,http://opendatacommunities.org/id/metropolitan-district-council/walsall ,WC159-574,29.02.2024,ADULT SOCIAL CARE,ALEXANDRA HOUSE CARE SERVICES LTD T/A STONEBRIDGE NURSING HOME,12/02/2024,"7,546.24",6541-Residential,THIRD PARTY PAYMENTS,PRIVATE CONTRACTOR,REVENUE
Walsall Council,http://opendatacommunities.org/id/metropolitan-district-council/walsall ,WC159-575,29.02.2024,ADULT SOCIAL CARE,ALEXANDRA HOUSE SUPPORT SERVICES LTD,12/02/2024,"5,936.00",6541-Residential,THIRD PARTY PAYMENTS,PRIVATE CONTRACTOR,REVENUE
Walsall Council,http://opendatacommunities.org/id/metropolitan-district-council/walsall ,WC159-576,29.02.2024,ADULT SOCIAL CARE,REDACTED,01/02/2024,"1,094.72",6541-Direct Payment,THIRD PARTY PAYMENTS,PRIVATE CONTRACTOR,REVENUE
Walsall Council,http://opendatacommunities.org/id/metropolitan-district-council/walsall ,WC159-577,29.02.2024,CHILDRENS,REDACTED,08/02/2024,289.60,6223-Special Guardianship Orders,TRANSFER PAYMENTS,CHILDREN SOCIAL SERVICES CLIENT,REVENUE
Walsall Council,http://opendatacommunities.org/id/metropolitan-district-council/walsall ,WC159-578,29.02.2024,ADULT SOCIAL CARE,REDACTED,07/02/2024,900.00,6420-Other Expenses,SUPPLIES & SERVICES,EXPENSES,REVENUE
Walsall Council,http://opendatacommunities.org/id/metropolitan-district-council/walsall ,WC159-579,29.02.2024,CHILDRENS,ALL SAINTS NATIONAL ACADEMY #1,06/02/2024,"30,426.00",1220-Top Up Funding -Grants to Schools,SUPPLIES & SERVICES,GRANTS (EXP) & SUBSCRIPTIONS,REVENUE
Walsall Council,http://opendatacommunities.org/id/metropolitan-district-council/walsall ,WC159-580,29.02.2024,RESOURCES AND TRANSFORMATION,ALLIED PUBLICITY SERVICES (MANCHESTER) LIMITED T/A APS GROUP,19/02/2024,"1,462.60",6312-External Printing Services,SUPPLIES & SERVICES,PRINTING STATIONERY & GENERAL OFFICE,REVENUE
Walsall Council,http://opendatacommunities.org/id/metropolitan-district-council/walsall ,WC159-581,29.02.2024,RESOURCES AND TRANSFORMATION,ALLIED PUBLICITY SERVICES (MANCHESTER) LIMITED T/A APS GROUP,19/02/2024,"2,019.85",6312-External Printing Services,SUPPLIES & SERVICES,PRINTING STATIONERY & GENERAL OFFICE,REVENUE
Walsall Council,http://opendatacommunities.org/id/metropolitan-district-council/walsall ,WC159-582,29.02.2024,CHILDRENS,ALLPAY LTD,22/02/2024,601.55,6222-Professional Fees & Services,SUPPLIES & SERVICES,SERVICES,REVENUE
Walsall Council,http://opendatacommunities.org/id/metropolitan-district-council/walsall ,WC159-583,29.02.2024,CHILDRENS,ALLPAY LTD,15/02/2024,617.89,6222-Professional Fees & Services,SUPPLIES & SERVICES,SERVICES,REVENUE
Walsall Council,http://opendatacommunities.org/id/metropolitan-district-council/walsall ,WC159-584,29.02.2024,CHILDRENS,ALLPAY LTD,15/02/2024,631.85,6222-Professional Fees & Services,SUPPLIES & SERVICES,SERVICES,REVENUE
Walsall Council,http://opendatacommunities.org/id/metropolitan-district-council/walsall ,WC159-585,29.02.2024,CHILDRENS,ALLPAY LTD,22/02/2024,606.66,6222-Professional Fees & Services,SUPPLIES & SERVICES,SERVICES,REVENUE
Walsall Council,http://opendatacommunities.org/id/metropolitan-district-council/walsall ,WC159-586,29.02.2024,RESOURCES AND TRANSFORMATION CAPITAL,ALLSORTS OFFICE SUPPLIES LTD,28/02/2024,"1,116.00",7300-Purchase of Furniture & Equipment,CAPITAL,"VEHICLES,PLANT,EQUIPMENT & MACHINERY",CAPITAL
Walsall Council,http://opendatacommunities.org/id/metropolitan-district-council/walsall ,WC159-587,29.02.2024,ADULT SOCIAL CARE,ALMA COURT,12/02/2024,"4,861.00",6541-Nursing EMI,THIRD PARTY PAYMENTS,PRIVATE CONTRACTOR,REVENUE
Walsall Council,http://opendatacommunities.org/id/metropolitan-district-council/walsall ,WC159-588,29.02.2024,ADULT SOCIAL CARE,ALMA COURT,12/02/2024,"4,263.00",6541-Residential,THIRD PARTY PAYMENTS,PRIVATE CONTRACTOR,REVENUE
Walsall Council,http://opendatacommunities.org/id/metropolitan-district-council/walsall ,WC159-589,29.02.2024,ADULT SOCIAL CARE,ALMA COURT,12/02/2024,"4,055.28",6541-Nursing EMI,THIRD PARTY PAYMENTS,PRIVATE CONTRACTOR,REVENUE
Walsall Council,http://opendatacommunities.org/id/metropolitan-district-council/walsall ,WC159-590,29.02.2024,ADULT SOCIAL CARE,ALMA COURT,12/02/2024,"6,718.40",6541-Residential,THIRD PARTY PAYMENTS,PRIVATE CONTRACTOR,REVENUE
Walsall Council,http://opendatacommunities.org/id/metropolitan-district-council/walsall ,WC159-591,29.02.2024,ADULT SOCIAL CARE,ALMA COURT,12/02/2024,"5,200.00",6541-Nursing EMI,THIRD PARTY PAYMENTS,PRIVATE CONTRACTOR,REVENUE
Walsall Council,http://opendatacommunities.org/id/metropolitan-district-council/walsall ,WC159-592,29.02.2024,ADULT SOCIAL CARE,ALMA COURT,12/02/2024,"13,905.71",6541-Nursing EMI,THIRD PARTY PAYMENTS,PRIVATE CONTRACTOR,REVENUE
Walsall Council,http://opendatacommunities.org/id/metropolitan-district-council/walsall ,WC159-593,29.02.2024,ADULT SOCIAL CARE,ALMA COURT,12/02/2024,"9,100.00",6541-Residential,THIRD PARTY PAYMENTS,PRIVATE CONTRACTOR,REVENUE
Walsall Council,http://opendatacommunities.org/id/metropolitan-district-council/walsall ,WC159-594,29.02.2024,ADULT SOCIAL CARE,ALMA COURT,12/02/2024,"26,880.00",6541-Nursing,THIRD PARTY PAYMENTS,PRIVATE CONTRACTOR,REVENUE
Walsall Council,http://opendatacommunities.org/id/metropolitan-district-council/walsall ,WC159-595,29.02.2024,RESOURCES AND TRANSFORMATION,ALMADEN UK LTD,29/02/2024,"11,520.00",6623-Computer Equipment,SUPPLIES & SERVICES,COMMUNICATIONS & COMPUTING,REVENUE
Walsall Council,http://opendatacommunities.org/id/metropolitan-district-council/walsall ,WC159-596,29.02.2024,CHILDRENS,ALMOZENE NURSERY & CHILDRENS CENTRE,08/02/2024,309.93,1184-Other-Grants to Other Orgs,SUPPLIES & SERVICES,GRANTS (EXP) & SUBSCRIPTIONS,REVENUE
Walsall Council,http://opendatacommunities.org/id/metropolitan-district-council/walsall ,WC159-597,29.02.2024,CHILDRENS,ALMOZENE NURSERY & CHILDRENS CENTRE,08/02/2024,601.43,1184-Other-Grants to Other Orgs,SUPPLIES & SERVICES,GRANTS (EXP) & SUBSCRIPTIONS,REVENUE
Walsall Council,http://opendatacommunities.org/id/metropolitan-district-council/walsall ,WC159-598,29.02.2024,ADULT SOCIAL CARE,ALPHA HEALTH CARE LTD,12/02/2024,"2,819.08",6541-Nursing EMI,THIRD PARTY PAYMENTS,PRIVATE CONTRACTOR,REVENUE
Walsall Council,http://opendatacommunities.org/id/metropolitan-district-council/walsall ,WC159-599,29.02.2024,ADULT SOCIAL CARE,ALPHA HEALTH CARE LTD,12/02/2024,"3,445.36",6541-Residential EMI,THIRD PARTY PAYMENTS,PRIVATE CONTRACTOR,REVENUE
Walsall Council,http://opendatacommunities.org/id/metropolitan-district-council/walsall ,WC159-600,29.02.2024,ADULT SOCIAL CARE,ALPHA HEALTH CARE LTD,12/02/2024,"2,813.36",6541-Residential EMI,THIRD PARTY PAYMENTS,PRIVATE CONTRACTOR,REVENUE
Walsall Council,http://opendatacommunities.org/id/metropolitan-district-council/walsall ,WC159-601,29.02.2024,ADULT SOCIAL CARE,ALPHA HEALTH CARE LTD,12/02/2024,"4,027.32",6541-Residential EMI,THIRD PARTY PAYMENTS,PRIVATE CONTRACTOR,REVENUE
Walsall Council,http://opendatacommunities.org/id/metropolitan-district-council/walsall ,WC159-602,29.02.2024,ADULT SOCIAL CARE,ALPHA HEALTH CARE LTD,12/02/2024,"7,105.00",6541-Residential,THIRD PARTY PAYMENTS,PRIVATE CONTRACTOR,REVENUE
Walsall Council,http://opendatacommunities.org/id/metropolitan-district-council/walsall ,WC159-603,29.02.2024,ADULT SOCIAL CARE,ALPHA HEALTH CARE LTD,12/02/2024,"3,422.28",6541-Residential EMI,THIRD PARTY PAYMENTS,PRIVATE CONTRACTOR,REVENUE
Walsall Council,http://opendatacommunities.org/id/metropolitan-district-council/walsall ,WC159-604,29.02.2024,ADULT SOCIAL CARE,ALPHA HEALTH CARE LTD,12/02/2024,"2,413.36",6541-Residential EMI,THIRD PARTY PAYMENTS,PRIVATE CONTRACTOR,REVENUE
Walsall Council,http://opendatacommunities.org/id/metropolitan-district-council/walsall ,WC159-605,29.02.2024,ADULT SOCIAL CARE,ALPHA HEALTH CARE LTD,12/02/2024,"-12,321.43",6541-Nursing EMI,THIRD PARTY PAYMENTS,PRIVATE CONTRACTOR,REVENUE
Walsall Council,http://opendatacommunities.org/id/metropolitan-district-council/walsall ,WC159-606,29.02.2024,ADULT SOCIAL CARE,ALPHA HEALTH CARE LTD,12/02/2024,"7,600.00",6541-Residential,THIRD PARTY PAYMENTS,PRIVATE CONTRACTOR,REVENUE
Walsall Council,http://opendatacommunities.org/id/metropolitan-district-council/walsall ,WC159-607,29.02.2024,ADULT SOCIAL CARE,ALPHA HEALTH CARE LTD,12/02/2024,"7,600.00",6541-Residential,THIRD PARTY PAYMENTS,PRIVATE CONTRACTOR,REVENUE
Walsall Council,http://opendatacommunities.org/id/metropolitan-district-council/walsall ,WC159-608,29.02.2024,ADULT SOCIAL CARE,ALPHA HEALTH CARE LTD,12/02/2024,"4,440.00",6541-Nursing EMI,THIRD PARTY PAYMENTS,PRIVATE CONTRACTOR,REVENUE
Walsall Council,http://opendatacommunities.org/id/metropolitan-district-council/walsall ,WC159-609,29.02.2024,ADULT SOCIAL CARE,ALPHA HEALTH CARE LTD,12/02/2024,"-2,280.00",6541-Residential,THIRD PARTY PAYMENTS,PRIVATE CONTRACTOR,REVENUE
Walsall Council,http://opendatacommunities.org/id/metropolitan-district-council/walsall ,WC159-610,29.02.2024,ADULT SOCIAL CARE,ALPHA HEALTH CARE LTD,12/02/2024,"3,723.08",6541-Nursing EMI,THIRD PARTY PAYMENTS,PRIVATE CONTRACTOR,REVENUE
Walsall Council,http://opendatacommunities.org/id/metropolitan-district-council/walsall ,WC159-611,29.02.2024,ADULT SOCIAL CARE,ALPHA HEALTH CARE LTD,12/02/2024,"2,936.84",6541-Residential EMI,THIRD PARTY PAYMENTS,PRIVATE CONTRACTOR,REVENUE
Walsall Council,http://opendatacommunities.org/id/metropolitan-district-council/walsall ,WC159-612,29.02.2024,ADULT SOCIAL CARE,ALPHA HEALTH CARE LTD,12/02/2024,"7,980.00",6541-Nursing EMI,THIRD PARTY PAYMENTS,PRIVATE CONTRACTOR,REVENUE
Walsall Council,http://opendatacommunities.org/id/metropolitan-district-council/walsall ,WC159-613,29.02.2024,ADULT SOCIAL CARE,ALPHA HEALTH CARE LTD,12/02/2024,"6,167.82",6541-Nursing EMI,THIRD PARTY PAYMENTS,PRIVATE CONTRACTOR,REVENUE
Walsall Council,http://opendatacommunities.org/id/metropolitan-district-council/walsall ,WC159-614,29.02.2024,ADULT SOCIAL CARE,ALPHA HEALTH CARE LTD,12/02/2024,"3,621.16",6541-Nursing EMI,THIRD PARTY PAYMENTS,PRIVATE CONTRACTOR,REVENUE
Walsall Council,http://opendatacommunities.org/id/metropolitan-district-council/walsall ,WC159-615,29.02.2024,ADULT SOCIAL CARE,ALPHA HEALTH CARE LTD,12/02/2024,"1,289.56",6541-Nursing,THIRD PARTY PAYMENTS,PRIVATE CONTRACTOR,REVENUE
Walsall Council,http://opendatacommunities.org/id/metropolitan-district-council/walsall ,WC159-616,29.02.2024,ADULT SOCIAL CARE,ALPHA HEALTH CARE LTD,12/02/2024,"3,090.44",6541-Residential,THIRD PARTY PAYMENTS,PRIVATE CONTRACTOR,REVENUE
Walsall Council,http://opendatacommunities.org/id/metropolitan-district-council/walsall ,WC159-617,29.02.2024,ADULT SOCIAL CARE,ALPHA HEALTH CARE LTD,12/02/2024,"3,567.32",6541-Residential EMI,THIRD PARTY PAYMENTS,PRIVATE CONTRACTOR,REVENUE
Walsall Council,http://opendatacommunities.org/id/metropolitan-district-council/walsall ,WC159-618,29.02.2024,ADULT SOCIAL CARE,ALPHA HEALTH CARE LTD,12/02/2024,"4,855.28",6541-Nursing EMI,THIRD PARTY PAYMENTS,PRIVATE CONTRACTOR,REVENUE
Walsall Council,http://opendatacommunities.org/id/metropolitan-district-council/walsall ,WC159-619,29.02.2024,ADULT SOCIAL CARE,ALPHA HEALTH CARE LTD,12/02/2024,"5,055.28",6541-Nursing EMI,THIRD PARTY PAYMENTS,PRIVATE CONTRACTOR,REVENUE
Walsall Council,http://opendatacommunities.org/id/metropolitan-district-council/walsall ,WC159-620,29.02.2024,ADULT SOCIAL CARE,ALPHA HEALTH CARE LTD,12/02/2024,"6,343.36",6541-Residential,THIRD PARTY PAYMENTS,PRIVATE CONTRACTOR,REVENUE
Walsall Council,http://opendatacommunities.org/id/metropolitan-district-council/walsall ,WC159-621,29.02.2024,ADULT SOCIAL CARE,ALPHA HEALTH CARE LTD,12/02/2024,"3,800.00",6541-Residential,THIRD PARTY PAYMENTS,PRIVATE CONTRACTOR,REVENUE
Walsall Council,http://opendatacommunities.org/id/metropolitan-district-council/walsall ,WC159-622,29.02.2024,ADULT SOCIAL CARE,ALPHA HEALTH CARE LTD,12/02/2024,"4,600.00",6541-Residential,THIRD PARTY PAYMENTS,PRIVATE CONTRACTOR,REVENUE
Walsall Council,http://opendatacommunities.org/id/metropolitan-district-council/walsall ,WC159-623,29.02.2024,ADULT SOCIAL CARE,ALPHA HEALTH CARE LTD,12/02/2024,"7,980.00",6541-Residential,THIRD PARTY PAYMENTS,PRIVATE CONTRACTOR,REVENUE
Walsall Council,http://opendatacommunities.org/id/metropolitan-district-council/walsall ,WC159-624,29.02.2024,ADULT SOCIAL CARE,ALPHA HEALTH CARE LTD,12/02/2024,"4,800.00",6541-Nursing EMI,THIRD PARTY PAYMENTS,PRIVATE CONTRACTOR,REVENUE
Walsall Council,http://opendatacommunities.org/id/metropolitan-district-council/walsall ,WC159-625,29.02.2024,ADULT SOCIAL CARE,ALPHA HEALTH CARE LTD,12/02/2024,"3,829.36",6541-Residential EMI,THIRD PARTY PAYMENTS,PRIVATE CONTRACTOR,REVENUE
Walsall Council,http://opendatacommunities.org/id/metropolitan-district-council/walsall ,WC159-626,29.02.2024,ADULT SOCIAL CARE,ALPHA HEALTH CARE LTD,12/02/2024,"7,600.00",6541-Residential,THIRD PARTY PAYMENTS,PRIVATE CONTRACTOR,REVENUE
Walsall Council,http://opendatacommunities.org/id/metropolitan-district-council/walsall ,WC159-627,29.02.2024,ADULT SOCIAL CARE,ALPHA HEALTH CARE LTD,12/02/2024,"3,721.16",6541-Nursing EMI,THIRD PARTY PAYMENTS,PRIVATE CONTRACTOR,REVENUE
Walsall Council,http://opendatacommunities.org/id/metropolitan-district-council/walsall ,WC159-628,29.02.2024,ADULT SOCIAL CARE,ALPHA HEALTH CARE LTD,12/02/2024,"3,800.00",6541-Residential,THIRD PARTY PAYMENTS,PRIVATE CONTRACTOR,REVENUE
Walsall Council,http://opendatacommunities.org/id/metropolitan-district-council/walsall ,WC159-629,29.02.2024,ADULT SOCIAL CARE,ALPHA HEALTH CARE LTD,12/02/2024,"4,100.00",6541-Residential,THIRD PARTY PAYMENTS,PRIVATE CONTRACTOR,REVENUE
Walsall Council,http://opendatacommunities.org/id/metropolitan-district-council/walsall ,WC159-630,29.02.2024,ADULT SOCIAL CARE,ALPHA HEALTH CARE LTD,12/02/2024,"4,200.00",6541-Nursing EMI,THIRD PARTY PAYMENTS,PRIVATE CONTRACTOR,REVENUE
Walsall Council,http://opendatacommunities.org/id/metropolitan-district-council/walsall ,WC159-631,29.02.2024,ADULT SOCIAL CARE,ALPHA HEALTH CARE LTD,12/02/2024,"7,123.08",6541-Residential,THIRD PARTY PAYMENTS,PRIVATE CONTRACTOR,REVENUE
Walsall Council,http://opendatacommunities.org/id/metropolitan-district-council/walsall ,WC159-632,29.02.2024,ADULT SOCIAL CARE,ALPHA HEALTH CARE LTD,12/02/2024,"7,600.00",6541-Residential,THIRD PARTY PAYMENTS,PRIVATE CONTRACTOR,REVENUE
Walsall Council,http://opendatacommunities.org/id/metropolitan-district-council/walsall ,WC159-633,29.02.2024,"ECONOMY, ENVIRONMENT & COMMUNITIES",ALPHA PARKING LTD,12/02/2024,895.00,6411-External Training,INDIRECT EMPLOYEES,EXTERNAL TRAINING,REVENUE
Walsall Council,http://opendatacommunities.org/id/metropolitan-district-council/walsall ,WC159-634,29.02.2024,CHILDRENS,ALPHA TRAINING ACADEMY UK LTD,12/02/2024,"4,930.00",1187-Materials,SUPPLIES & SERVICES,EQUIPMENT FURNITURE & MATERIALS,REVENUE
Walsall Council,http://opendatacommunities.org/id/metropolitan-district-council/walsall ,WC159-635,29.02.2024,CHILDRENS,ALPHA TRAINING ACADEMY UK LTD,01/02/2024,"-4,296.00",1187-Materials,SUPPLIES & SERVICES,EQUIPMENT FURNITURE & MATERIALS,REVENUE
Walsall Council,http://opendatacommunities.org/id/metropolitan-district-council/walsall ,WC159-636,29.02.2024,CHILDRENS,ALPHA TRAINING ACADEMY UK LTD,01/02/2024,"4,146.00",1187-Materials,SUPPLIES & SERVICES,EQUIPMENT FURNITURE & MATERIALS,REVENUE
Walsall Council,http://opendatacommunities.org/id/metropolitan-district-council/walsall ,WC159-637,29.02.2024,CHILDRENS,ALPHA TRAINING ACADEMY UK LTD,01/02/2024,"4,296.00",1187-Materials,SUPPLIES & SERVICES,EQUIPMENT FURNITURE & MATERIALS,REVENUE
Walsall Council,http://opendatacommunities.org/id/metropolitan-district-council/walsall ,WC159-638,29.02.2024,CHILDRENS,ALPHA TRAINING ACADEMY UK LTD,29/02/2024,"2,000.02",1220-Top Up Funding -Grants to Schools,SUPPLIES & SERVICES,GRANTS (EXP) & SUBSCRIPTIONS,REVENUE
Walsall Council,http://opendatacommunities.org/id/metropolitan-district-council/walsall ,WC159-639,29.02.2024,CHILDRENS,ALPHA TRAINING ACADEMY UK LTD,08/02/2024,"3,333.34",1220-Top Up Funding -Grants to Schools,SUPPLIES & SERVICES,GRANTS (EXP) & SUBSCRIPTIONS,REVENUE
Walsall Council,http://opendatacommunities.org/id/metropolitan-district-council/walsall ,WC159-640,29.02.2024,CHILDRENS,ALPHABIOLABS,01/02/2024,"1,260.00",6223-Professional Fees & Services,SUPPLIES & SERVICES,SERVICES,REVENUE
Walsall Council,http://opendatacommunities.org/id/metropolitan-district-council/walsall ,WC159-641,29.02.2024,ADULT SOCIAL CARE,REDACTED,01/02/2024,708.32,6541-Direct Payment,THIRD PARTY PAYMENTS,PRIVATE CONTRACTOR,REVENUE
Walsall Council,http://opendatacommunities.org/id/metropolitan-district-council/walsall ,WC159-642,29.02.2024,CHILDRENS,AMAH NURSERIES LIMITED T/A BANANA MOON WALSALL,08/02/2024,"3,409.31",1184-Other-Grants to Other Orgs,SUPPLIES & SERVICES,GRANTS (EXP) & SUBSCRIPTIONS,REVENUE
Walsall Council,http://opendatacommunities.org/id/metropolitan-district-council/walsall ,WC159-643,29.02.2024,CHILDRENS,AMAH NURSERIES LIMITED T/A BANANA MOON WALSALL,08/02/2024,"1,954.68",1184-Other-Grants to Other Orgs,SUPPLIES & SERVICES,GRANTS (EXP) & SUBSCRIPTIONS,REVENUE
Walsall Council,http://opendatacommunities.org/id/metropolitan-district-council/walsall ,WC159-644,29.02.2024,CHILDRENS,AMAH NURSERIES LIMITED T/A BANANA MOON WALSALL,08/02/2024,"11,427.08",1184-Other-Grants to Other Orgs,SUPPLIES & SERVICES,GRANTS (EXP) & SUBSCRIPTIONS,REVENUE
Walsall Council,http://opendatacommunities.org/id/metropolitan-district-council/walsall ,WC159-645,29.02.2024,CHILDRENS,AMAH NURSERIES LIMITED T/A BANANA MOON WALSALL,08/02/2024,"5,332.63",1184-Other-Grants to Other Orgs,SUPPLIES & SERVICES,GRANTS (EXP) & SUBSCRIPTIONS,REVENUE
Walsall Council,http://opendatacommunities.org/id/metropolitan-district-council/walsall ,WC159-646,29.02.2024,CHILDRENS,AMAH NURSERIES LIMITED T/A BANANA MOON WALSALL,08/02/2024,"-8,076.51",1184-Other-Grants to Other Orgs,SUPPLIES & SERVICES,GRANTS (EXP) & SUBSCRIPTIONS,REVENUE
Walsall Council,http://opendatacommunities.org/id/metropolitan-district-council/walsall ,WC159-647,29.02.2024,ADULT SOCIAL CARE,REDACTED,01/02/2024,"3,590.07",6541-Shared Lives,THIRD PARTY PAYMENTS,PRIVATE CONTRACTOR,REVENUE
Walsall Council,http://opendatacommunities.org/id/metropolitan-district-council/walsall ,WC159-648,29.02.2024,CHILDRENS,AMANS TRAVEL LTD,26/02/2024,"3,105.00",6241-Hire of Vehicle with Driver,TRANSPORT,DIRECT TRANSPORT COSTS,REVENUE
Walsall Council,http://opendatacommunities.org/id/metropolitan-district-council/walsall ,WC159-649,29.02.2024,CHILDRENS,AMANS TRAVEL LTD,26/02/2024,"4,370.00",6241-Hire of Vehicle with Driver,TRANSPORT,DIRECT TRANSPORT COSTS,REVENUE
Walsall Council,http://opendatacommunities.org/id/metropolitan-district-council/walsall ,WC159-650,29.02.2024,CHILDRENS,AMANS TRAVEL LTD,26/02/2024,"4,370.00",6241-Hire of Vehicle with Driver,TRANSPORT,DIRECT TRANSPORT COSTS,REVENUE
Walsall Council,http://opendatacommunities.org/id/metropolitan-district-council/walsall ,WC159-651,29.02.2024,CHILDRENS,AMANS TRAVEL LTD,26/02/2024,"4,770.00",6241-Hire of Vehicle with Driver,TRANSPORT,DIRECT TRANSPORT COSTS,REVENUE
Walsall Council,http://opendatacommunities.org/id/metropolitan-district-council/walsall ,WC159-652,29.02.2024,CHILDRENS,AMANS TRAVEL LTD,26/02/2024,"7,000.00",6241-Hire of Vehicle with Driver,TRANSPORT,DIRECT TRANSPORT COSTS,REVENUE
Walsall Council,http://opendatacommunities.org/id/metropolitan-district-council/walsall ,WC159-653,29.02.2024,ADULT SOCIAL CARE,REDACTED,01/02/2024,"6,116.84",6541-Direct Payment,THIRD PARTY PAYMENTS,PRIVATE CONTRACTOR,REVENUE
Walsall Council,http://opendatacommunities.org/id/metropolitan-district-council/walsall ,WC159-654,29.02.2024,"ECONOMY, ENVIRONMENT & COMMUNITIES",AMEY LG LIMITED,02/02/2024,494.50,6411-Professional Services-Priv Contractor & Other Agencies,THIRD PARTY PAYMENTS,PRIVATE CONTRACTOR,REVENUE
Walsall Council,http://opendatacommunities.org/id/metropolitan-district-council/walsall ,WC159-655,29.02.2024,"ECONOMY, ENVIRONMENT & COMMUNITIES",AMEY LG LIMITED,14/02/2024,"3,082.35",6430-Repair & Maintenance of Furniture & Equipment,SUPPLIES & SERVICES,EQUIPMENT FURNITURE & MATERIALS,REVENUE
Walsall Council,http://opendatacommunities.org/id/metropolitan-district-council/walsall ,WC159-656,29.02.2024,"ECONOMY, ENVIRONMENT & COMMUNITIES",AMEY LG LIMITED,07/02/2024,"11,727.00",6414-Repair & Maintenance of Furniture & Equipment,SUPPLIES & SERVICES,EQUIPMENT FURNITURE & MATERIALS,REVENUE
Walsall Council,http://opendatacommunities.org/id/metropolitan-district-council/walsall ,WC159-657,29.02.2024,ECONOMY & ENVIRONMENT CAPITAL,AMEY OW LTD,16/02/2024,-326.59,7200-Project Fees,CAPITAL,"NEW CONSTRUCTION,CONVERSION & RENOVATION",CAPITAL
Walsall Council,http://opendatacommunities.org/id/metropolitan-district-council/walsall ,WC159-658,29.02.2024,ECONOMY & ENVIRONMENT CAPITAL,AMEY OW LTD,16/02/2024,-326.57,7200-Project Fees,CAPITAL,"NEW CONSTRUCTION,CONVERSION & RENOVATION",CAPITAL
Walsall Council,http://opendatacommunities.org/id/metropolitan-district-council/walsall ,WC159-659,29.02.2024,ECONOMY & ENVIRONMENT CAPITAL,AMEY OW LTD,16/02/2024,326.57,7200-Project Fees,CAPITAL,"NEW CONSTRUCTION,CONVERSION & RENOVATION",CAPITAL
Walsall Council,http://opendatacommunities.org/id/metropolitan-district-council/walsall ,WC159-660,29.02.2024,ECONOMY & ENVIRONMENT CAPITAL,AMEY OW LTD,16/02/2024,326.59,7200-Project Fees,CAPITAL,"NEW CONSTRUCTION,CONVERSION & RENOVATION",CAPITAL
Walsall Council,http://opendatacommunities.org/id/metropolitan-district-council/walsall ,WC159-661,29.02.2024,CHILDRENS,AMG NURSING CARE SERVICES,02/02/2024,535.30,6220-Professional Fees & Services,SUPPLIES & SERVICES,SERVICES,REVENUE
Walsall Council,http://opendatacommunities.org/id/metropolitan-district-council/walsall ,WC159-662,29.02.2024,CHILDRENS,AMG NURSING CARE SERVICES,02/02/2024,"1,337.81",6220-Professional Fees & Services,SUPPLIES & SERVICES,SERVICES,REVENUE
Walsall Council,http://opendatacommunities.org/id/metropolitan-district-council/walsall ,WC159-663,29.02.2024,CHILDRENS,AMG NURSING CARE SERVICES,14/02/2024,535.30,6220-Professional Fees & Services,SUPPLIES & SERVICES,SERVICES,REVENUE
Walsall Council,http://opendatacommunities.org/id/metropolitan-district-council/walsall ,WC159-664,29.02.2024,CHILDRENS,AMG NURSING CARE SERVICES,14/02/2024,"1,411.66",6220-Professional Fees & Services,SUPPLIES & SERVICES,SERVICES,REVENUE
Walsall Council,http://opendatacommunities.org/id/metropolitan-district-council/walsall ,WC159-665,29.02.2024,CHILDRENS,AMG NURSING CARE SERVICES,14/02/2024,566.12,6220-Professional Fees & Services,SUPPLIES & SERVICES,SERVICES,REVENUE
Walsall Council,http://opendatacommunities.org/id/metropolitan-district-council/walsall ,WC159-666,29.02.2024,CHILDRENS,AMG NURSING CARE SERVICES,16/02/2024,535.30,6220-Professional Fees & Services,SUPPLIES & SERVICES,SERVICES,REVENUE
Walsall Council,http://opendatacommunities.org/id/metropolitan-district-council/walsall ,WC159-667,29.02.2024,CHILDRENS,AMG NURSING CARE SERVICES,16/02/2024,"1,315.98",6220-Professional Fees & Services,SUPPLIES & SERVICES,SERVICES,REVENUE
Walsall Council,http://opendatacommunities.org/id/metropolitan-district-council/walsall ,WC159-668,29.02.2024,CHILDRENS,AMG NURSING CARE SERVICES,16/02/2024,445.26,6220-Professional Fees & Services,SUPPLIES & SERVICES,SERVICES,REVENUE
Walsall Council,http://opendatacommunities.org/id/metropolitan-district-council/walsall ,WC159-669,29.02.2024,CHILDRENS,AMG NURSING CARE SERVICES,29/02/2024,"1,337.81",6220-Professional Fees & Services,SUPPLIES & SERVICES,SERVICES,REVENUE
Walsall Council,http://opendatacommunities.org/id/metropolitan-district-council/walsall ,WC159-670,29.02.2024,CHILDRENS,AMG NURSING CARE SERVICES,26/02/2024,313.74,6220-Professional Fees & Services,SUPPLIES & SERVICES,SERVICES,REVENUE
Walsall Council,http://opendatacommunities.org/id/metropolitan-district-council/walsall ,WC159-671,29.02.2024,CHILDRENS,AMITY RELATIONSHIP SOLUTIONS T/AS KASEARMA LTD,22/02/2024,"1,500.00",6211-Professional Services-Priv Contractor & Other Agencies,THIRD PARTY PAYMENTS,PRIVATE CONTRACTOR,REVENUE
Walsall Council,http://opendatacommunities.org/id/metropolitan-district-council/walsall ,WC159-672,29.02.2024,CHILDRENS,AMMA CHILDCARE SERVICES LTD,20/02/2024,"24,760.00",6223-External Residential Care-Oth Agency Provision,THIRD PARTY PAYMENTS,PRIVATE CONTRACTOR,REVENUE
Walsall Council,http://opendatacommunities.org/id/metropolitan-district-council/walsall ,WC159-673,29.02.2024,CHILDRENS,REDACTED,08/02/2024,700.00,6223-Special Guardianship Orders,TRANSFER PAYMENTS,CHILDREN SOCIAL SERVICES CLIENT,REVENUE
Walsall Council,http://opendatacommunities.org/id/metropolitan-district-council/walsall ,WC159-674,29.02.2024,CHILDRENS,REDACTED,08/02/2024,374.00,6223-Special Guardianship Orders,TRANSFER PAYMENTS,CHILDREN SOCIAL SERVICES CLIENT,REVENUE
Walsall Council,http://opendatacommunities.org/id/metropolitan-district-council/walsall ,WC159-675,29.02.2024,ADULT SOCIAL CARE,ANCHOR HANOVER GROUP - BLOOMFIELD COURT,12/02/2024,"2,413.36",6541-Residential EMI,THIRD PARTY PAYMENTS,PRIVATE CONTRACTOR,REVENUE
Walsall Council,http://opendatacommunities.org/id/metropolitan-district-council/walsall ,WC159-676,29.02.2024,ADULT SOCIAL CARE,ANCHOR HANOVER GROUP - BLOOMFIELD COURT,12/02/2024,"2,413.36",6541-Residential EMI,THIRD PARTY PAYMENTS,PRIVATE CONTRACTOR,REVENUE
Walsall Council,http://opendatacommunities.org/id/metropolitan-district-council/walsall ,WC159-677,29.02.2024,ADULT SOCIAL CARE,ANCHOR HANOVER GROUP - HARDEN HALL CARE HOME,12/02/2024,"2,413.36",6541-Residential EMI,THIRD PARTY PAYMENTS,PRIVATE CONTRACTOR,REVENUE
Walsall Council,http://opendatacommunities.org/id/metropolitan-district-council/walsall ,WC159-678,29.02.2024,ADULT SOCIAL CARE,ANCHOR HANOVER GROUP - HARDEN HALL CARE HOME,12/02/2024,"2,413.36",6541-Residential EMI,THIRD PARTY PAYMENTS,PRIVATE CONTRACTOR,REVENUE
Walsall Council,http://opendatacommunities.org/id/metropolitan-district-council/walsall ,WC159-679,29.02.2024,ADULT SOCIAL CARE,ANCHOR HANOVER GROUP - HARDEN HALL CARE HOME,12/02/2024,"2,413.36",6541-Residential EMI,THIRD PARTY PAYMENTS,PRIVATE CONTRACTOR,REVENUE
Walsall Council,http://opendatacommunities.org/id/metropolitan-district-council/walsall ,WC159-680,29.02.2024,ADULT SOCIAL CARE,ANCHOR HANOVER GROUP - HARDEN HALL CARE HOME,12/02/2024,"2,413.36",6541-Residential EMI,THIRD PARTY PAYMENTS,PRIVATE CONTRACTOR,REVENUE
Walsall Council,http://opendatacommunities.org/id/metropolitan-district-council/walsall ,WC159-681,29.02.2024,ADULT SOCIAL CARE,ANCHOR HANOVER GROUP - HARDEN HALL CARE HOME,12/02/2024,"2,137.32",6541-Residential,THIRD PARTY PAYMENTS,PRIVATE CONTRACTOR,REVENUE
Walsall Council,http://opendatacommunities.org/id/metropolitan-district-council/walsall ,WC159-682,29.02.2024,ADULT SOCIAL CARE,ANCHOR HANOVER GROUP - HARDEN HALL CARE HOME,12/02/2024,"2,773.36",6541-Residential EMI,THIRD PARTY PAYMENTS,PRIVATE CONTRACTOR,REVENUE
Walsall Council,http://opendatacommunities.org/id/metropolitan-district-council/walsall ,WC159-683,29.02.2024,ADULT SOCIAL CARE,ANCHOR HANOVER GROUP - HARDEN HALL CARE HOME,12/02/2024,"2,773.36",6541-Residential EMI,THIRD PARTY PAYMENTS,PRIVATE CONTRACTOR,REVENUE
Walsall Council,http://opendatacommunities.org/id/metropolitan-district-council/walsall ,WC159-684,29.02.2024,ADULT SOCIAL CARE,ANCHOR HANOVER GROUP - HARDEN HALL CARE HOME,12/02/2024,"2,137.32",6541-Residential,THIRD PARTY PAYMENTS,PRIVATE CONTRACTOR,REVENUE
Walsall Council,http://opendatacommunities.org/id/metropolitan-district-council/walsall ,WC159-685,29.02.2024,ADULT SOCIAL CARE,ANCHOR HANOVER GROUP - HARDEN HALL CARE HOME,12/02/2024,"2,773.36",6541-Residential EMI,THIRD PARTY PAYMENTS,PRIVATE CONTRACTOR,REVENUE
Walsall Council,http://opendatacommunities.org/id/metropolitan-district-council/walsall ,WC159-686,29.02.2024,ADULT SOCIAL CARE,ANCHOR HANOVER GROUP - HARDEN HALL CARE HOME,12/02/2024,"2,278.11",6541-Residential EMI,THIRD PARTY PAYMENTS,PRIVATE CONTRACTOR,REVENUE
Walsall Council,http://opendatacommunities.org/id/metropolitan-district-council/walsall ,WC159-687,29.02.2024,ADULT SOCIAL CARE,ANCHOR HANOVER GROUP - HARDEN HALL CARE HOME,12/02/2024,"2,413.36",6541-Residential EMI,THIRD PARTY PAYMENTS,PRIVATE CONTRACTOR,REVENUE
Walsall Council,http://opendatacommunities.org/id/metropolitan-district-council/walsall ,WC159-688,29.02.2024,ADULT SOCIAL CARE,ANCHOR HANOVER GROUP - HARDEN HALL CARE HOME,12/02/2024,"2,413.36",6541-Residential EMI,THIRD PARTY PAYMENTS,PRIVATE CONTRACTOR,REVENUE
Walsall Council,http://opendatacommunities.org/id/metropolitan-district-council/walsall ,WC159-689,29.02.2024,ADULT SOCIAL CARE,ANCHOR HANOVER GROUP - HARDEN HALL CARE HOME,12/02/2024,"2,413.36",6541-Residential EMI,THIRD PARTY PAYMENTS,PRIVATE CONTRACTOR,REVENUE
Walsall Council,http://opendatacommunities.org/id/metropolitan-district-council/walsall ,WC159-690,29.02.2024,ADULT SOCIAL CARE,ANCHOR HANOVER GROUP - HARDEN HALL CARE HOME,12/02/2024,"2,413.36",6541-Residential EMI,THIRD PARTY PAYMENTS,PRIVATE CONTRACTOR,REVENUE
Walsall Council,http://opendatacommunities.org/id/metropolitan-district-council/walsall ,WC159-691,29.02.2024,ADULT SOCIAL CARE,ANCHOR HANOVER GROUP - HARDEN HALL CARE HOME,12/02/2024,"2,497.32",6541-Residential,THIRD PARTY PAYMENTS,PRIVATE CONTRACTOR,REVENUE
Walsall Council,http://opendatacommunities.org/id/metropolitan-district-council/walsall ,WC159-692,29.02.2024,ADULT SOCIAL CARE,ANCHOR HANOVER GROUP - HARDEN HALL CARE HOME,12/02/2024,"2,773.36",6541-Residential EMI,THIRD PARTY PAYMENTS,PRIVATE CONTRACTOR,REVENUE
Walsall Council,http://opendatacommunities.org/id/metropolitan-district-council/walsall ,WC159-693,29.02.2024,ADULT SOCIAL CARE,ANCHOR HANOVER GROUP - HARDEN HALL CARE HOME,12/02/2024,"2,413.36",6541-Residential EMI,THIRD PARTY PAYMENTS,PRIVATE CONTRACTOR,REVENUE
Walsall Council,http://opendatacommunities.org/id/metropolitan-district-council/walsall ,WC159-694,29.02.2024,ADULT SOCIAL CARE,ANCHOR HANOVER GROUP - HARDEN HALL CARE HOME,12/02/2024,"-1,188.59",6541-Residential EMI,THIRD PARTY PAYMENTS,PRIVATE CONTRACTOR,REVENUE
Walsall Council,http://opendatacommunities.org/id/metropolitan-district-council/walsall ,WC159-695,29.02.2024,ADULT SOCIAL CARE,ANCHOR HANOVER GROUP - HARDEN HALL CARE HOME,12/02/2024,"2,773.36",6541-Residential EMI,THIRD PARTY PAYMENTS,PRIVATE CONTRACTOR,REVENUE
Walsall Council,http://opendatacommunities.org/id/metropolitan-district-council/walsall ,WC159-696,29.02.2024,ADULT SOCIAL CARE,ANCHOR HANOVER GROUP - HARDEN HALL CARE HOME,12/02/2024,"2,773.36",6541-Residential EMI,THIRD PARTY PAYMENTS,PRIVATE CONTRACTOR,REVENUE
Walsall Council,http://opendatacommunities.org/id/metropolitan-district-council/walsall ,WC159-697,29.02.2024,ADULT SOCIAL CARE,ANCHOR HANOVER GROUP - HARDEN HALL CARE HOME,12/02/2024,"-1,872.99",6541-Residential,THIRD PARTY PAYMENTS,PRIVATE CONTRACTOR,REVENUE
Walsall Council,http://opendatacommunities.org/id/metropolitan-district-council/walsall ,WC159-698,29.02.2024,ADULT SOCIAL CARE,ANCHOR HANOVER GROUP - HARDEN HALL CARE HOME,12/02/2024,"2,773.36",6541-Residential EMI,THIRD PARTY PAYMENTS,PRIVATE CONTRACTOR,REVENUE
Walsall Council,http://opendatacommunities.org/id/metropolitan-district-council/walsall ,WC159-699,29.02.2024,ADULT SOCIAL CARE,ANCHOR HANOVER GROUP - HARDEN HALL CARE HOME,12/02/2024,"2,773.36",6541-Residential EMI,THIRD PARTY PAYMENTS,PRIVATE CONTRACTOR,REVENUE
Walsall Council,http://opendatacommunities.org/id/metropolitan-district-council/walsall ,WC159-700,29.02.2024,ADULT SOCIAL CARE,ANCHOR HANOVER GROUP - HARDEN HALL CARE HOME,12/02/2024,"2,773.36",6541-Residential EMI,THIRD PARTY PAYMENTS,PRIVATE CONTRACTOR,REVENUE
Walsall Council,http://opendatacommunities.org/id/metropolitan-district-council/walsall ,WC159-701,29.02.2024,ADULT SOCIAL CARE,ANCHOR HANOVER GROUP - HARDEN HALL CARE HOME,12/02/2024,"2,773.36",6541-Residential EMI,THIRD PARTY PAYMENTS,PRIVATE CONTRACTOR,REVENUE
Walsall Council,http://opendatacommunities.org/id/metropolitan-district-council/walsall ,WC159-702,29.02.2024,ADULT SOCIAL CARE,ANCHOR HANOVER GROUP - HARDEN HALL CARE HOME,12/02/2024,"2,986.70",6541-Residential EMI,THIRD PARTY PAYMENTS,PRIVATE CONTRACTOR,REVENUE
Walsall Council,http://opendatacommunities.org/id/metropolitan-district-council/walsall ,WC159-703,29.02.2024,ADULT SOCIAL CARE,ANCHOR HANOVER GROUP - HARDEN HALL CARE HOME,12/02/2024,"2,773.36",6541-Residential EMI,THIRD PARTY PAYMENTS,PRIVATE CONTRACTOR,REVENUE
Walsall Council,http://opendatacommunities.org/id/metropolitan-district-council/walsall ,WC159-704,29.02.2024,ADULT SOCIAL CARE,ANCHOR HANOVER GROUP - HARDEN HALL CARE HOME,12/02/2024,"3,853.12",6541-Residential EMI,THIRD PARTY PAYMENTS,PRIVATE CONTRACTOR,REVENUE
Walsall Council,http://opendatacommunities.org/id/metropolitan-district-council/walsall ,WC159-705,29.02.2024,ADULT SOCIAL CARE,ANCHOR HANOVER GROUP - HARDEN HALL CARE HOME,12/02/2024,"2,724.20",6541-Residential EMI,THIRD PARTY PAYMENTS,PRIVATE CONTRACTOR,REVENUE
Walsall Council,http://opendatacommunities.org/id/metropolitan-district-council/walsall ,WC159-706,29.02.2024,ADULT SOCIAL CARE,ANCHOR HANOVER GROUP - HARDEN HALL CARE HOME,12/02/2024,"1,287.63",6541-Residential EMI,THIRD PARTY PAYMENTS,PRIVATE CONTRACTOR,REVENUE
Walsall Council,http://opendatacommunities.org/id/metropolitan-district-council/walsall ,WC159-707,29.02.2024,CHILDRENS,REDACTED,08/02/2024,268.21,6223-Special Guardianship Orders,TRANSFER PAYMENTS,CHILDREN SOCIAL SERVICES CLIENT,REVENUE
Walsall Council,http://opendatacommunities.org/id/metropolitan-district-council/walsall ,WC159-708,29.02.2024,ADULT SOCIAL CARE,REDACTED,01/02/2024,763.80,6541-Direct Payment,THIRD PARTY PAYMENTS,PRIVATE CONTRACTOR,REVENUE
Walsall Council,http://opendatacommunities.org/id/metropolitan-district-council/walsall ,WC159-709,29.02.2024,ADULT SOCIAL CARE,REDACTED,01/02/2024,"3,132.00",6541-Direct Payment,THIRD PARTY PAYMENTS,PRIVATE CONTRACTOR,REVENUE
Walsall Council,http://opendatacommunities.org/id/metropolitan-district-council/walsall ,WC159-710,29.02.2024,CHILDRENS CAPITAL,ANDREWS ELECTRICAL LTD,02/02/2024,"12,711.00",7150-Site Works Contractors,CAPITAL,"NEW CONSTRUCTION,CONVERSION & RENOVATION",CAPITAL
Walsall Council,http://opendatacommunities.org/id/metropolitan-district-council/walsall ,WC159-711,29.02.2024,CHILDRENS CAPITAL,ANDREWS ELECTRICAL LTD,05/02/2024,"12,841.00",7150-Site Works Contractors,CAPITAL,"NEW CONSTRUCTION,CONVERSION & RENOVATION",CAPITAL
Walsall Council,http://opendatacommunities.org/id/metropolitan-district-council/walsall ,WC159-712,29.02.2024,CHILDRENS CAPITAL,ANDREWS ELECTRICAL LTD,05/02/2024,"16,958.00",7150-Site Works Contractors,CAPITAL,"NEW CONSTRUCTION,CONVERSION & RENOVATION",CAPITAL
Walsall Council,http://opendatacommunities.org/id/metropolitan-district-council/walsall ,WC159-713,29.02.2024,CHILDRENS CAPITAL,ANDREWS ELECTRICAL LTD,16/02/2024,"32,500.00",7150-Site Works Contractors,CAPITAL,"NEW CONSTRUCTION,CONVERSION & RENOVATION",CAPITAL
Walsall Council,http://opendatacommunities.org/id/metropolitan-district-council/walsall ,WC159-714,29.02.2024,CHILDRENS CAPITAL,ANDREWS ELECTRICAL LTD,16/02/2024,"18,900.00",7150-Site Works Contractors,CAPITAL,"NEW CONSTRUCTION,CONVERSION & RENOVATION",CAPITAL
Walsall Council,http://opendatacommunities.org/id/metropolitan-district-council/walsall ,WC159-715,29.02.2024,CHILDRENS,REDACTED,08/02/2024,319.08,6223-Special Guardianship Orders,TRANSFER PAYMENTS,CHILDREN SOCIAL SERVICES CLIENT,REVENUE
Walsall Council,http://opendatacommunities.org/id/metropolitan-district-council/walsall ,WC159-716,29.02.2024,ADULT SOCIAL CARE,REDACTED,01/02/2024,"1,870.56",6541-Direct Payment,THIRD PARTY PAYMENTS,PRIVATE CONTRACTOR,REVENUE
Walsall Council,http://opendatacommunities.org/id/metropolitan-district-council/walsall ,WC159-717,29.02.2024,CHILDRENS,REDACTED,08/02/2024,352.00,6223-Special Guardianship Orders,TRANSFER PAYMENTS,CHILDREN SOCIAL SERVICES CLIENT,REVENUE
Walsall Council,http://opendatacommunities.org/id/metropolitan-district-council/walsall ,WC159-718,29.02.2024,CHILDRENS,ANGELS AND BUTTERFLIES CHILDMINDING,08/02/2024,273.38,1184-Other-Grants to Other Orgs,SUPPLIES & SERVICES,GRANTS (EXP) & SUBSCRIPTIONS,REVENUE
Walsall Council,http://opendatacommunities.org/id/metropolitan-district-council/walsall ,WC159-719,29.02.2024,ADULT SOCIAL CARE,REDACTED,01/02/2024,"1,320.00",6541-Direct Payment,THIRD PARTY PAYMENTS,PRIVATE CONTRACTOR,REVENUE
Walsall Council,http://opendatacommunities.org/id/metropolitan-district-council/walsall ,WC159-720,29.02.2024,CHILDRENS,REDACTED,08/02/2024,417.96,6223-Residents Orders,TRANSFER PAYMENTS,CHILDREN SOCIAL SERVICES CLIENT,REVENUE
Walsall Council,http://opendatacommunities.org/id/metropolitan-district-council/walsall ,WC159-721,29.02.2024,CHILDRENS,REDACTED,08/02/2024,756.00,6223-Foster Carers Maintenance Allowance,TRANSFER PAYMENTS,CHILDREN SOCIAL SERVICES CLIENT,REVENUE
Walsall Council,http://opendatacommunities.org/id/metropolitan-district-council/walsall ,WC159-722,29.02.2024,CHILDRENS,REDACTED,08/02/2024,534.00,6223-Internal Foster Carers-Carer Fees,TRANSFER PAYMENTS,CHILDREN SOCIAL SERVICES CLIENT,REVENUE
Walsall Council,http://opendatacommunities.org/id/metropolitan-district-council/walsall ,WC159-723,29.02.2024,CHILDRENS CAPITAL,ANOMALY INTERACTIVE LTD,13/02/2024,"7,200.00",7155-Purchase of Furniture & Equipment,CAPITAL,"VEHICLES,PLANT,EQUIPMENT & MACHINERY",CAPITAL
Walsall Council,http://opendatacommunities.org/id/metropolitan-district-council/walsall ,WC159-724,29.02.2024,ADULT SOCIAL CARE,ANSON COURT RESIDENTIAL HOME,12/02/2024,"2,413.36",6541-Residential EMI,THIRD PARTY PAYMENTS,PRIVATE CONTRACTOR,REVENUE
Walsall Council,http://opendatacommunities.org/id/metropolitan-district-council/walsall ,WC159-725,29.02.2024,ADULT SOCIAL CARE,ANSON COURT RESIDENTIAL HOME,12/02/2024,"2,413.36",6541-Residential EMI,THIRD PARTY PAYMENTS,PRIVATE CONTRACTOR,REVENUE
Walsall Council,http://opendatacommunities.org/id/metropolitan-district-council/walsall ,WC159-726,29.02.2024,ADULT SOCIAL CARE,ANSON COURT RESIDENTIAL HOME,12/02/2024,"2,413.36",6541-Residential EMI,THIRD PARTY PAYMENTS,PRIVATE CONTRACTOR,REVENUE
Walsall Council,http://opendatacommunities.org/id/metropolitan-district-council/walsall ,WC159-727,29.02.2024,ADULT SOCIAL CARE,ANSON COURT RESIDENTIAL HOME,12/02/2024,"2,413.36",6541-Residential EMI,THIRD PARTY PAYMENTS,PRIVATE CONTRACTOR,REVENUE
Walsall Council,http://opendatacommunities.org/id/metropolitan-district-council/walsall ,WC159-728,29.02.2024,ADULT SOCIAL CARE,ANSON COURT RESIDENTIAL HOME,12/02/2024,"2,413.36",6541-Residential EMI,THIRD PARTY PAYMENTS,PRIVATE CONTRACTOR,REVENUE
Walsall Council,http://opendatacommunities.org/id/metropolitan-district-council/walsall ,WC159-729,29.02.2024,ADULT SOCIAL CARE,ANSON COURT RESIDENTIAL HOME,12/02/2024,"2,413.36",6541-Residential EMI,THIRD PARTY PAYMENTS,PRIVATE CONTRACTOR,REVENUE
Walsall Council,http://opendatacommunities.org/id/metropolitan-district-council/walsall ,WC159-730,29.02.2024,ADULT SOCIAL CARE,ANSON COURT RESIDENTIAL HOME,12/02/2024,"2,137.32",6541-Residential,THIRD PARTY PAYMENTS,PRIVATE CONTRACTOR,REVENUE
Walsall Council,http://opendatacommunities.org/id/metropolitan-district-council/walsall ,WC159-731,29.02.2024,ADULT SOCIAL CARE,ANSON COURT RESIDENTIAL HOME,12/02/2024,"2,613.64",6541-Residential EMI,THIRD PARTY PAYMENTS,PRIVATE CONTRACTOR,REVENUE
Walsall Council,http://opendatacommunities.org/id/metropolitan-district-council/walsall ,WC159-732,29.02.2024,ADULT SOCIAL CARE,ANSON COURT RESIDENTIAL HOME,12/02/2024,"2,337.32",6541-Residential,THIRD PARTY PAYMENTS,PRIVATE CONTRACTOR,REVENUE
Walsall Council,http://opendatacommunities.org/id/metropolitan-district-council/walsall ,WC159-733,29.02.2024,ADULT SOCIAL CARE,ANSON COURT RESIDENTIAL HOME,12/02/2024,"2,413.36",6541-Residential EMI,THIRD PARTY PAYMENTS,PRIVATE CONTRACTOR,REVENUE
Walsall Council,http://opendatacommunities.org/id/metropolitan-district-council/walsall ,WC159-734,29.02.2024,ADULT SOCIAL CARE,ANSON COURT RESIDENTIAL HOME,12/02/2024,"2,613.36",6541-Residential EMI,THIRD PARTY PAYMENTS,PRIVATE CONTRACTOR,REVENUE
Walsall Council,http://opendatacommunities.org/id/metropolitan-district-council/walsall ,WC159-735,29.02.2024,ADULT SOCIAL CARE,ANSON COURT RESIDENTIAL HOME,12/02/2024,"2,613.36",6541-Residential EMI,THIRD PARTY PAYMENTS,PRIVATE CONTRACTOR,REVENUE
Walsall Council,http://opendatacommunities.org/id/metropolitan-district-council/walsall ,WC159-736,29.02.2024,ADULT SOCIAL CARE,ANSON COURT RESIDENTIAL HOME,12/02/2024,"2,257.32",6541-Residential,THIRD PARTY PAYMENTS,PRIVATE CONTRACTOR,REVENUE
Walsall Council,http://opendatacommunities.org/id/metropolitan-district-council/walsall ,WC159-737,29.02.2024,ADULT SOCIAL CARE,ANSON COURT RESIDENTIAL HOME,12/02/2024,"2,413.36",6541-Residential EMI,THIRD PARTY PAYMENTS,PRIVATE CONTRACTOR,REVENUE
Walsall Council,http://opendatacommunities.org/id/metropolitan-district-council/walsall ,WC159-738,29.02.2024,ADULT SOCIAL CARE,ANSON COURT RESIDENTIAL HOME,12/02/2024,"2,413.36",6541-Residential EMI,THIRD PARTY PAYMENTS,PRIVATE CONTRACTOR,REVENUE
Walsall Council,http://opendatacommunities.org/id/metropolitan-district-council/walsall ,WC159-739,29.02.2024,ADULT SOCIAL CARE,ANSON COURT RESIDENTIAL HOME,12/02/2024,"2,137.32",6541-Residential,THIRD PARTY PAYMENTS,PRIVATE CONTRACTOR,REVENUE
Walsall Council,http://opendatacommunities.org/id/metropolitan-district-council/walsall ,WC159-740,29.02.2024,ADULT SOCIAL CARE,ANSON COURT RESIDENTIAL HOME,12/02/2024,"7,373.41",6541-Residential EMI,THIRD PARTY PAYMENTS,PRIVATE CONTRACTOR,REVENUE
Walsall Council,http://opendatacommunities.org/id/metropolitan-district-council/walsall ,WC159-741,29.02.2024,ADULT SOCIAL CARE,ANSON COURT RESIDENTIAL HOME,12/02/2024,"4,013.38",6541-Residential EMI,THIRD PARTY PAYMENTS,PRIVATE CONTRACTOR,REVENUE
Walsall Council,http://opendatacommunities.org/id/metropolitan-district-council/walsall ,WC159-742,29.02.2024,ADULT SOCIAL CARE,ANSON COURT RESIDENTIAL HOME,12/02/2024,"4,946.72",6541-Residential EMI,THIRD PARTY PAYMENTS,PRIVATE CONTRACTOR,REVENUE
Walsall Council,http://opendatacommunities.org/id/metropolitan-district-council/walsall ,WC159-743,29.02.2024,ADULT SOCIAL CARE,ANSON COURT RESIDENTIAL HOME,12/02/2024,"2,413.36",6541-Residential EMI,THIRD PARTY PAYMENTS,PRIVATE CONTRACTOR,REVENUE
Walsall Council,http://opendatacommunities.org/id/metropolitan-district-council/walsall ,WC159-744,29.02.2024,ADULT SOCIAL CARE,ANSON COURT RESIDENTIAL HOME,12/02/2024,"2,413.36",6541-Residential EMI,THIRD PARTY PAYMENTS,PRIVATE CONTRACTOR,REVENUE
Walsall Council,http://opendatacommunities.org/id/metropolitan-district-council/walsall ,WC159-745,29.02.2024,ADULT SOCIAL CARE,ANSON COURT RESIDENTIAL HOME,12/02/2024,"2,146.69",6541-Residential EMI,THIRD PARTY PAYMENTS,PRIVATE CONTRACTOR,REVENUE
Walsall Council,http://opendatacommunities.org/id/metropolitan-district-council/walsall ,WC159-746,29.02.2024,ADULT SOCIAL CARE,ANSON COURT RESIDENTIAL HOME,12/02/2024,"6,121.20",6541-Residential EMI,THIRD PARTY PAYMENTS,PRIVATE CONTRACTOR,REVENUE
Walsall Council,http://opendatacommunities.org/id/metropolitan-district-council/walsall ,WC159-747,29.02.2024,ADULT SOCIAL CARE,ANSON COURT RESIDENTIAL HOME,07/02/2024,"2,413.36",6541-Residential EMI,THIRD PARTY PAYMENTS,PRIVATE CONTRACTOR,REVENUE
Walsall Council,http://opendatacommunities.org/id/metropolitan-district-council/walsall ,WC159-748,29.02.2024,ADULT SOCIAL CARE,ANSON COURT RESIDENTIAL HOME,07/02/2024,"1,434.30",6541-Residential EMI,THIRD PARTY PAYMENTS,PRIVATE CONTRACTOR,REVENUE
Walsall Council,http://opendatacommunities.org/id/metropolitan-district-council/walsall ,WC159-749,29.02.2024,CHILDRENS,ANTI-PEST PEST CONTROL SERVICES,02/02/2024,-390.00,6211-Professional Fees & Services,SUPPLIES & SERVICES,SERVICES,REVENUE
Walsall Council,http://opendatacommunities.org/id/metropolitan-district-council/walsall ,WC159-750,29.02.2024,CHILDRENS,ANTI-PEST PEST CONTROL SERVICES,02/02/2024,390.00,6211-Professional Fees & Services,SUPPLIES & SERVICES,SERVICES,REVENUE
Walsall Council,http://opendatacommunities.org/id/metropolitan-district-council/walsall ,WC159-751,29.02.2024,CHILDRENS,REDACTED,08/02/2024,371.92,6223-Special Guardianship Orders,TRANSFER PAYMENTS,CHILDREN SOCIAL SERVICES CLIENT,REVENUE
Walsall Council,http://opendatacommunities.org/id/metropolitan-district-council/walsall ,WC159-752,29.02.2024,"ECONOMY, ENVIRONMENT & COMMUNITIES",APCOA PARKING SERVICES (UK) LTD,02/02/2024,"57,506.08",6411-Parking Enforcement Activity-Priv Contractor Fees,THIRD PARTY PAYMENTS,PRIVATE CONTRACTOR,REVENUE
Walsall Council,http://opendatacommunities.org/id/metropolitan-district-council/walsall ,WC159-753,29.02.2024,RESOURCES AND TRANSFORMATION,APCOA PARKING SERVICES (UK) LTD,06/02/2024,-747.58,6634-Oxygen Finance Rebates ,SUPPLIES & SERVICES,SERVICES,REVENUE
Walsall Council,http://opendatacommunities.org/id/metropolitan-district-council/walsall ,WC159-754,29.02.2024,CHILDRENS,APP CARZ,13/02/2024,917.00,6314-Other Travel Allowances,TRANSPORT,CAR ALLOWANCES,REVENUE
Walsall Council,http://opendatacommunities.org/id/metropolitan-district-council/walsall ,WC159-755,29.02.2024,CHILDRENS,APP CARZ,26/02/2024,"2,720.00",6241-Hire of Vehicle with Driver,TRANSPORT,DIRECT TRANSPORT COSTS,REVENUE
Walsall Council,http://opendatacommunities.org/id/metropolitan-district-council/walsall ,WC159-756,29.02.2024,CHILDRENS,APP CARZ,26/02/2024,"1,900.00",6241-Hire of Vehicle with Driver,TRANSPORT,DIRECT TRANSPORT COSTS,REVENUE
Walsall Council,http://opendatacommunities.org/id/metropolitan-district-council/walsall ,WC159-757,29.02.2024,CHILDRENS,APP CARZ,26/02/2024,312.00,6241-Hire of Vehicle with Driver,TRANSPORT,DIRECT TRANSPORT COSTS,REVENUE
Walsall Council,http://opendatacommunities.org/id/metropolitan-district-council/walsall ,WC159-758,29.02.2024,CHILDRENS,APP CARZ,26/02/2024,"2,500.00",6241-Hire of Vehicle with Driver,TRANSPORT,DIRECT TRANSPORT COSTS,REVENUE
Walsall Council,http://opendatacommunities.org/id/metropolitan-district-council/walsall ,WC159-759,29.02.2024,CHILDRENS,APP CARZ,26/02/2024,"1,300.00",6241-Hire of Vehicle with Driver,TRANSPORT,DIRECT TRANSPORT COSTS,REVENUE
Walsall Council,http://opendatacommunities.org/id/metropolitan-district-council/walsall ,WC159-760,29.02.2024,CHILDRENS,APP CARZ,26/02/2024,640.00,6241-Hire of Vehicle with Driver,TRANSPORT,DIRECT TRANSPORT COSTS,REVENUE
Walsall Council,http://opendatacommunities.org/id/metropolitan-district-council/walsall ,WC159-761,29.02.2024,CHILDRENS,APP CARZ,26/02/2024,464.00,6241-Hire of Vehicle with Driver,TRANSPORT,DIRECT TRANSPORT COSTS,REVENUE
Walsall Council,http://opendatacommunities.org/id/metropolitan-district-council/walsall ,WC159-762,29.02.2024,"ECONOMY, ENVIRONMENT & COMMUNITIES",APSE 001,05/02/2024,"2,784.50",6410-Subscriptions,SUPPLIES & SERVICES,GRANTS (EXP) & SUBSCRIPTIONS,REVENUE
Walsall Council,http://opendatacommunities.org/id/metropolitan-district-council/walsall ,WC159-763,29.02.2024,"ECONOMY, ENVIRONMENT & COMMUNITIES",AQUA FORCE SPECIAL WASTE LTD,16/02/2024,348.00,6410-Materials,SUPPLIES & SERVICES,EQUIPMENT FURNITURE & MATERIALS,REVENUE
Walsall Council,http://opendatacommunities.org/id/metropolitan-district-council/walsall ,WC159-764,29.02.2024,"ECONOMY, ENVIRONMENT & COMMUNITIES",AQUA FORCE SPECIAL WASTE LTD,27/02/2024,"2,398.00",6410-Hazardous Waste Removal & Disposal,THIRD PARTY PAYMENTS,PRIVATE CONTRACTOR,REVENUE
Walsall Council,http://opendatacommunities.org/id/metropolitan-district-council/walsall ,WC159-765,29.02.2024,"ECONOMY, ENVIRONMENT & COMMUNITIES",AQUA FORCE SPECIAL WASTE LTD,16/02/2024,-435.00,6410-Hazardous Waste Removal & Disposal,THIRD PARTY PAYMENTS,PRIVATE CONTRACTOR,REVENUE
Walsall Council,http://opendatacommunities.org/id/metropolitan-district-council/walsall ,WC159-766,29.02.2024,"ECONOMY, ENVIRONMENT & COMMUNITIES",AQUA FORCE SPECIAL WASTE LTD,16/02/2024,435.00,6410-Hazardous Waste Removal & Disposal,THIRD PARTY PAYMENTS,PRIVATE CONTRACTOR,REVENUE
Walsall Council,http://opendatacommunities.org/id/metropolitan-district-council/walsall ,WC159-767,29.02.2024,"ECONOMY, ENVIRONMENT & COMMUNITIES",AQUA FORCE SPECIAL WASTE LTD,16/02/2024,695.00,6410-Hazardous Waste Removal & Disposal,THIRD PARTY PAYMENTS,PRIVATE CONTRACTOR,REVENUE
Walsall Council,http://opendatacommunities.org/id/metropolitan-district-council/walsall ,WC159-768,29.02.2024,"ECONOMY, ENVIRONMENT & COMMUNITIES",AQUA FORCE SPECIAL WASTE LTD,16/02/2024,435.00,6410-Hazardous Waste Removal & Disposal,THIRD PARTY PAYMENTS,PRIVATE CONTRACTOR,REVENUE
Walsall Council,http://opendatacommunities.org/id/metropolitan-district-council/walsall ,WC159-769,29.02.2024,CHILDRENS,ARBORETUM HOUSE LTD T/A SAFE HAVEN ARBORETUM HOUSE,20/02/2024,"24,760.00",6223-External Residential Care-Oth Agency Provision,THIRD PARTY PAYMENTS,PRIVATE CONTRACTOR,REVENUE
Walsall Council,http://opendatacommunities.org/id/metropolitan-district-council/walsall ,WC159-770,29.02.2024,ADULT SOCIAL CARE,ARBORETUM NURSING HOME.,12/02/2024,"1,968.50",6541-Nursing,THIRD PARTY PAYMENTS,PRIVATE CONTRACTOR,REVENUE
Walsall Council,http://opendatacommunities.org/id/metropolitan-district-council/walsall ,WC159-771,29.02.2024,ADULT SOCIAL CARE,ARBORETUM NURSING HOME.,12/02/2024,"2,685.36",6541-Nursing,THIRD PARTY PAYMENTS,PRIVATE CONTRACTOR,REVENUE
Walsall Council,http://opendatacommunities.org/id/metropolitan-district-council/walsall ,WC159-772,29.02.2024,ADULT SOCIAL CARE,ARBORETUM NURSING HOME.,12/02/2024,"2,685.36",6541-Nursing,THIRD PARTY PAYMENTS,PRIVATE CONTRACTOR,REVENUE
Walsall Council,http://opendatacommunities.org/id/metropolitan-district-council/walsall ,WC159-773,29.02.2024,ADULT SOCIAL CARE,ARBORETUM NURSING HOME.,12/02/2024,"2,705.36",6541-Nursing,THIRD PARTY PAYMENTS,PRIVATE CONTRACTOR,REVENUE
Walsall Council,http://opendatacommunities.org/id/metropolitan-district-council/walsall ,WC159-774,29.02.2024,ADULT SOCIAL CARE,ARBORETUM NURSING HOME.,12/02/2024,"1,824.56",6541-Nursing,THIRD PARTY PAYMENTS,PRIVATE CONTRACTOR,REVENUE
Walsall Council,http://opendatacommunities.org/id/metropolitan-district-council/walsall ,WC159-775,29.02.2024,ADULT SOCIAL CARE,ARBORETUM NURSING HOME.,12/02/2024,420.00,6554-Professional Services-Priv Contractor & Other Agencies,THIRD PARTY PAYMENTS,PRIVATE CONTRACTOR,REVENUE
Walsall Council,http://opendatacommunities.org/id/metropolitan-district-council/walsall ,WC159-776,29.02.2024,ADULT SOCIAL CARE,ARBORETUM NURSING HOME.,12/02/2024,"2,745.36",6541-Nursing,THIRD PARTY PAYMENTS,PRIVATE CONTRACTOR,REVENUE
Walsall Council,http://opendatacommunities.org/id/metropolitan-district-council/walsall ,WC159-777,29.02.2024,ADULT SOCIAL CARE,ARBORETUM NURSING HOME.,12/02/2024,"4,014.40",6554-Professional Services-Priv Contractor & Other Agencies,THIRD PARTY PAYMENTS,PRIVATE CONTRACTOR,REVENUE
Walsall Council,http://opendatacommunities.org/id/metropolitan-district-council/walsall ,WC159-778,29.02.2024,ADULT SOCIAL CARE,ARBORETUM NURSING HOME.,12/02/2024,"2,505.36",6541-Nursing,THIRD PARTY PAYMENTS,PRIVATE CONTRACTOR,REVENUE
Walsall Council,http://opendatacommunities.org/id/metropolitan-district-council/walsall ,WC159-779,29.02.2024,ADULT SOCIAL CARE,ARBORETUM NURSING HOME.,12/02/2024,"2,505.36",6541-Nursing,THIRD PARTY PAYMENTS,PRIVATE CONTRACTOR,REVENUE
Walsall Council,http://opendatacommunities.org/id/metropolitan-district-council/walsall ,WC159-780,29.02.2024,ADULT SOCIAL CARE,ARBORETUM NURSING HOME.,12/02/2024,"1,630.40",6541-Nursing,THIRD PARTY PAYMENTS,PRIVATE CONTRACTOR,REVENUE
Walsall Council,http://opendatacommunities.org/id/metropolitan-district-council/walsall ,WC159-781,29.02.2024,ADULT SOCIAL CARE,ARBORETUM NURSING HOME.,12/02/2024,"2,505.36",6541-Nursing,THIRD PARTY PAYMENTS,PRIVATE CONTRACTOR,REVENUE
Walsall Council,http://opendatacommunities.org/id/metropolitan-district-council/walsall ,WC159-782,29.02.2024,ADULT SOCIAL CARE,ARBORETUM NURSING HOME.,12/02/2024,"2,505.36",6541-Nursing,THIRD PARTY PAYMENTS,PRIVATE CONTRACTOR,REVENUE
Walsall Council,http://opendatacommunities.org/id/metropolitan-district-council/walsall ,WC159-783,29.02.2024,ADULT SOCIAL CARE,ARBORETUM NURSING HOME.,12/02/2024,"2,745.36",6541-Nursing,THIRD PARTY PAYMENTS,PRIVATE CONTRACTOR,REVENUE
Walsall Council,http://opendatacommunities.org/id/metropolitan-district-council/walsall ,WC159-784,29.02.2024,ADULT SOCIAL CARE,ARBORETUM NURSING HOME.,12/02/2024,"2,641.16",6541-Nursing,THIRD PARTY PAYMENTS,PRIVATE CONTRACTOR,REVENUE
Walsall Council,http://opendatacommunities.org/id/metropolitan-district-council/walsall ,WC159-785,29.02.2024,ADULT SOCIAL CARE,ARBORETUM NURSING HOME.,12/02/2024,"1,540.00",6554-Professional Services-Priv Contractor & Other Agencies,THIRD PARTY PAYMENTS,PRIVATE CONTRACTOR,REVENUE
Walsall Council,http://opendatacommunities.org/id/metropolitan-district-council/walsall ,WC159-786,29.02.2024,ADULT SOCIAL CARE,ARBORETUM NURSING HOME.,12/02/2024,"4,014.72",6554-Professional Services-Priv Contractor & Other Agencies,THIRD PARTY PAYMENTS,PRIVATE CONTRACTOR,REVENUE
Walsall Council,http://opendatacommunities.org/id/metropolitan-district-council/walsall ,WC159-787,29.02.2024,ADULT SOCIAL CARE,ARBORETUM NURSING HOME.,12/02/2024,"3,220.00",6554-Professional Services-Priv Contractor & Other Agencies,THIRD PARTY PAYMENTS,PRIVATE CONTRACTOR,REVENUE
Walsall Council,http://opendatacommunities.org/id/metropolitan-district-council/walsall ,WC159-788,29.02.2024,ADULT SOCIAL CARE,ARBORETUM NURSING HOME.,12/02/2024,860.30,6554-Professional Services-Priv Contractor & Other Agencies,THIRD PARTY PAYMENTS,PRIVATE CONTRACTOR,REVENUE
Walsall Council,http://opendatacommunities.org/id/metropolitan-district-council/walsall ,WC159-789,29.02.2024,ADULT SOCIAL CARE,ARBORETUM NURSING HOME.,12/02/2024,716.91,6554-Professional Services-Priv Contractor & Other Agencies,THIRD PARTY PAYMENTS,PRIVATE CONTRACTOR,REVENUE
Walsall Council,http://opendatacommunities.org/id/metropolitan-district-council/walsall ,WC159-790,29.02.2024,ADULT SOCIAL CARE,ARBORETUM NURSING HOME.,12/02/2024,"1,790.59",6541-Nursing,THIRD PARTY PAYMENTS,PRIVATE CONTRACTOR,REVENUE
Walsall Council,http://opendatacommunities.org/id/metropolitan-district-council/walsall ,WC159-791,29.02.2024,ADULT SOCIAL CARE,ARBORETUM NURSING HOME.,12/02/2024,"2,685.36",6541-Nursing,THIRD PARTY PAYMENTS,PRIVATE CONTRACTOR,REVENUE
Walsall Council,http://opendatacommunities.org/id/metropolitan-district-council/walsall ,WC159-792,29.02.2024,ADULT SOCIAL CARE,ARBORETUM NURSING HOME.,12/02/2024,"2,549.12",6541-Nursing,THIRD PARTY PAYMENTS,PRIVATE CONTRACTOR,REVENUE
Walsall Council,http://opendatacommunities.org/id/metropolitan-district-council/walsall ,WC159-793,29.02.2024,ADULT SOCIAL CARE,ARBORETUM NURSING HOME.,12/02/2024,"4,014.72",6554-Professional Services-Priv Contractor & Other Agencies,THIRD PARTY PAYMENTS,PRIVATE CONTRACTOR,REVENUE
Walsall Council,http://opendatacommunities.org/id/metropolitan-district-council/walsall ,WC159-794,29.02.2024,ADULT SOCIAL CARE,ARBORETUM NURSING HOME.,12/02/2024,"2,867.65",6554-Professional Services-Priv Contractor & Other Agencies,THIRD PARTY PAYMENTS,PRIVATE CONTRACTOR,REVENUE
Walsall Council,http://opendatacommunities.org/id/metropolitan-district-council/walsall ,WC159-795,29.02.2024,ADULT SOCIAL CARE,ARBORETUM NURSING HOME.,12/02/2024,"3,220.00",6554-Professional Services-Priv Contractor & Other Agencies,THIRD PARTY PAYMENTS,PRIVATE CONTRACTOR,REVENUE
Walsall Council,http://opendatacommunities.org/id/metropolitan-district-council/walsall ,WC159-796,29.02.2024,ADULT SOCIAL CARE,ARBORETUM NURSING HOME.,12/02/2024,"2,580.69",6554-Professional Services-Priv Contractor & Other Agencies,THIRD PARTY PAYMENTS,PRIVATE CONTRACTOR,REVENUE
Walsall Council,http://opendatacommunities.org/id/metropolitan-district-council/walsall ,WC159-797,29.02.2024,ADULT SOCIAL CARE,ARBORETUM NURSING HOME.,12/02/2024,"4,014.40",6554-Professional Services-Priv Contractor & Other Agencies,THIRD PARTY PAYMENTS,PRIVATE CONTRACTOR,REVENUE
Walsall Council,http://opendatacommunities.org/id/metropolitan-district-council/walsall ,WC159-798,29.02.2024,ADULT SOCIAL CARE,ARBORETUM NURSING HOME.,12/02/2024,"3,920.00",6554-Professional Services-Priv Contractor & Other Agencies,THIRD PARTY PAYMENTS,PRIVATE CONTRACTOR,REVENUE
Walsall Council,http://opendatacommunities.org/id/metropolitan-district-council/walsall ,WC159-799,29.02.2024,ADULT SOCIAL CARE,ARBORETUM NURSING HOME.,12/02/2024,"7,584.49",6541-Nursing,THIRD PARTY PAYMENTS,PRIVATE CONTRACTOR,REVENUE
Walsall Council,http://opendatacommunities.org/id/metropolitan-district-council/walsall ,WC159-800,29.02.2024,ADULT SOCIAL CARE,ARBORETUM NURSING HOME.,12/02/2024,"2,729.36",6541-Nursing,THIRD PARTY PAYMENTS,PRIVATE CONTRACTOR,REVENUE
Walsall Council,http://opendatacommunities.org/id/metropolitan-district-council/walsall ,WC159-801,29.02.2024,ADULT SOCIAL CARE,ARBORETUM NURSING HOME.,12/02/2024,"3,920.00",6554-Professional Services-Priv Contractor & Other Agencies,THIRD PARTY PAYMENTS,PRIVATE CONTRACTOR,REVENUE
Walsall Council,http://opendatacommunities.org/id/metropolitan-district-council/walsall ,WC159-802,29.02.2024,ADULT SOCIAL CARE,ARBORETUM NURSING HOME.,12/02/2024,"3,920.00",6554-Professional Services-Priv Contractor & Other Agencies,THIRD PARTY PAYMENTS,PRIVATE CONTRACTOR,REVENUE
Walsall Council,http://opendatacommunities.org/id/metropolitan-district-council/walsall ,WC159-803,29.02.2024,ADULT SOCIAL CARE,ARBORETUM NURSING HOME.,12/02/2024,"2,785.36",6541-Nursing,THIRD PARTY PAYMENTS,PRIVATE CONTRACTOR,REVENUE
Walsall Council,http://opendatacommunities.org/id/metropolitan-district-council/walsall ,WC159-804,29.02.2024,ADULT SOCIAL CARE,ARBORETUM NURSING HOME.,12/02/2024,"3,857.14",6554-Professional Services-Priv Contractor & Other Agencies,THIRD PARTY PAYMENTS,PRIVATE CONTRACTOR,REVENUE
Walsall Council,http://opendatacommunities.org/id/metropolitan-district-council/walsall ,WC159-805,29.02.2024,ADULT SOCIAL CARE,ARBORETUM NURSING HOME.,12/02/2024,"2,745.36",6541-Nursing,THIRD PARTY PAYMENTS,PRIVATE CONTRACTOR,REVENUE
Walsall Council,http://opendatacommunities.org/id/metropolitan-district-council/walsall ,WC159-806,29.02.2024,ADULT SOCIAL CARE,ARBORETUM NURSING HOME.,12/02/2024,"2,049.69",6554-Professional Services-Priv Contractor & Other Agencies,THIRD PARTY PAYMENTS,PRIVATE CONTRACTOR,REVENUE
Walsall Council,http://opendatacommunities.org/id/metropolitan-district-council/walsall ,WC159-807,29.02.2024,ADULT SOCIAL CARE,ARBORETUM NURSING HOME.,12/02/2024,"3,120.00",6541-Nursing,THIRD PARTY PAYMENTS,PRIVATE CONTRACTOR,REVENUE
Walsall Council,http://opendatacommunities.org/id/metropolitan-district-council/walsall ,WC159-808,29.02.2024,ADULT SOCIAL CARE,ARBORETUM NURSING HOME.,12/02/2024,"2,745.36",6541-Nursing,THIRD PARTY PAYMENTS,PRIVATE CONTRACTOR,REVENUE
Walsall Council,http://opendatacommunities.org/id/metropolitan-district-council/walsall ,WC159-809,29.02.2024,ADULT SOCIAL CARE,ARBORETUM NURSING HOME.,12/02/2024,"2,745.36",6541-Nursing,THIRD PARTY PAYMENTS,PRIVATE CONTRACTOR,REVENUE
